Department Family,Entity,Payment Date,Expense Type,Expense Area,Supplier,Transaction Number,Amount,Description
BIS,Skills Funding Agency,24/03/2016,Diesel Car Mileage,Apprenticeships & Delivery Services - Marketing,Agency Staff Member,SCLAIM_45162,28.8,Staff Expenses Claim
BIS,Skills Funding Agency,24/03/2016,Diesel Car Mileage,Central Delivery Service - European Social Fund - Audit Compliance,Agency Staff Member,SCLAIM_45171,5.4,Staff Expenses Claim
BIS,Skills Funding Agency,24/03/2016,Diesel Car Mileage,Finance Division - Provider Finance,Agency Staff Member,SCLAIM_45178,206.1,Staff Expenses Claim
BIS,Skills Funding Agency,24/03/2016,Diesel Car Mileage,Funding & Programmes - Provider Management & Intervention North,Agency Staff Member,SCLAIM_45172,302.4,Staff Expenses Claim
BIS,Skills Funding Agency,24/03/2016,Diesel Car Mileage,Funding & Programmes - Provider Management & Intervention North,Agency Staff Member,SCLAIM_45173,315.45,Staff Expenses Claim
BIS,Skills Funding Agency,24/03/2016,Diesel Car Mileage,Operations Finance - Financial Management,Agency Staff Member,SCLAIM_45146,122.4,Staff Expenses Claim
BIS,Skills Funding Agency,24/03/2016,Diesel Car Mileage,Operations Finance - Financial Management,Agency Staff Member,SCLAIM_45149,185,Staff Expenses Claim
BIS,Skills Funding Agency,24/03/2016,Diesel Car Mileage,Operations Finance - Financial Management,Agency Staff Member,SCLAIM_45176,54,Staff Expenses Claim
BIS,Skills Funding Agency,24/03/2016,Eye Tests,National Careers & Learner Services,Agency Staff Member,SCLAIM_45157,20,Staff Expenses Claim
BIS,Skills Funding Agency,24/03/2016,Eye Tests,National Careers & Learner Services,Agency Staff Member,SCLAIM_45168,50,Staff Expenses Claim
BIS,Skills Funding Agency,24/03/2016,Hospitality,Employer & Provider Services North East & Yorkshire,Agency Staff Member,SCLAIM_45166,10.9,Staff Expenses Claim
BIS,Skills Funding Agency,24/03/2016,Other Fuel Car Mileage,Finance Division - Provider Finance,Agency Staff Member,SCLAIM_45178,-63.6,Staff Expenses Claim
BIS,Skills Funding Agency,24/03/2016,Other Fuel Car Mileage,Large Companies Unit,Agency Staff Member,SCLAIM_45170,623.7,Staff Expenses Claim
BIS,Skills Funding Agency,24/03/2016,Other Fuel Car Mileage,Operations Finance - Financial Management,Agency Staff Member,SCLAIM_45176,-83,Staff Expenses Claim
BIS,Skills Funding Agency,24/03/2016,Other Fuel Car Mileage,Operations Finance - Financial Management,Agency Staff Member,SCLAIM_45177,-23.6,Staff Expenses Claim
BIS,Skills Funding Agency,24/03/2016,Other Travel,Apprenticeships & Delivery Services - Apprenticeships & Employer Policy Implementation,Agency Staff Member,SCLAIM_45167,43.25,Staff Expenses Claim
BIS,Skills Funding Agency,24/03/2016,Other Travel,Apprenticeships & Delivery Services - Apprenticeships & Employer Policy Implementation,Agency Staff Member,SCLAIM_45169,20.5,Staff Expenses Claim
BIS,Skills Funding Agency,24/03/2016,Other Travel,Central Delivery Service - European Social Fund - Audit Compliance,Agency Staff Member,SCLAIM_45171,25.2,Staff Expenses Claim
BIS,Skills Funding Agency,24/03/2016,Other Travel,Chief Executive Office - Communications,Agency Staff Member,SCLAIM_45175,152.7,Staff Expenses Claim
BIS,Skills Funding Agency,24/03/2016,Other Travel,Employer & Provider Services North East & Yorkshire,Agency Staff Member,SCLAIM_45166,19,Staff Expenses Claim
BIS,Skills Funding Agency,24/03/2016,Other Travel,Employer & Provider Services North West,Agency Staff Member,SCLAIM_45144,134.7,Staff Expenses Claim
BIS,Skills Funding Agency,24/03/2016,Other Travel,Employer & Provider Services North West,Agency Staff Member,SCLAIM_45154,20.1,Staff Expenses Claim
BIS,Skills Funding Agency,24/03/2016,Other Travel,Employer & Provider Services South East,Agency Staff Member,SCLAIM_45163,6,Staff Expenses Claim
BIS,Skills Funding Agency,24/03/2016,Other Travel,Finance Division - Provider Finance,Agency Staff Member,SCLAIM_45139,6.68,Staff Expenses Claim
BIS,Skills Funding Agency,24/03/2016,Other Travel,Finance Division - Provider Finance,Agency Staff Member,SCLAIM_45140,14.8,Staff Expenses Claim
BIS,Skills Funding Agency,24/03/2016,Other Travel,Finance Division - Provider Finance,Agency Staff Member,SCLAIM_45178,72,Staff Expenses Claim
BIS,Skills Funding Agency,24/03/2016,Other Travel,Funding & Programmes - Funding Policy Implementation Programmes,Agency Staff Member,SCLAIM_45145,259,Staff Expenses Claim
BIS,Skills Funding Agency,24/03/2016,Other Travel,Large Companies Unit,Agency Staff Member,SCLAIM_45170,59,Staff Expenses Claim
BIS,Skills Funding Agency,24/03/2016,Other Travel,Operations Finance - Financial Management,Agency Staff Member,SCLAIM_45149,3.9,Staff Expenses Claim
BIS,Skills Funding Agency,24/03/2016,Other Travel,Operations Finance - Financial Management,Agency Staff Member,SCLAIM_45176,80.5,Staff Expenses Claim
BIS,Skills Funding Agency,24/03/2016,Other Travel,Operations Finance - Financial Management,Agency Staff Member,SCLAIM_45177,34.5,Staff Expenses Claim
BIS,Skills Funding Agency,24/03/2016,Other Travel,Operations ICT - Information & Communication Technology - Technical,Agency Staff Member,SCLAIM_45148,6,Staff Expenses Claim
BIS,Skills Funding Agency,24/03/2016,Petrol Car Mileage Passenger Supplement,Finance Division - Provider Finance,Agency Staff Member,SCLAIM_45140,3.8,Staff Expenses Claim
BIS,Skills Funding Agency,24/03/2016,Petrol Car Mileage,Apprenticeships & Delivery Services - Apprenticeships & Employer Policy Implementation,Agency Staff Member,SCLAIM_45167,142.2,Staff Expenses Claim
BIS,Skills Funding Agency,24/03/2016,Petrol Car Mileage,Apprenticeships & Delivery Services - Apprenticeships & Employer Policy Implementation,Agency Staff Member,SCLAIM_45169,279,Staff Expenses Claim
BIS,Skills Funding Agency,24/03/2016,Petrol Car Mileage,Employer & Provider Services London,Agency Staff Member,SCLAIM_45155,171,Staff Expenses Claim
BIS,Skills Funding Agency,24/03/2016,Petrol Car Mileage,Employer & Provider Services North East & Yorkshire,Agency Staff Member,SCLAIM_45166,185.4,Staff Expenses Claim
BIS,Skills Funding Agency,24/03/2016,Petrol Car Mileage,Employer & Provider Services North West,Agency Staff Member,SCLAIM_45144,482.85,Staff Expenses Claim
BIS,Skills Funding Agency,24/03/2016,Petrol Car Mileage,Employer & Provider Services North West,Agency Staff Member,SCLAIM_45154,66.15,Staff Expenses Claim
BIS,Skills Funding Agency,24/03/2016,Petrol Car Mileage,Employer & Provider Services South East,Agency Staff Member,SCLAIM_45161,399.6,Staff Expenses Claim
BIS,Skills Funding Agency,24/03/2016,Petrol Car Mileage,Employer & Provider Services South East,Agency Staff Member,SCLAIM_45163,585,Staff Expenses Claim
BIS,Skills Funding Agency,24/03/2016,Petrol Car Mileage,Finance Division - Provider Finance,Agency Staff Member,SCLAIM_45140,56.7,Staff Expenses Claim
BIS,Skills Funding Agency,24/03/2016,Petrol Car Mileage,Finance Division - Provider Finance,Agency Staff Member,SCLAIM_45142,19.8,Staff Expenses Claim
BIS,Skills Funding Agency,24/03/2016,Petrol Car Mileage,Finance Division - Provider Finance,Agency Staff Member,SCLAIM_45151,154.8,Staff Expenses Claim
BIS,Skills Funding Agency,24/03/2016,Petrol Car Mileage,Finance Division - Provider Finance,Agency Staff Member,SCLAIM_45152,244.8,Staff Expenses Claim
BIS,Skills Funding Agency,24/03/2016,Petrol Car Mileage,Funding & Programmes - Funding Policy Implementation Programmes,Agency Staff Member,SCLAIM_45145,29.7,Staff Expenses Claim
BIS,Skills Funding Agency,24/03/2016,Petrol Car Mileage,Funding & Programmes - Provider Management & Intervention North,Agency Staff Member,SCLAIM_45156,111.15,Staff Expenses Claim
BIS,Skills Funding Agency,24/03/2016,Petrol Car Mileage,Operations Finance - Financial Management,Agency Staff Member,SCLAIM_45177,21.6,Staff Expenses Claim
BIS,Skills Funding Agency,24/03/2016,Professional Subscriptions,Central Delivery Service - European Social Fund - Audit Compliance,Agency Staff Member,SCLAIMPRO_936,238,Staff Expenses Claim
BIS,Skills Funding Agency,24/03/2016,Professional Subscriptions,Operations Finance - Financial Management,Agency Staff Member,SCLAIMPRO_935,221,Staff Expenses Claim
BIS,Skills Funding Agency,24/03/2016,Rail Warrants & Tickets,Chief Executive Office - Communications,Agency Staff Member,SCLAIM_45174,53.3,Staff Expenses Claim
BIS,Skills Funding Agency,24/03/2016,Rail Warrants & Tickets,Finance Division - Provider Finance,Agency Staff Member,SCLAIM_45139,11.2,Staff Expenses Claim
BIS,Skills Funding Agency,24/03/2016,Rail Warrants & Tickets,Finance Division - Provider Finance,Agency Staff Member,SCLAIM_45140,29,Staff Expenses Claim
BIS,Skills Funding Agency,24/03/2016,Rail Warrants & Tickets,Finance Division - Provider Finance,Agency Staff Member,SCLAIM_45159,30,Staff Expenses Claim
BIS,Skills Funding Agency,24/03/2016,Rail Warrants & Tickets,Funding & Programmes - Provider Management & Intervention North,Agency Staff Member,SCLAIM_45156,73.7,Staff Expenses Claim
BIS,Skills Funding Agency,24/03/2016,Rail Warrants & Tickets,Large Companies Unit,Agency Staff Member,SCLAIM_45170,39.7,Staff Expenses Claim
BIS,Skills Funding Agency,24/03/2016,Rail Warrants & Tickets,Operations Finance - Financial Management,Agency Staff Member,SCLAIM_45176,29.8,Staff Expenses Claim
BIS,Skills Funding Agency,24/03/2016,Rail Warrants & Tickets,Operations Finance - Financial Management,Agency Staff Member,SCLAIM_45177,46.5,Staff Expenses Claim
BIS,Skills Funding Agency,24/03/2016,Rail Warrants & Tickets,Operations ICT - Information & Communication Technology - Technical,Agency Staff Member,SCLAIM_45148,85,Staff Expenses Claim
BIS,Skills Funding Agency,24/03/2016,Self-Drive Car Hire,Apprenticeships & Delivery Services - Apprenticeships & Employer Policy Implementation,Agency Staff Member,SCLAIM_45158,14.35,Staff Expenses Claim
BIS,Skills Funding Agency,24/03/2016,Self-Drive Car Hire,Finance Division - Provider Finance,Agency Staff Member,SCLAIM_45139,13.6,Staff Expenses Claim
BIS,Skills Funding Agency,24/03/2016,Subsistence,Apprenticeships & Delivery Services - Apprenticeships & Employer Policy Implementation,Agency Staff Member,SCLAIM_45160,40,Staff Expenses Claim
BIS,Skills Funding Agency,24/03/2016,Subsistence,Apprenticeships & Delivery Services - Apprenticeships & Employer Policy Implementation,Agency Staff Member,SCLAIM_45169,30,Staff Expenses Claim
BIS,Skills Funding Agency,24/03/2016,Subsistence,Chief Executive Office - Communications,Agency Staff Member,SCLAIM_45174,40,Staff Expenses Claim
BIS,Skills Funding Agency,24/03/2016,Subsistence,Chief Executive Office - Media & Public Affairs,Agency Staff Member,SCLAIM_45150,175,Staff Expenses Claim
BIS,Skills Funding Agency,24/03/2016,Subsistence,Finance Division - Provider Finance,Agency Staff Member,SCLAIM_45139,100,Staff Expenses Claim
BIS,Skills Funding Agency,24/03/2016,Subsistence,Finance Division - Provider Finance,Agency Staff Member,SCLAIM_45140,25,Staff Expenses Claim
BIS,Skills Funding Agency,24/03/2016,Subsistence,Finance Division - Provider Finance,Agency Staff Member,SCLAIM_45151,10,Staff Expenses Claim
BIS,Skills Funding Agency,24/03/2016,Subsistence,Finance Division - Provider Finance,Agency Staff Member,SCLAIM_45152,60,Staff Expenses Claim
BIS,Skills Funding Agency,24/03/2016,Subsistence,Finance Division - Provider Finance,Agency Staff Member,SCLAIM_45159,10,Staff Expenses Claim
BIS,Skills Funding Agency,24/03/2016,Subsistence,Finance Division - Provider Finance,Agency Staff Member,SCLAIM_45178,115.7,Staff Expenses Claim
BIS,Skills Funding Agency,24/03/2016,Subsistence,Funding & Programmes - Delivery & Performance,Agency Staff Member,SCLAIM_45141,50,Staff Expenses Claim
BIS,Skills Funding Agency,24/03/2016,Subsistence,Large Companies Unit,Agency Staff Member,SCLAIM_45170,50,Staff Expenses Claim
BIS,Skills Funding Agency,24/03/2016,Subsistence,Operations Finance - Financial Management,Agency Staff Member,SCLAIM_45149,25,Staff Expenses Claim
BIS,Skills Funding Agency,24/03/2016,Subsistence,Operations Finance - Financial Management,Agency Staff Member,SCLAIM_45176,166.2,Staff Expenses Claim
BIS,Skills Funding Agency,24/03/2016,Subsistence,Operations Finance - Financial Management,Agency Staff Member,SCLAIM_45177,39.6,Staff Expenses Claim
BIS,Skills Funding Agency,24/03/2016,Sundry Items,Employer & Provider Services North West,Agency Staff Member,SCLAIM_45154,8,Staff Expenses Claim
BIS,Skills Funding Agency,24/03/2016,Sundry Items,Operations Finance - Financial Management,Agency Staff Member,SCLAIM_45146,-7.2,Staff Expenses Claim
BIS,Skills Funding Agency,24/03/2016,Sundry Items,Operations Finance - Financial Management,Agency Staff Member,SCLAIM_45149,-43.8,Staff Expenses Claim
BIS,Skills Funding Agency,24/03/2016,Taxis,Apprenticeships & Delivery Services - Apprenticeships & Employer Policy Implementation,Agency Staff Member,SCLAIM_45164,24.53,Staff Expenses Claim
BIS,Skills Funding Agency,24/03/2016,Taxis,Apprenticeships & Delivery Services - Apprenticeships & Employer Policy Implementation,Agency Staff Member,SCLAIM_45165,7,Staff Expenses Claim
BIS,Skills Funding Agency,24/03/2016,Taxis,Apprenticeships & Delivery Services - Marketing,Agency Staff Member,SCLAIM_45162,9.3,Staff Expenses Claim
BIS,Skills Funding Agency,24/03/2016,Taxis,Chief Executive Office - Communications,Agency Staff Member,SCLAIM_45174,12.5,Staff Expenses Claim
BIS,Skills Funding Agency,24/03/2016,Taxis,Chief Executive Office - Media & Public Affairs,Agency Staff Member,SCLAIM_45143,35.4,Staff Expenses Claim
BIS,Skills Funding Agency,24/03/2016,Taxis,Employer & Provider Services London,Agency Staff Member,SCLAIM_45155,18.8,Staff Expenses Claim
BIS,Skills Funding Agency,24/03/2016,Taxis,Finance Division - Provider Finance,Agency Staff Member,SCLAIM_45140,12.6,Staff Expenses Claim
BIS,Skills Funding Agency,24/03/2016,Taxis,Funding & Programmes - Delivery & Performance,Agency Staff Member,SCLAIM_45141,45,Staff Expenses Claim
BIS,Skills Funding Agency,24/03/2016,Taxis,Funding & Programmes - Funding Policy Implementation Programmes,Agency Staff Member,SCLAIM_45145,62.3,Staff Expenses Claim
BIS,Skills Funding Agency,24/03/2016,Taxis,Funding & Programmes - Provider Management & Intervention North,Agency Staff Member,SCLAIM_45156,11.6,Staff Expenses Claim
BIS,Skills Funding Agency,24/03/2016,Taxis,Operations Finance - Financial Management,Agency Staff Member,SCLAIM_45147,15,Staff Expenses Claim
BIS,Skills Funding Agency,24/03/2016,Taxis,Operations Finance - Financial Management,Agency Staff Member,SCLAIM_45149,27,Staff Expenses Claim
BIS,Skills Funding Agency,24/03/2016,Taxis,Operations Finance - Financial Management,Agency Staff Member,SCLAIM_45176,96.55,Staff Expenses Claim
BIS,Skills Funding Agency,01/04/2016,Apprenticeships Marketing,Communications & Marketing,DENTSU AEGIS UK LTD T/A CARAT,SPINVB_30914,"4,273.36",Purchase Invoice
BIS,Skills Funding Agency,01/04/2016,Apprenticeships Marketing,Communications & Marketing,DENTSU AEGIS UK LTD T/A CARAT,SPINVB_30915,"14,725.54",Purchase Invoice
BIS,Skills Funding Agency,01/04/2016,Apprenticeships Marketing,Communications & Marketing,INFERNO LTD,SPINVB_30890,"99,276.00",Purchase Invoice
BIS,Skills Funding Agency,01/04/2016,Apprenticeships Marketing,Communications & Marketing,INFERNO LTD,SPINVB_30891,"68,335.20",Purchase Invoice
BIS,Skills Funding Agency,01/04/2016,Career Development Loans - Programme Support Costs,Main Funding,EDUCATION FUNDING AGENCY,SPINVB_30931,"135,120.00",Purchase Invoice
BIS,Skills Funding Agency,01/04/2016,City Deals Wave 1,Main Funding,SHEFFIELD CITY COUNCIL,SPINVB_30866,"30,000.00",Purchase Invoice
BIS,Skills Funding Agency,01/04/2016,Computer Hardware,Operations ICT - Technical Design Authority,CGI IT UK LIMITED,SPINVB_30894,"19,441.20",Purchase Invoice
BIS,Skills Funding Agency,01/04/2016,Course Fees,Operations Finance - Procurement Services,Agency Staff Member,SCLAIM_45203,116,Staff Expenses Claim
BIS,Skills Funding Agency,01/04/2016,Design,Operations ICT - Projects,CGI IT UK LIMITED,SPINVB_30861,289.2,Purchase Invoice
BIS,Skills Funding Agency,01/04/2016,Diesel Car Mileage Passenger Supplement,Employer & Provider Services North West,Agency Staff Member,SCLAIM_45235,0.2,Staff Expenses Claim
BIS,Skills Funding Agency,01/04/2016,Diesel Car Mileage Passenger Supplement,Employer & Provider Services North West,Agency Staff Member,SCLAIM_45236,0.05,Staff Expenses Claim
BIS,Skills Funding Agency,01/04/2016,Diesel Car Mileage Passenger Supplement,Funding & Programmes - Provider Management & Intervention North,Agency Staff Member,SCLAIM_45196,5.6,Staff Expenses Claim
BIS,Skills Funding Agency,01/04/2016,Diesel Car Mileage Passenger Supplement,Funding & Programmes - Provider Management & Intervention South,Agency Staff Member,SCLAIM_45226,4.5,Staff Expenses Claim
BIS,Skills Funding Agency,01/04/2016,Diesel Car Mileage Passenger Supplement,Funding & Programmes - Provider Management & Intervention South,Agency Staff Member,SCLAIM_45240,2.1,Staff Expenses Claim
BIS,Skills Funding Agency,01/04/2016,Diesel Car Mileage,Apprenticeships & Delivery Services - Apprenticeships & Employer Policy Implementation,Agency Staff Member,SCLAIM_45186,326.7,Staff Expenses Claim
BIS,Skills Funding Agency,01/04/2016,Diesel Car Mileage,Central Delivery Service - European Social Fund - Audit Compliance,Agency Staff Member,SCLAIM_45191,199.8,Staff Expenses Claim
BIS,Skills Funding Agency,01/04/2016,Diesel Car Mileage,Central Delivery Service - Leeds,Agency Staff Member,SCLAIM_45194,151.5,Staff Expenses Claim
BIS,Skills Funding Agency,01/04/2016,Diesel Car Mileage,Central Delivery Service - Leeds,Agency Staff Member,SCLAIM_45270,53,Staff Expenses Claim
BIS,Skills Funding Agency,01/04/2016,Diesel Car Mileage,Employer & Provider Services North West,Agency Staff Member,SCLAIM_45216,260.55,Staff Expenses Claim
BIS,Skills Funding Agency,01/04/2016,Diesel Car Mileage,Employer & Provider Services North West,Agency Staff Member,SCLAIM_45235,80.55,Staff Expenses Claim
BIS,Skills Funding Agency,01/04/2016,Diesel Car Mileage,Employer & Provider Services North West,Agency Staff Member,SCLAIM_45236,111.6,Staff Expenses Claim
BIS,Skills Funding Agency,01/04/2016,Diesel Car Mileage,Employer & Provider Services North West,Agency Staff Member,SCLAIM_45253,73.8,Staff Expenses Claim
BIS,Skills Funding Agency,01/04/2016,Diesel Car Mileage,Employer & Provider Services South East,Agency Staff Member,SCLAIM_45230,103.5,Staff Expenses Claim
BIS,Skills Funding Agency,01/04/2016,Diesel Car Mileage,Finance Division - Provider Finance,Agency Staff Member,SCLAIM_45207,162,Staff Expenses Claim
BIS,Skills Funding Agency,01/04/2016,Diesel Car Mileage,Finance Division - Provider Finance,Agency Staff Member,SCLAIM_45225,423.9,Staff Expenses Claim
BIS,Skills Funding Agency,01/04/2016,Diesel Car Mileage,Finance Division - Provider Finance,Agency Staff Member,SCLAIM_45233,19.35,Staff Expenses Claim
BIS,Skills Funding Agency,01/04/2016,Diesel Car Mileage,Finance Division - Provider Finance,Agency Staff Member,SCLAIM_45255,36,Staff Expenses Claim
BIS,Skills Funding Agency,01/04/2016,Diesel Car Mileage,Finance Division - Provider Finance,Agency Staff Member,SCLAIM_45256,12.6,Staff Expenses Claim
BIS,Skills Funding Agency,01/04/2016,Diesel Car Mileage,Finance Division - Provider Finance,Agency Staff Member,SCLAIM_45257,123.3,Staff Expenses Claim
BIS,Skills Funding Agency,01/04/2016,Diesel Car Mileage,Finance Division - Provider Finance,Agency Staff Member,SCLAIM_45263,99.45,Staff Expenses Claim
BIS,Skills Funding Agency,01/04/2016,Diesel Car Mileage,Finance Division - Provider Finance,Agency Staff Member,SCLAIM_45265,84.6,Staff Expenses Claim
BIS,Skills Funding Agency,01/04/2016,Diesel Car Mileage,Funding & Programmes - Provider Management & Intervention North,Agency Staff Member,SCLAIM_45196,346.5,Staff Expenses Claim
BIS,Skills Funding Agency,01/04/2016,Diesel Car Mileage,Funding & Programmes - Provider Management & Intervention North,Agency Staff Member,SCLAIM_45197,287.1,Staff Expenses Claim
BIS,Skills Funding Agency,01/04/2016,Diesel Car Mileage,Funding & Programmes - Provider Management & Intervention North,Agency Staff Member,SCLAIM_45198,149.4,Staff Expenses Claim
BIS,Skills Funding Agency,01/04/2016,Diesel Car Mileage,Funding & Programmes - Provider Management & Intervention North,Agency Staff Member,SCLAIM_45199,234,Staff Expenses Claim
BIS,Skills Funding Agency,01/04/2016,Diesel Car Mileage,Funding & Programmes - Provider Management & Intervention North,Agency Staff Member,SCLAIM_45200,286.2,Staff Expenses Claim
BIS,Skills Funding Agency,01/04/2016,Diesel Car Mileage,Funding & Programmes - Provider Management & Intervention North,Agency Staff Member,SCLAIM_45222,183.6,Staff Expenses Claim
BIS,Skills Funding Agency,01/04/2016,Diesel Car Mileage,Funding & Programmes - Provider Management & Intervention North,Agency Staff Member,SCLAIM_45252,198,Staff Expenses Claim
BIS,Skills Funding Agency,01/04/2016,Diesel Car Mileage,Funding & Programmes - Provider Management & Intervention South,Agency Staff Member,SCLAIM_45226,247.05,Staff Expenses Claim
BIS,Skills Funding Agency,01/04/2016,Diesel Car Mileage,Funding & Programmes - Provider Management & Intervention South,Agency Staff Member,SCLAIM_45240,228.6,Staff Expenses Claim
BIS,Skills Funding Agency,01/04/2016,Diesel Car Mileage,Funding & Programmes - Provider Management & Intervention South,Agency Staff Member,SCLAIM_45241,93.6,Staff Expenses Claim
BIS,Skills Funding Agency,01/04/2016,Diesel Car Mileage,Funding & Programmes - Provider Management & Intervention South,Agency Staff Member,SCLAIM_45242,220.5,Staff Expenses Claim
BIS,Skills Funding Agency,01/04/2016,Diesel Car Mileage,Funding & Programmes - Provider Management & Intervention South,Agency Staff Member,SCLAIM_45243,419.4,Staff Expenses Claim
BIS,Skills Funding Agency,01/04/2016,Diesel Car Mileage,Funding & Programmes - Provider Management & Intervention South,Agency Staff Member,SCLAIM_45244,300.6,Staff Expenses Claim
BIS,Skills Funding Agency,01/04/2016,Diesel Car Mileage,Funding & Programmes - Provider Management & Intervention South,Agency Staff Member,SCLAIM_45245,215.1,Staff Expenses Claim
BIS,Skills Funding Agency,01/04/2016,Diesel Car Mileage,Funding & Programmes - Provider Management & Intervention South,Agency Staff Member,SCLAIM_45247,217.8,Staff Expenses Claim
BIS,Skills Funding Agency,01/04/2016,Diesel Car Mileage,Funding & Programmes - Provider Management & Intervention South,Agency Staff Member,SCLAIM_45262,172.5,Staff Expenses Claim
BIS,Skills Funding Agency,01/04/2016,Equipment Consumables,Operations ICT - Technical Design Authority,XMA LTD,SPINVB_30953,"10,639.28",Purchase Invoice
BIS,Skills Funding Agency,01/04/2016,Eye Tests,Apprenticeships & Delivery Services - Marketing,Agency Staff Member,SCLAIM_45264,80,Staff Expenses Claim
BIS,Skills Funding Agency,01/04/2016,Eye Tests,Central Delivery Service - European Social Fund - Audit Compliance,Agency Staff Member,SCLAIM_45191,20,Staff Expenses Claim
BIS,Skills Funding Agency,01/04/2016,Eye Tests,Employer & Provider Services South East,Agency Staff Member,SCLAIM_45230,60,Staff Expenses Claim
BIS,Skills Funding Agency,01/04/2016,Eye Tests,Operations ICT - Information & Communication Technology - Technical,Agency Staff Member,SCLAIM_45261,70,Staff Expenses Claim
BIS,Skills Funding Agency,01/04/2016,Hardware Maintenance & Repair,Operations ICT - Technical Design Authority,CGI IT UK LIMITED,SPINVB_30888,"23,251.20",Purchase Invoice
BIS,Skills Funding Agency,01/04/2016,Hardware Maintenance & Repair,Operations ICT - Technical Design Authority,CGI IT UK LIMITED,SPINVB_30889,"157,694.40",Purchase Invoice
BIS,Skills Funding Agency,01/04/2016,Hardware Maintenance & Repair,Operations ICT - Technical Design Authority,UNIFY ENTERPRISE COMMUNICATIONS LTD,SPINVB_30851,"5,760.00",Purchase Invoice
BIS,Skills Funding Agency,01/04/2016,Hospitality,Funding & Programmes - Provider Management & Intervention South,Agency Staff Member,SCLAIM_45245,8.5,Staff Expenses Claim
BIS,Skills Funding Agency,01/04/2016,Hosting,Operations ICT - Projects,CGI IT UK LIMITED,SPINVB_30925,"17,595.60",Purchase Invoice
BIS,Skills Funding Agency,01/04/2016,Hosting,Operations ICT - Projects,CGI IT UK LIMITED,SPINVB_30926,"24,000.00",Purchase Invoice
BIS,Skills Funding Agency,01/04/2016,Hosting,Operations ICT - Technical Design Authority,CGI IT UK LIMITED,SPINVB_30910,"170,067.26",Purchase Invoice
BIS,Skills Funding Agency,01/04/2016,Hosting,Operations ICT - Technical Design Authority,CGI IT UK LIMITED,SPINVB_30924,"2,673.00",Purchase Invoice
BIS,Skills Funding Agency,01/04/2016,Hosting,Operations ICT - Technical Design Authority,SPECIALIST COMPUTER CENTRES PLC,SPINVB_30954,"28,800.00",Purchase Invoice
BIS,Skills Funding Agency,01/04/2016,Hosting,Operations ICT - Technical Design Authority,SPECIALIST COMPUTER CENTRES PLC,SPINVB_30955,"4,290.00",Purchase Invoice
BIS,Skills Funding Agency,01/04/2016,Hotel Accommodation,Apprenticeships & Delivery Services - Marketing,Agency Staff Member,SCLAIM_45218,104,Staff Expenses Claim
BIS,Skills Funding Agency,01/04/2016,Implementation,Operations ICT - Projects,CGI IT UK LIMITED,SPINVB_30927,"9,684.00",Purchase Invoice
BIS,Skills Funding Agency,01/04/2016,Landline Telephone Service,Operations ICT - Technical Design Authority,CGI IT UK LIMITED,SPINVB_30860,"4,878.00",Purchase Invoice
BIS,Skills Funding Agency,01/04/2016,Landline Telephone Service,Operations ICT - Technical Design Authority,LEVEL 3 COMMUNICATIONS UK LIMITED,SPINVB_30940,"66,360.32",Purchase Invoice
BIS,Skills Funding Agency,01/04/2016,Licences,Operations ICT - Business IT - Agency Services,SERVICENOW NEDERLAND B.V.,SPINVB_30942,"2,432.00",Purchase Invoice
BIS,Skills Funding Agency,01/04/2016,Licences,Operations ICT - Technical Design Authority,TRUSTMARQUE SOLUTIONS LIMITED,SPINVB_30928,"10,260.11",Purchase Invoice
BIS,Skills Funding Agency,01/04/2016,Licences,Operations ICT - Technical Design Authority,TRUSTMARQUE SOLUTIONS LIMITED,SPINVB_30929,923.15,Purchase Invoice
BIS,Skills Funding Agency,01/04/2016,Managed IT Service,Funding & Programmes - Delivery & Performance - Performance & Management Information,LOCKHEED MARTIN BUSINESS TECHNOLOGY SOLUTIONS LIMITED,SPINVB_30905,"11,995.20",Purchase Invoice
BIS,Skills Funding Agency,01/04/2016,Managed IT Service,Funding & Programmes - Funding Systems and Information,ANALYSE-CONCEPT LTD,SPINVB_30883,840,Purchase Invoice
BIS,Skills Funding Agency,01/04/2016,Managed IT Service,Funding & Programmes - Funding Systems and Information,ANALYSE-CONCEPT LTD,SPINVB_30896,"17,640.00",Purchase Invoice
BIS,Skills Funding Agency,01/04/2016,Managed IT Service,Funding & Programmes - Funding Systems and Information,ANALYSE-CONCEPT LTD,SPINVB_30897,"16,800.00",Purchase Invoice
BIS,Skills Funding Agency,01/04/2016,Managed IT Service,Funding & Programmes - Funding Systems and Information,ANALYSE-CONCEPT LTD,SPINVB_30899,"15,120.00",Purchase Invoice
BIS,Skills Funding Agency,01/04/2016,Managed IT Service,Funding & Programmes - Funding Systems and Information,DIGI2AL LTD,SPINVB_30722,"2,520.00",Purchase Invoice
BIS,Skills Funding Agency,01/04/2016,Managed IT Service,Funding & Programmes - Funding Systems and Information,DIGI2AL LTD,SPINVB_30724,"8,568.00",Purchase Invoice
BIS,Skills Funding Agency,01/04/2016,Managed IT Service,Funding & Programmes - Funding Systems and Information,VALTECH LIMITED,SPINVB_30667,"2,808.00",Purchase Invoice
BIS,Skills Funding Agency,01/04/2016,Managed IT Service,Funding & Programmes - Funding Systems and Information,VALTECH LIMITED,SPINVB_30668,108,Purchase Invoice
BIS,Skills Funding Agency,01/04/2016,Managed IT Service,Funding & Programmes - Funding Systems and Information,VALTECH LIMITED,SPINVB_30669,"10,800.00",Purchase Invoice
BIS,Skills Funding Agency,01/04/2016,Managed IT Service,Funding & Programmes - Funding Systems and Information,VALTECH LIMITED,SPINVB_30670,"43,980.00",Purchase Invoice
BIS,Skills Funding Agency,01/04/2016,Managed IT Service,Operations ICT - Technical Design Authority,PIREAN LIMITED,SPINVB_30956,"31,140.00",Purchase Invoice
BIS,Skills Funding Agency,01/04/2016,"National Apprenticeship Service - Business, Innovation & Skills - Non-Participation",Communications & Marketing,DENTSU AEGIS UK LTD T/A CARAT,SPCRNB_1095,"-11,768.06",Purchase Credit Note
BIS,Skills Funding Agency,01/04/2016,"National Apprenticeship Service - Business, Innovation & Skills - Non-Participation",Communications & Marketing,DENTSU AEGIS UK LTD T/A CARAT,SPINVB_27292,"29,725.24",Purchase Invoice
BIS,Skills Funding Agency,01/04/2016,"National Apprenticeship Service - Business, Innovation & Skills - Non-Participation",Communications & Marketing,INFERNO LTD,SPINVB_30892,"7,632.00",Purchase Invoice
BIS,Skills Funding Agency,01/04/2016,"National Apprenticeship Service - Business, Innovation & Skills - Non-Participation",Main Funding,BATH & NORTH EAST SOMERSET COUNCIL,SPINVB_30939,"3,000.00",Purchase Invoice
BIS,Skills Funding Agency,01/04/2016,"National Apprenticeship Service - Business, Innovation & Skills - Non-Participation",Main Funding,DERBYSHIRE & NOTTINGHAMSHIRE CHAMBER OF COMMERCE & INDUSTRY,SPINVB_30947,"3,000.00",Purchase Invoice
BIS,Skills Funding Agency,01/04/2016,"National Apprenticeship Service - Business, Innovation & Skills - Non-Participation",Main Funding,GFIRST LIMITED,SPINVB_30902,"2,000.00",Purchase Invoice
BIS,Skills Funding Agency,01/04/2016,"National Apprenticeship Service - Business, Innovation & Skills - Non-Participation",Main Funding,HEALTH EDUCATION ENGLAND,SPINVB_30957,"1,200.00",Purchase Invoice
BIS,Skills Funding Agency,01/04/2016,"National Apprenticeship Service - Business, Innovation & Skills - Non-Participation",Main Funding,HOST POLICY RESEARCH,SPINVB_30885,"10,548.00",Purchase Invoice
BIS,Skills Funding Agency,01/04/2016,"National Apprenticeship Service - Business, Innovation & Skills - Non-Participation",Main Funding,IFF RESEARCH LTD,SPINVB_30886,"28,269.30",Purchase Invoice
BIS,Skills Funding Agency,01/04/2016,"National Apprenticeship Service - Business, Innovation & Skills - Non-Participation",Main Funding,IFF RESEARCH LTD,SPINVB_30887,"49,279.50",Purchase Invoice
BIS,Skills Funding Agency,01/04/2016,"National Apprenticeship Service - Business, Innovation & Skills - Non-Participation",Main Funding,KINGSTON UPON HULL CITY COUNCIL,SPINVB_30853,"3,000.00",Purchase Invoice
BIS,Skills Funding Agency,01/04/2016,"National Apprenticeship Service - Business, Innovation & Skills - Non-Participation",Main Funding,KINGSTON UPON HULL CITY COUNCIL,SPINVB_30884,"4,999.00",Purchase Invoice
BIS,Skills Funding Agency,01/04/2016,"National Apprenticeship Service - Business, Innovation & Skills - Non-Participation",Main Funding,LANCASHIRE COUNTY DEVELOPMENTS LTD,SPINVB_30848,"3,000.00",Purchase Invoice
BIS,Skills Funding Agency,01/04/2016,"National Apprenticeship Service - Business, Innovation & Skills - Non-Participation",Main Funding,LANCASHIRE COUNTY DEVELOPMENTS LTD,SPINVB_30904,"3,600.00",Purchase Invoice
BIS,Skills Funding Agency,01/04/2016,"National Apprenticeship Service - Business, Innovation & Skills - Non-Participation",Main Funding,NORTHAMPTONSHIRE ENTERPRISE PARTNERSHIP,SPINVB_30768,"3,000.00",Purchase Invoice
BIS,Skills Funding Agency,01/04/2016,"National Apprenticeship Service - Business, Innovation & Skills - Non-Participation",Main Funding,PTP TRAINING LTD,SPINVB_30901,"1,500.00",Purchase Invoice
BIS,Skills Funding Agency,01/04/2016,"National Apprenticeship Service - Business, Innovation & Skills - Non-Participation",Main Funding,PX LIMITED,SPINVB_30903,"1,920.00",Purchase Invoice
BIS,Skills Funding Agency,01/04/2016,"National Apprenticeship Service - Business, Innovation & Skills - Non-Participation",Main Funding,SHROPSHIRE COUNTY COUNCIL,SPINVB_30918,"2,400.00",Purchase Invoice
BIS,Skills Funding Agency,01/04/2016,"National Apprenticeship Service - Business, Innovation & Skills - Non-Participation",Main Funding,SMALL FIRMS ENTERPRISE DEVELOPMENT INITIATIVE LIMITED,SPINVB_30874,"5,977.17",Purchase Invoice
BIS,Skills Funding Agency,01/04/2016,"National Apprenticeship Service - Business, Innovation & Skills - Non-Participation",Main Funding,SMALL FIRMS ENTERPRISE DEVELOPMENT INITIATIVE LIMITED,SPINVB_30875,"5,977.17",Purchase Invoice
BIS,Skills Funding Agency,01/04/2016,"National Apprenticeship Service - Business, Innovation & Skills - Non-Participation",Main Funding,SOLIHULL COLLEGE,SPINVB_30948,"1,527.00",Purchase Invoice
BIS,Skills Funding Agency,01/04/2016,"National Apprenticeship Service - Business, Innovation & Skills - Non-Participation",Main Funding,SOLIHULL METRO BOROUGH COUNCIL,SPINVB_30966,"3,000.00",Purchase Invoice
BIS,Skills Funding Agency,01/04/2016,"National Apprenticeship Service - Business, Innovation & Skills - Non-Participation",Main Funding,STOKE ON TRENT COLLEGE,SPINVB_30938,"3,000.00",Purchase Invoice
BIS,Skills Funding Agency,01/04/2016,National Careers Service Development,Main Funding,DEPARTMENT FOR WORK & PENSIONS,SPINVB_30959,"23,605.49",Purchase Invoice
BIS,Skills Funding Agency,01/04/2016,Next Step Helpline,Main Funding,TRIBAL EDUCATION LTD,SPINVB_30962,"77,575.20",Purchase Invoice
BIS,Skills Funding Agency,01/04/2016,Office Refreshments,Operations Finance - Financial Management,CITY & WEST END DAIRY LIMITED,SPINVB_30960,30.72,Purchase Invoice
BIS,Skills Funding Agency,01/04/2016,Office Refreshments,Operations Finance - Financial Management,MADELEY DAIRIES,SPINVB_30922,59.16,Purchase Invoice
BIS,Skills Funding Agency,01/04/2016,Other Fuel Car Mileage,Chief Executive Office - Media & Public Affairs,Agency Staff Member,SCLAIM_45217,5.4,Staff Expenses Claim
BIS,Skills Funding Agency,01/04/2016,Other Fuel Car Mileage,Employer & Provider Services North East & Yorkshire,Agency Staff Member,SCLAIM_45215,400.95,Staff Expenses Claim
BIS,Skills Funding Agency,01/04/2016,Other Fuel Car Mileage,Finance Division - Provider Finance,Agency Staff Member,SCLAIM_45229,-14.05,Staff Expenses Claim
BIS,Skills Funding Agency,01/04/2016,Other Fuel Car Mileage,Funding & Programmes - Provider Management & Intervention Central,Agency Staff Member,SCLAIM_45202,-11.7,Staff Expenses Claim
BIS,Skills Funding Agency,01/04/2016,Other Fuel Car Mileage,Funding & Programmes - Provider Management & Intervention South,Agency Staff Member,SCLAIM_45188,479.7,Staff Expenses Claim
BIS,Skills Funding Agency,01/04/2016,Other Fuel Car Mileage,National Careers & Learner Services,Agency Staff Member,SCLAIM_45221,1.7,Staff Expenses Claim
BIS,Skills Funding Agency,01/04/2016,Other Travel,Apprenticeships & Delivery Services - Apprenticeships & Employer Policy Implementation,Agency Staff Member,SCLAIM_45186,34,Staff Expenses Claim
BIS,Skills Funding Agency,01/04/2016,Other Travel,Apprenticeships & Delivery Services - Apprenticeships & Employer Policy Implementation,Agency Staff Member,SCLAIM_45193,11,Staff Expenses Claim
BIS,Skills Funding Agency,01/04/2016,Other Travel,Apprenticeships & Delivery Services - Marketing,Agency Staff Member,SCLAIM_45218,39.4,Staff Expenses Claim
BIS,Skills Funding Agency,01/04/2016,Other Travel,Apprenticeships & Delivery Services - Marketing,Agency Staff Member,SCLAIM_45264,21,Staff Expenses Claim
BIS,Skills Funding Agency,01/04/2016,Other Travel,Central Delivery Service - Birmingham,Agency Staff Member,SCLAIM_45183,26,Staff Expenses Claim
BIS,Skills Funding Agency,01/04/2016,Other Travel,Central Delivery Service - European Social Fund - Audit Compliance,Agency Staff Member,SCLAIM_44833,-10,Staff Expenses Claim
BIS,Skills Funding Agency,01/04/2016,Other Travel,Central Delivery Service - European Social Fund - Audit Compliance,Agency Staff Member,SCLAIM_44834,10,Staff Expenses Claim
BIS,Skills Funding Agency,01/04/2016,Other Travel,Central Delivery Service - European Social Fund - Audit Compliance,Agency Staff Member,SCLAIM_45180,40,Staff Expenses Claim
BIS,Skills Funding Agency,01/04/2016,Other Travel,Central Delivery Service - European Social Fund - Audit Compliance,Agency Staff Member,SCLAIM_45181,8,Staff Expenses Claim
BIS,Skills Funding Agency,01/04/2016,Other Travel,Central Delivery Service - European Social Fund - Audit Compliance,Agency Staff Member,SCLAIM_45191,15.6,Staff Expenses Claim
BIS,Skills Funding Agency,01/04/2016,Other Travel,Central Delivery Service - European Social Fund - Audit Compliance,Agency Staff Member,SCLAIM_45192,4,Staff Expenses Claim
BIS,Skills Funding Agency,01/04/2016,Other Travel,Central Delivery Service - European Social Fund - Audit Compliance,Agency Staff Member,SCLAIM_45205,19.2,Staff Expenses Claim
BIS,Skills Funding Agency,01/04/2016,Other Travel,Chief Executive Office - Media & Public Affairs,Agency Staff Member,SCLAIM_45217,33.99,Staff Expenses Claim
BIS,Skills Funding Agency,01/04/2016,Other Travel,Employer & Provider Services North East & Yorkshire,Agency Staff Member,SCLAIM_45215,16,Staff Expenses Claim
BIS,Skills Funding Agency,01/04/2016,Other Travel,Employer & Provider Services North West,Agency Staff Member,SCLAIM_45216,58.8,Staff Expenses Claim
BIS,Skills Funding Agency,01/04/2016,Other Travel,Employer & Provider Services North West,Agency Staff Member,SCLAIM_45235,21.2,Staff Expenses Claim
BIS,Skills Funding Agency,01/04/2016,Other Travel,Employer & Provider Services North West,Agency Staff Member,SCLAIM_45236,40.4,Staff Expenses Claim
BIS,Skills Funding Agency,01/04/2016,Other Travel,Employer & Provider Services North West,Agency Staff Member,SCLAIM_45253,19.3,Staff Expenses Claim
BIS,Skills Funding Agency,01/04/2016,Other Travel,Employer & Provider Services North West,Agency Staff Member,SCLAIM_45268,23.8,Staff Expenses Claim
BIS,Skills Funding Agency,01/04/2016,Other Travel,Employer & Provider Services South East,Agency Staff Member,SCLAIM_45230,25.5,Staff Expenses Claim
BIS,Skills Funding Agency,01/04/2016,Other Travel,Employer & Provider Services South East,Agency Staff Member,SCLAIM_45260,3.34,Staff Expenses Claim
BIS,Skills Funding Agency,01/04/2016,Other Travel,Finance Division - Provider Finance,Agency Staff Member,SCLAIM_45207,9.5,Staff Expenses Claim
BIS,Skills Funding Agency,01/04/2016,Other Travel,Finance Division - Provider Finance,Agency Staff Member,SCLAIM_45225,46,Staff Expenses Claim
BIS,Skills Funding Agency,01/04/2016,Other Travel,Finance Division - Provider Finance,Agency Staff Member,SCLAIM_45229,37,Staff Expenses Claim
BIS,Skills Funding Agency,01/04/2016,Other Travel,Finance Division - Provider Finance,Agency Staff Member,SCLAIM_45233,3.3,Staff Expenses Claim
BIS,Skills Funding Agency,01/04/2016,Other Travel,Finance Division - Provider Finance,Agency Staff Member,SCLAIM_45255,8,Staff Expenses Claim
BIS,Skills Funding Agency,01/04/2016,Other Travel,Finance Division - Provider Finance,Agency Staff Member,SCLAIM_45256,4.7,Staff Expenses Claim
BIS,Skills Funding Agency,01/04/2016,Other Travel,Finance Division - Provider Finance,Agency Staff Member,SCLAIM_45257,43.4,Staff Expenses Claim
BIS,Skills Funding Agency,01/04/2016,Other Travel,Finance Division - Provider Finance,Agency Staff Member,SCLAIM_45263,1,Staff Expenses Claim
BIS,Skills Funding Agency,01/04/2016,Other Travel,Finance Division - Provider Finance,Agency Staff Member,SCLAIM_45265,20.2,Staff Expenses Claim
BIS,Skills Funding Agency,01/04/2016,Other Travel,Finance Division - Provider Financial Assurance Audit,Agency Staff Member,SCLAIM_45231,4,Staff Expenses Claim
BIS,Skills Funding Agency,01/04/2016,Other Travel,Funding & Programmes - Localism Policy Implementation,Agency Staff Member,SCLAIM_45250,-15,Staff Expenses Claim
BIS,Skills Funding Agency,01/04/2016,Other Travel,Funding & Programmes - Localism Policy Implementation,Agency Staff Member,SCLAIM_45251,-6.5,Staff Expenses Claim
BIS,Skills Funding Agency,01/04/2016,Other Travel,Funding & Programmes - Provider Management & Intervention Central,Agency Staff Member,SCLAIM_45202,4,Staff Expenses Claim
BIS,Skills Funding Agency,01/04/2016,Other Travel,Funding & Programmes - Provider Management & Intervention North,Agency Staff Member,SCLAIM_45199,15,Staff Expenses Claim
BIS,Skills Funding Agency,01/04/2016,Other Travel,Funding & Programmes - Provider Management & Intervention North,Agency Staff Member,SCLAIM_45222,48.7,Staff Expenses Claim
BIS,Skills Funding Agency,01/04/2016,Other Travel,Funding & Programmes - Provider Management & Intervention North,Agency Staff Member,SCLAIM_45252,61.9,Staff Expenses Claim
BIS,Skills Funding Agency,01/04/2016,Other Travel,Funding & Programmes - Provider Management & Intervention South,Agency Staff Member,SCLAIM_45188,16,Staff Expenses Claim
BIS,Skills Funding Agency,01/04/2016,Other Travel,Funding & Programmes - Provider Management & Intervention South,Agency Staff Member,SCLAIM_45189,11,Staff Expenses Claim
BIS,Skills Funding Agency,01/04/2016,Other Travel,Funding & Programmes - Provider Management & Intervention South,Agency Staff Member,SCLAIM_45240,8,Staff Expenses Claim
BIS,Skills Funding Agency,01/04/2016,Other Travel,Funding & Programmes - Provider Management & Intervention South,Agency Staff Member,SCLAIM_45241,17,Staff Expenses Claim
BIS,Skills Funding Agency,01/04/2016,Other Travel,Funding & Programmes - Provider Management & Intervention South,Agency Staff Member,SCLAIM_45242,33.1,Staff Expenses Claim
BIS,Skills Funding Agency,01/04/2016,Other Travel,Funding & Programmes - Provider Management & Intervention South,Agency Staff Member,SCLAIM_45243,14.5,Staff Expenses Claim
BIS,Skills Funding Agency,01/04/2016,Other Travel,Funding & Programmes - Provider Management & Intervention South,Agency Staff Member,SCLAIM_45244,4.5,Staff Expenses Claim
BIS,Skills Funding Agency,01/04/2016,Other Travel,Funding & Programmes - Provider Management & Intervention South,Agency Staff Member,SCLAIM_45245,21.2,Staff Expenses Claim
BIS,Skills Funding Agency,01/04/2016,Other Travel,Funding & Programmes - Provider Management & Intervention South,Agency Staff Member,SCLAIM_45247,10,Staff Expenses Claim
BIS,Skills Funding Agency,01/04/2016,Other Travel,Funding & Programmes - Provider Management & Intervention South,Agency Staff Member,SCLAIM_45262,11,Staff Expenses Claim
BIS,Skills Funding Agency,01/04/2016,Other Travel,Large Companies Unit,Agency Staff Member,SCLAIM_45213,40.5,Staff Expenses Claim
BIS,Skills Funding Agency,01/04/2016,Other Travel,Large Companies Unit,Agency Staff Member,SCLAIM_45220,92.7,Staff Expenses Claim
BIS,Skills Funding Agency,01/04/2016,Other Travel,Large Companies Unit,Agency Staff Member,SCLAIM_45246,40,Staff Expenses Claim
BIS,Skills Funding Agency,01/04/2016,Other Travel,Marketing & Communications,Agency Staff Member,SCLAIM_45179,15.8,Staff Expenses Claim
BIS,Skills Funding Agency,01/04/2016,Other Travel,National Careers & Learner Services,Agency Staff Member,SCLAIM_45182,1.5,Staff Expenses Claim
BIS,Skills Funding Agency,01/04/2016,Other Travel,National Careers & Learner Services,Agency Staff Member,SCLAIM_45232,3,Staff Expenses Claim
BIS,Skills Funding Agency,01/04/2016,Other Travel,Operations ICT - Citizen Digital Service,Agency Staff Member,SCLAIM_45210,75.9,Staff Expenses Claim
BIS,Skills Funding Agency,01/04/2016,Petrol Car Mileage Passenger Supplement,Central Delivery Service - European Social Fund - Audit Compliance,Agency Staff Member,SCLAIM_44834,10.8,Staff Expenses Claim
BIS,Skills Funding Agency,01/04/2016,Petrol Car Mileage Passenger Supplement,Large Companies Unit,Agency Staff Member,SCLAIM_45213,11.2,Staff Expenses Claim
BIS,Skills Funding Agency,01/04/2016,Petrol Car Mileage,Apprenticeships & Delivery Services - Apprenticeships & Employer Policy Implementation,Agency Staff Member,SCLAIM_45185,35.1,Staff Expenses Claim
BIS,Skills Funding Agency,01/04/2016,Petrol Car Mileage,Apprenticeships & Delivery Services - Apprenticeships & Employer Policy Implementation,Agency Staff Member,SCLAIM_45193,107.1,Staff Expenses Claim
BIS,Skills Funding Agency,01/04/2016,Petrol Car Mileage,Apprenticeships & Delivery Services - Marketing,Agency Staff Member,SCLAIM_45218,41.4,Staff Expenses Claim
BIS,Skills Funding Agency,01/04/2016,Petrol Car Mileage,Central Delivery Service - Birmingham,Agency Staff Member,SCLAIM_45183,350.1,Staff Expenses Claim
BIS,Skills Funding Agency,01/04/2016,Petrol Car Mileage,Central Delivery Service - European Social Fund - Audit Compliance,Agency Staff Member,SCLAIM_44833,-97.2,Staff Expenses Claim
BIS,Skills Funding Agency,01/04/2016,Petrol Car Mileage,Central Delivery Service - European Social Fund - Audit Compliance,Agency Staff Member,SCLAIM_44834,97.2,Staff Expenses Claim
BIS,Skills Funding Agency,01/04/2016,Petrol Car Mileage,Central Delivery Service - European Social Fund - Audit Compliance,Agency Staff Member,SCLAIM_45180,54.9,Staff Expenses Claim
BIS,Skills Funding Agency,01/04/2016,Petrol Car Mileage,Central Delivery Service - European Social Fund - Audit Compliance,Agency Staff Member,SCLAIM_45181,54,Staff Expenses Claim
BIS,Skills Funding Agency,01/04/2016,Petrol Car Mileage,Central Delivery Service - European Social Fund - Audit Compliance,Agency Staff Member,SCLAIM_45192,117,Staff Expenses Claim
BIS,Skills Funding Agency,01/04/2016,Petrol Car Mileage,Central Delivery Service - European Social Fund - Audit Compliance,Agency Staff Member,SCLAIM_45205,60.3,Staff Expenses Claim
BIS,Skills Funding Agency,01/04/2016,Petrol Car Mileage,Chief Executive Office - Communications,Agency Staff Member,SCLAIM_45201,28.8,Staff Expenses Claim
BIS,Skills Funding Agency,01/04/2016,Petrol Car Mileage,Chief Executive Office - Communications,Agency Staff Member,SCLAIM_45239,14.4,Staff Expenses Claim
BIS,Skills Funding Agency,01/04/2016,Petrol Car Mileage,Chief Executive Office - Executive Office,Agency Staff Member,SCLAIM_45227,75.6,Staff Expenses Claim
BIS,Skills Funding Agency,01/04/2016,Petrol Car Mileage,Employer & Provider Services North West,Agency Staff Member,SCLAIM_45237,38.7,Staff Expenses Claim
BIS,Skills Funding Agency,01/04/2016,Petrol Car Mileage,Employer & Provider Services North West,Agency Staff Member,SCLAIM_45268,22.5,Staff Expenses Claim
BIS,Skills Funding Agency,01/04/2016,Petrol Car Mileage,Employer & Provider Services South East,Agency Staff Member,SCLAIM_45190,39.6,Staff Expenses Claim
BIS,Skills Funding Agency,01/04/2016,Petrol Car Mileage,Employer & Provider Services South East,Agency Staff Member,SCLAIM_45254,90,Staff Expenses Claim
BIS,Skills Funding Agency,01/04/2016,Petrol Car Mileage,Employer & Provider Services South East,Agency Staff Member,SCLAIM_45260,40.5,Staff Expenses Claim
BIS,Skills Funding Agency,01/04/2016,Petrol Car Mileage,Employer & Provider Services South East,Agency Staff Member,SCLAIM_45266,99.9,Staff Expenses Claim
BIS,Skills Funding Agency,01/04/2016,Petrol Car Mileage,Employer & Provider Services South East,Agency Staff Member,SCLAIM_45267,162.9,Staff Expenses Claim
BIS,Skills Funding Agency,01/04/2016,Petrol Car Mileage,Finance Division - Provider Finance,Agency Staff Member,SCLAIM_45204,67.5,Staff Expenses Claim
BIS,Skills Funding Agency,01/04/2016,Petrol Car Mileage,Finance Division - Provider Finance,Agency Staff Member,SCLAIM_45234,90.9,Staff Expenses Claim
BIS,Skills Funding Agency,01/04/2016,Petrol Car Mileage,Finance Division - Provider Financial Assurance Audit,Agency Staff Member,SCLAIM_45231,1.8,Staff Expenses Claim
BIS,Skills Funding Agency,01/04/2016,Petrol Car Mileage,Funding & Programmes - Provider Management & Intervention Central,Agency Staff Member,SCLAIM_45202,89.55,Staff Expenses Claim
BIS,Skills Funding Agency,01/04/2016,Petrol Car Mileage,Funding & Programmes - Provider Management & Intervention South,Agency Staff Member,SCLAIM_45189,56.7,Staff Expenses Claim
BIS,Skills Funding Agency,01/04/2016,Petrol Car Mileage,Large Companies Unit,Agency Staff Member,SCLAIM_45195,172.8,Staff Expenses Claim
BIS,Skills Funding Agency,01/04/2016,Petrol Car Mileage,Large Companies Unit,Agency Staff Member,SCLAIM_45213,293.4,Staff Expenses Claim
BIS,Skills Funding Agency,01/04/2016,Petrol Car Mileage,Large Companies Unit,Agency Staff Member,SCLAIM_45220,174.6,Staff Expenses Claim
BIS,Skills Funding Agency,01/04/2016,Petrol Car Mileage,National Careers & Learner Services,Agency Staff Member,SCLAIM_45232,29.7,Staff Expenses Claim
BIS,Skills Funding Agency,01/04/2016,Postage,HR - Human Resources,EXPERIAN LTD,SPINVB_30930,"11,089.85",Purchase Invoice
BIS,Skills Funding Agency,01/04/2016,Postage,Operations Finance - Accounting Services,Agency Staff Member,SCLAIM_45224,1,Staff Expenses Claim
BIS,Skills Funding Agency,01/04/2016,Professional Services,Operations ICT - Technical Design Authority,BAE SYSTEMS APPLIED INTELLIGENCE LIMITED,SPINVB_30917,"36,059.10",Purchase Invoice
BIS,Skills Funding Agency,01/04/2016,Professional Services,Operations ICT - Technical Design Authority,CGI IT UK LIMITED,SPINVB_30895,"7,615.20",Purchase Invoice
BIS,Skills Funding Agency,01/04/2016,Professional Subscriptions,Finance Division - Provider Finance,Agency Staff Member,SCLAIMPRO_939,180,Staff Expenses Claim
BIS,Skills Funding Agency,01/04/2016,Professional Subscriptions,Operations Finance - Financial Management,Agency Staff Member,SCLAIMPRO_938,143,Staff Expenses Claim
BIS,Skills Funding Agency,01/04/2016,Professional Subscriptions,Operations Finance - Procurement Services,Agency Staff Member,SCLAIMPRO_937,121.38,Staff Expenses Claim
BIS,Skills Funding Agency,01/04/2016,Rail Warrants & Tickets,Apprenticeships & Delivery Services - Apprenticeships & Employer Policy Implementation,Agency Staff Member,SCLAIM_45185,53.6,Staff Expenses Claim
BIS,Skills Funding Agency,01/04/2016,Rail Warrants & Tickets,Apprenticeships & Delivery Services - Apprenticeships & Employer Policy Implementation,Agency Staff Member,SCLAIM_45187,4.8,Staff Expenses Claim
BIS,Skills Funding Agency,01/04/2016,Rail Warrants & Tickets,Apprenticeships & Delivery Services - Marketing,Agency Staff Member,SCLAIM_45223,235.9,Staff Expenses Claim
BIS,Skills Funding Agency,01/04/2016,Rail Warrants & Tickets,Finance Division - Provider Finance,Agency Staff Member,SCLAIM_45229,29.8,Staff Expenses Claim
BIS,Skills Funding Agency,01/04/2016,Rail Warrants & Tickets,Finance Division - Provider Finance,Agency Staff Member,SCLAIM_45263,4.8,Staff Expenses Claim
BIS,Skills Funding Agency,01/04/2016,Rail Warrants & Tickets,Funding & Programmes - Funding Systems and Information,Agency Staff Member,SCLAIM_45211,128.2,Staff Expenses Claim
BIS,Skills Funding Agency,01/04/2016,Rail Warrants & Tickets,Funding & Programmes - Provider Management & Intervention South,Agency Staff Member,SCLAIM_45245,56.9,Staff Expenses Claim
BIS,Skills Funding Agency,01/04/2016,Rail Warrants & Tickets,Large Companies Unit,Agency Staff Member,SCLAIM_45213,54.5,Staff Expenses Claim
BIS,Skills Funding Agency,01/04/2016,Rail Warrants & Tickets,National Careers & Learner Services,Agency Staff Member,SCLAIM_45221,44,Staff Expenses Claim
BIS,Skills Funding Agency,01/04/2016,Rail Warrants & Tickets,National Careers & Learner Services,Agency Staff Member,SCLAIM_45238,30,Staff Expenses Claim
BIS,Skills Funding Agency,01/04/2016,Self-Drive Car Hire,Central Delivery Service - European Social Fund - Audit Compliance,Agency Staff Member,SCLAIM_44833,-23,Staff Expenses Claim
BIS,Skills Funding Agency,01/04/2016,Self-Drive Car Hire,Finance Division - Provider Finance,Agency Staff Member,SCLAIM_45233,18.41,Staff Expenses Claim
BIS,Skills Funding Agency,01/04/2016,Self-Drive Car Hire,Finance Division - Provider Finance,Agency Staff Member,SCLAIM_45265,48.98,Staff Expenses Claim
BIS,Skills Funding Agency,01/04/2016,Self-Drive Car Hire,Funding & Programmes - Localism Policy Implementation,Agency Staff Member,SCLAIM_45250,68.78,Staff Expenses Claim
BIS,Skills Funding Agency,01/04/2016,Self-Drive Car Hire,Funding & Programmes - Localism Policy Implementation,Agency Staff Member,SCLAIM_45251,140.47,Staff Expenses Claim
BIS,Skills Funding Agency,01/04/2016,Self-Drive Car Hire,Marketing & Communications,Agency Staff Member,SCLAIM_45179,33.8,Staff Expenses Claim
BIS,Skills Funding Agency,01/04/2016,Self-Drive Car Hire,Operations Finance - Procurement Services,Agency Staff Member,SCLAIM_45219,56.6,Staff Expenses Claim
BIS,Skills Funding Agency,01/04/2016,Self-Drive Car Hire,Operations Finance - Procurement Services,Agency Staff Member,SCLAIM_45248,38.7,Staff Expenses Claim
BIS,Skills Funding Agency,01/04/2016,Software Maintenance & Repair,Operations ICT - Business IT - Agency Services,CGI IT UK LIMITED,SPINVB_30857,"184,660.80",Purchase Invoice
BIS,Skills Funding Agency,01/04/2016,Software Maintenance & Repair,Operations ICT - Business IT - Agency Services,CGI IT UK LIMITED,SPINVB_30858,"92,836.80",Purchase Invoice
BIS,Skills Funding Agency,01/04/2016,Software Maintenance & Repair,Operations ICT - Business IT - Agency Services,ORACLE CORP UK LTD,SPINVB_30802,"139,166.96",Purchase Invoice
BIS,Skills Funding Agency,01/04/2016,Software Maintenance & Repair,Operations ICT - Business IT - Agency Services,ORACLE CORP UK LTD,SPINVB_30825,"78,218.70",Purchase Invoice
BIS,Skills Funding Agency,01/04/2016,Software Maintenance & Repair,Operations ICT - Business IT - Agency Services,TELEFONICA O2 UK LTD,REISSUE_223,-118.8,Payment Not Cleared
BIS,Skills Funding Agency,01/04/2016,Software Maintenance & Repair,Operations ICT - Business IT - Agency Services,TELEFONICA O2 UK LTD,REISSUE_223,118.8,Payment Reissued
BIS,Skills Funding Agency,01/04/2016,Software Maintenance & Repair,Operations ICT - Business IT - Citizen Services,BLUE SHEEP LTD,SPINVB_30949,"92,926.20",Purchase Invoice
BIS,Skills Funding Agency,01/04/2016,Software Maintenance & Repair,Operations ICT - Business IT - Citizen Services,BLUE SHEEP LTD,SPINVB_30950,"391,212.00",Purchase Invoice
BIS,Skills Funding Agency,01/04/2016,Software Maintenance & Repair,Operations ICT - Business IT - Citizen Services,HOTCOURSES DATA LTD,SPINVB_30952,"17,648.40",Purchase Invoice
BIS,Skills Funding Agency,01/04/2016,Software Maintenance & Repair,Operations ICT - Business IT - Citizen Services,LOCKHEED MARTIN BUSINESS TECHNOLOGY SOLUTIONS LIMITED,SPINVB_30912,"3,540.30",Purchase Invoice
BIS,Skills Funding Agency,01/04/2016,Software Maintenance & Repair,Operations ICT - Service Integration & Management,BAE SYSTEMS APPLIED INTELLIGENCE LIMITED,SPINVB_30880,"500,883.58",Purchase Invoice
BIS,Skills Funding Agency,01/04/2016,Software Maintenance & Repair,Operations ICT - Technical Design Authority,CGI IT UK LIMITED,SPINVB_30856,"1,180.80",Purchase Invoice
BIS,Skills Funding Agency,01/04/2016,Subsistence,Apprenticeships & Delivery Services - Apprenticeships & Employer Policy Implementation,Agency Staff Member,SCLAIM_45184,25,Staff Expenses Claim
BIS,Skills Funding Agency,01/04/2016,Subsistence,Apprenticeships & Delivery Services - Apprenticeships & Employer Policy Implementation,Agency Staff Member,SCLAIM_45186,60,Staff Expenses Claim
BIS,Skills Funding Agency,01/04/2016,Subsistence,Apprenticeships & Delivery Services - Marketing,Agency Staff Member,SCLAIM_45218,25,Staff Expenses Claim
BIS,Skills Funding Agency,01/04/2016,Subsistence,Apprenticeships & Delivery Services - Marketing,Agency Staff Member,SCLAIM_45228,20,Staff Expenses Claim
BIS,Skills Funding Agency,01/04/2016,Subsistence,Apprenticeships & Delivery Services - Marketing,Agency Staff Member,SCLAIM_45264,35,Staff Expenses Claim
BIS,Skills Funding Agency,01/04/2016,Subsistence,Central Delivery Service - European Social Fund - Audit Compliance,Agency Staff Member,SCLAIM_45181,20,Staff Expenses Claim
BIS,Skills Funding Agency,01/04/2016,Subsistence,Central Delivery Service - European Social Fund - Audit Compliance,Agency Staff Member,SCLAIM_45192,15,Staff Expenses Claim
BIS,Skills Funding Agency,01/04/2016,Subsistence,Central Delivery Service - European Social Fund - Audit Compliance,Agency Staff Member,SCLAIM_45206,10,Staff Expenses Claim
BIS,Skills Funding Agency,01/04/2016,Subsistence,Central Delivery Service - London,Agency Staff Member,SCLAIM_45214,10,Staff Expenses Claim
BIS,Skills Funding Agency,01/04/2016,Subsistence,Chief Executive Office - Media & Public Affairs,Agency Staff Member,SCLAIM_45217,25,Staff Expenses Claim
BIS,Skills Funding Agency,01/04/2016,Subsistence,Finance Division - Provider Finance,Agency Staff Member,SCLAIM_45207,75,Staff Expenses Claim
BIS,Skills Funding Agency,01/04/2016,Subsistence,Finance Division - Provider Finance,Agency Staff Member,SCLAIM_45265,75,Staff Expenses Claim
BIS,Skills Funding Agency,01/04/2016,Subsistence,Funding & Programmes - Executive Office,Agency Staff Member,SCLAIM_45269,30,Staff Expenses Claim
BIS,Skills Funding Agency,01/04/2016,Subsistence,Funding & Programmes - Localism Policy Implementation,Agency Staff Member,SCLAIM_45250,10,Staff Expenses Claim
BIS,Skills Funding Agency,01/04/2016,Subsistence,Funding & Programmes - Localism Policy Implementation,Agency Staff Member,SCLAIM_45251,35,Staff Expenses Claim
BIS,Skills Funding Agency,01/04/2016,Subsistence,Funding & Programmes - Provider Management & Intervention South,Agency Staff Member,SCLAIM_45188,10,Staff Expenses Claim
BIS,Skills Funding Agency,01/04/2016,Subsistence,Large Companies Unit,Agency Staff Member,SCLAIM_45195,10,Staff Expenses Claim
BIS,Skills Funding Agency,01/04/2016,Subsistence,Large Companies Unit,Agency Staff Member,SCLAIM_45213,44.5,Staff Expenses Claim
BIS,Skills Funding Agency,01/04/2016,Subsistence,Large Companies Unit,Agency Staff Member,SCLAIM_45220,75,Staff Expenses Claim
BIS,Skills Funding Agency,01/04/2016,Subsistence,Large Companies Unit,Agency Staff Member,SCLAIM_45246,30.8,Staff Expenses Claim
BIS,Skills Funding Agency,01/04/2016,Subsistence,National Careers & Learner Services,Agency Staff Member,SCLAIM_45182,90,Staff Expenses Claim
BIS,Skills Funding Agency,01/04/2016,Subsistence,National Careers & Learner Services,Agency Staff Member,SCLAIM_45232,50,Staff Expenses Claim
BIS,Skills Funding Agency,01/04/2016,Subsistence,Operations Finance - Procurement Services,Agency Staff Member,SCLAIM_45219,20,Staff Expenses Claim
BIS,Skills Funding Agency,01/04/2016,Subsistence,Operations Finance - Procurement Services,Agency Staff Member,SCLAIM_45249,40,Staff Expenses Claim
BIS,Skills Funding Agency,01/04/2016,Sundry Items,Accounting Services,BAE SYSTEMS APPLIED INTELLIGENCE LIMITED,SPINVB_30880,0.02,Purchase Invoice
BIS,Skills Funding Agency,01/04/2016,Sundry Items,Accounting Services,TRUSTMARQUE SOLUTIONS LIMITED,SPINVB_30929,0.07,Purchase Invoice
BIS,Skills Funding Agency,01/04/2016,Sundry Items,Apprenticeships & Delivery Services - Apprenticeships & Employer Policy Implementation,Agency Staff Member,SCLAIM_45193,-13.5,Staff Expenses Claim
BIS,Skills Funding Agency,01/04/2016,Sundry Items,Employer & Provider Services North West,Agency Staff Member,SCLAIM_45216,-37.5,Staff Expenses Claim
BIS,Skills Funding Agency,01/04/2016,Sundry Items,Employer & Provider Services South East,Agency Staff Member,SCLAIM_45230,4.95,Staff Expenses Claim
BIS,Skills Funding Agency,01/04/2016,Sundry Items,Finance Division - Provider Finance,Agency Staff Member,SCLAIM_45265,-35,Staff Expenses Claim
BIS,Skills Funding Agency,01/04/2016,Sundry Items,National Careers & Learner Services,Agency Staff Member,SCLAIM_45212,3.5,Staff Expenses Claim
BIS,Skills Funding Agency,01/04/2016,Support Services,Funding & Programmes - Delivery & Performance - Data Collections,LOCKHEED MARTIN BUSINESS TECHNOLOGY SOLUTIONS LIMITED,SPINVB_30936,"1,589.24",Purchase Invoice
BIS,Skills Funding Agency,01/04/2016,Support Services,Funding & Programmes - Delivery & Performance - Data Collections,LOCKHEED MARTIN BUSINESS TECHNOLOGY SOLUTIONS LIMITED,SPINVB_30937,477.85,Purchase Invoice
BIS,Skills Funding Agency,01/04/2016,Support Services,Funding & Programmes - Delivery & Performance,LOCKHEED MARTIN BUSINESS TECHNOLOGY SOLUTIONS LIMITED,SPINVB_30935,341.33,Purchase Invoice
BIS,Skills Funding Agency,01/04/2016,Taxis,Apprenticeships & Delivery Services - Apprenticeships & Employer Policy Implementation,Agency Staff Member,SCLAIM_45185,7.3,Staff Expenses Claim
BIS,Skills Funding Agency,01/04/2016,Taxis,Apprenticeships & Delivery Services - Apprenticeships & Employer Policy Implementation,Agency Staff Member,SCLAIM_45187,8.16,Staff Expenses Claim
BIS,Skills Funding Agency,01/04/2016,Taxis,Apprenticeships & Delivery Services - Marketing,Agency Staff Member,SCLAIM_45218,12.8,Staff Expenses Claim
BIS,Skills Funding Agency,01/04/2016,Taxis,Apprenticeships & Delivery Services - Marketing,Agency Staff Member,SCLAIM_45223,27,Staff Expenses Claim
BIS,Skills Funding Agency,01/04/2016,Taxis,Apprenticeships & Delivery Services - Marketing,Agency Staff Member,SCLAIM_45228,7.8,Staff Expenses Claim
BIS,Skills Funding Agency,01/04/2016,Taxis,Apprenticeships & Delivery Services - Marketing,Agency Staff Member,SCLAIM_45264,10,Staff Expenses Claim
BIS,Skills Funding Agency,01/04/2016,Taxis,Chief Executive Office - Media & Public Affairs,Agency Staff Member,SCLAIM_45217,8,Staff Expenses Claim
BIS,Skills Funding Agency,01/04/2016,Taxis,Employer & Provider Services South East,Agency Staff Member,SCLAIM_45267,5,Staff Expenses Claim
BIS,Skills Funding Agency,01/04/2016,Taxis,Funding & Programmes - Provider Management & Intervention North,Agency Staff Member,SCLAIM_45198,6,Staff Expenses Claim
BIS,Skills Funding Agency,01/04/2016,Taxis,Large Companies Unit,Agency Staff Member,SCLAIM_45220,9.2,Staff Expenses Claim
BIS,Skills Funding Agency,01/04/2016,Taxis,Large Companies Unit,Agency Staff Member,SCLAIM_45246,5.8,Staff Expenses Claim
BIS,Skills Funding Agency,01/04/2016,Taxis,National Careers & Learner Services,Agency Staff Member,SCLAIM_45182,20,Staff Expenses Claim
BIS,Skills Funding Agency,01/04/2016,Taxis,National Careers & Learner Services,Agency Staff Member,SCLAIM_45221,9.6,Staff Expenses Claim
BIS,Skills Funding Agency,01/04/2016,Taxis,National Careers & Learner Services,Agency Staff Member,SCLAIM_45232,12.3,Staff Expenses Claim
BIS,Skills Funding Agency,01/04/2016,Taxis,National Careers & Learner Services,Agency Staff Member,SCLAIM_45238,11.5,Staff Expenses Claim
BIS,Skills Funding Agency,01/04/2016,Taxis,Operations Finance - Procurement Services,Agency Staff Member,SCLAIM_45248,7.5,Staff Expenses Claim
BIS,Skills Funding Agency,01/04/2016,Taxis,Operations Finance - Procurement Services,Agency Staff Member,SCLAIM_45249,20,Staff Expenses Claim
BIS,Skills Funding Agency,01/04/2016,Temporary Staff,Funding & Programmes - Delivery & Performance,CAPITA BUSINESS SERVICES LTD,IPINVELECT3_2021,"2,539.20",Purchase Invoice
BIS,Skills Funding Agency,01/04/2016,Temporary Staff,Funding & Programmes - Delivery & Performance,LA INTERNATIONAL,SPINVB_30906,"3,563.33",Purchase Invoice
BIS,Skills Funding Agency,01/04/2016,Temporary Staff,Funding & Programmes - Funding Systems and Information,CAPITA BUSINESS SERVICES LTD,IPINVELECT3_2021,"7,428.78",Purchase Invoice
BIS,Skills Funding Agency,01/04/2016,Temporary Staff,HR - Human Resources,SF RECRUITMENT LTD,SPINVB_30913,932.4,Purchase Invoice
BIS,Skills Funding Agency,01/04/2016,Temporary Staff,National Careers & Learner Services,CAPITA BUSINESS SERVICES LTD,IPINVELECT3_2021,"3,636.00",Purchase Invoice
BIS,Skills Funding Agency,01/04/2016,Temporary Staff,Operations Finance - Accounting Services,HAYS SPECIALIST RECRUITMENT LTD,IPINVELECT3_2022,"1,674.00",Purchase Invoice
BIS,Skills Funding Agency,01/04/2016,Temporary Staff,Operations Finance - Accounting Services,HAYS SPECIALIST RECRUITMENT LTD,IPINVELECT3_2025,"2,232.00",Purchase Invoice
BIS,Skills Funding Agency,01/04/2016,Temporary Staff,Operations ICT - Change Delivery,BADENOCH & CLARK IP LTD,IPINVELECT3_2023,"2,531.04",Purchase Invoice
BIS,Skills Funding Agency,01/04/2016,Temporary Staff,Operations ICT - Change Delivery,BADENOCH & CLARK IP LTD,IPINVELECT3_2024,"5,062.08",Purchase Invoice
BIS,Skills Funding Agency,01/04/2016,Temporary Staff,Operations ICT - Citizen Digital Service,CAPITA BUSINESS SERVICES LTD,IPINVELECT3_2021,"6,577.32",Purchase Invoice
BIS,Skills Funding Agency,01/04/2016,Temporary Staff,Operations ICT - Citizen Digital Service,PARITY RESOURCES LTD,SPINVB_30951,"3,854.16",Purchase Invoice
BIS,Skills Funding Agency,01/04/2016,Temporary Staff,Operations ICT - Employer Digital Service,CAPITA BUSINESS SERVICES LTD,IPINVELECT3_2021,"4,980.60",Purchase Invoice
BIS,Skills Funding Agency,01/04/2016,Temporary Staff,Operations ICT - Information & Communication Technology - Technical,CAPITA BUSINESS SERVICES LTD,IPINVELECT3_2021,"2,639.10",Purchase Invoice
BIS,Skills Funding Agency,01/04/2016,Temporary Staff,Operations ICT - Information & Communication Technology - Technical,KELLY SERVICES UK LTD,SPINVB_30909,695.86,Purchase Invoice
BIS,Skills Funding Agency,01/04/2016,Temporary Staff,Operations ICT - Project Delivery,CAPITA BUSINESS SERVICES LTD,IPINVELECT3_2021,"12,457.14",Purchase Invoice
BIS,Skills Funding Agency,01/04/2016,Temporary Staff,Operations ICT - Technical Design Authority,BAE SYSTEMS APPLIED INTELLIGENCE LIMITED,SPINVB_30831,"53,773.80",Purchase Invoice
BIS,Skills Funding Agency,01/04/2016,Temporary Staff,Operations ICT - Technical Design Authority,CAPITA BUSINESS SERVICES LTD,IPINVELECT3_2021,"7,942.20",Purchase Invoice
BIS,Skills Funding Agency,01/04/2016,Temporary Staff,Operations ICT - Technical Design Authority,HAYS SPECIALIST RECRUITMENT LTD,IPINVELECT3_2022,"1,650.00",Purchase Invoice
BIS,Skills Funding Agency,01/04/2016,Temporary Staff,Operations ICT - Technical Design Authority,HAYS SPECIALIST RECRUITMENT LTD,IPINVELECT3_2025,"1,650.00",Purchase Invoice
BIS,Skills Funding Agency,01/04/2016,Temporary Staff,Operations ICT - Technical Design Authority,NCC GROUP SECURITY SERVICES LTD,SPINVB_30882,"23,770.13",Purchase Invoice
BIS,Skills Funding Agency,01/04/2016,Training Materials,National Careers & Learner Services,Agency Staff Member,SCLAIM_45238,20.8,Staff Expenses Claim
BIS,Skills Funding Agency,01/04/2016,Training Venue & Refreshments,Employer & Provider Services North West,CAPITA TRAVEL AND EVENTS LTD,IPINVELECT3_2026,"2,062.00",Purchase Invoice
BIS,Skills Funding Agency,01/04/2016,Wide Area Networks,Operations ICT - Technical Design Authority,LEVEL 3 COMMUNICATIONS UK LIMITED,SPCRNB_1085,"-4,316.39",Purchase Credit Note
BIS,Skills Funding Agency,01/04/2016,Wide Area Networks,Operations ICT - Technical Design Authority,QUESTMARK LTD,SPINVB_30933,"4,782.00",Purchase Invoice
BIS,Skills Funding Agency,01/04/2016,Young People's Helpline,Main Funding,BIG BANG EDUCATION CIC,SPINVB_30964,"12,000.00",Purchase Invoice
BIS,Skills Funding Agency,01/04/2016,Young People's Helpline,Main Funding,ST HELENS CHAMBER LTD,SPINVB_30965,"290,000.00",Purchase Invoice
BIS,Skills Funding Agency,05/04/2016,Exceptional Financial Support,Main Funding,BOURNVILLE COLLEGE OF HIGHER EDUCATION,NUPS16_2,"1,445,000.00",Programme Template
BIS,Skills Funding Agency,05/04/2016,Hosting,Operations ICT - Technical Design Authority,BYTES SOFTWARE SERVICES LTD,SPINVB_30988,"191,705.92",Purchase Invoice
BIS,Skills Funding Agency,05/04/2016,Hosting,Operations ICT - Technical Design Authority,SPECIALIST COMPUTER CENTRES PLC,SPINVB_30990,"19,999.99",Purchase Invoice
BIS,Skills Funding Agency,05/04/2016,Hosting,Operations ICT - Technical Design Authority,SPECIALIST COMPUTER CENTRES PLC,SPINVB_30991,"2,043.60",Purchase Invoice
BIS,Skills Funding Agency,05/04/2016,Managed IT Service,Operations ICT - Projects,ORANGE BUS LIMITED,SPINVB_30385,"11,131.51",Purchase Invoice
BIS,Skills Funding Agency,05/04/2016,Managed IT Service,Operations ICT - Projects,ORANGE BUS LIMITED,SPINVB_30908,"4,614.00",Purchase Invoice
BIS,Skills Funding Agency,05/04/2016,Managed IT Service,Operations ICT - Projects,SCROLL LLP,SPINVB_30759,"34,100.66",Purchase Invoice
BIS,Skills Funding Agency,05/04/2016,"National Apprenticeship Service - Business, Innovation & Skills - Non-Participation",Main Funding,EAST LONDON BUSINESS ALLIANCE,SPINVB_30958,"6,900.00",Purchase Invoice
BIS,Skills Funding Agency,05/04/2016,"National Apprenticeship Service - Business, Innovation & Skills - Non-Participation",Main Funding,PAUL�PICKARD,SPINVCHQ_572,180,Purchase Invoice
BIS,Skills Funding Agency,05/04/2016,"National Apprenticeship Service - Business, Innovation & Skills - Non-Participation",Main Funding,SMALL FIRMS ENTERPRISE DEVELOPMENT INITIATIVE LIMITED,SPINVB_30876,"5,977.13",Purchase Invoice
BIS,Skills Funding Agency,05/04/2016,Software Maintenance & Repair,Operations ICT - Business IT - Agency Services,CAPGEMINI UK PLC,SPINVB_30977,"20,190.47",Purchase Invoice
BIS,Skills Funding Agency,05/04/2016,Software Maintenance & Repair,Operations ICT - Business IT - Agency Services,CAPGEMINI UK PLC,SPINVB_30978,"41,850.73",Purchase Invoice
BIS,Skills Funding Agency,05/04/2016,Software Maintenance & Repair,Operations ICT - Business IT - Agency Services,CAPGEMINI UK PLC,SPINVB_30980,"18,712.80",Purchase Invoice
BIS,Skills Funding Agency,05/04/2016,Software Maintenance & Repair,Operations ICT - Business IT - Agency Services,CAPGEMINI UK PLC,SPINVB_30981,"62,613.60",Purchase Invoice
BIS,Skills Funding Agency,05/04/2016,Software Maintenance & Repair,Operations ICT - Business IT - Citizen Services,CAPGEMINI UK PLC,SPINVB_30979,"38,190.00",Purchase Invoice
BIS,Skills Funding Agency,05/04/2016,Software Maintenance & Repair,Operations ICT - Service Integration & Management,BAE SYSTEMS APPLIED INTELLIGENCE LIMITED,SPINVB_30945,"92,663.40",Purchase Invoice
BIS,Skills Funding Agency,05/04/2016,Sundry Items,Accounting Services,SMALL FIRMS ENTERPRISE DEVELOPMENT INITIATIVE LIMITED,SPINVB_30876,0.04,Purchase Invoice
BIS,Skills Funding Agency,05/04/2016,Temporary Staff,Funding & Programmes - Delivery & Performance,CAPITA BUSINESS SERVICES LTD,IPINVELECT3_2028,"2,031.36",Purchase Invoice
BIS,Skills Funding Agency,05/04/2016,Temporary Staff,Funding & Programmes - Funding Systems and Information,CAPITA BUSINESS SERVICES LTD,IPINVELECT3_2028,"3,301.68",Purchase Invoice
BIS,Skills Funding Agency,05/04/2016,Temporary Staff,National Careers & Learner Services,CAPITA BUSINESS SERVICES LTD,IPINVELECT3_2028,"2,065.47",Purchase Invoice
BIS,Skills Funding Agency,05/04/2016,Temporary Staff,Operations ICT - Citizen Digital Service,CAPITA BUSINESS SERVICES LTD,IPINVELECT3_2028,"3,288.66",Purchase Invoice
BIS,Skills Funding Agency,05/04/2016,Temporary Staff,Operations ICT - Information & Communication Technology - Technical,CAPITA BUSINESS SERVICES LTD,IPINVELECT3_2028,"2,111.28",Purchase Invoice
BIS,Skills Funding Agency,05/04/2016,Temporary Staff,Operations ICT - Information & Communication Technology - Technical,EXPERIS LIMITED,SPINVB_30911,"8,418.12",Purchase Invoice
BIS,Skills Funding Agency,05/04/2016,Temporary Staff,Operations ICT - Project Delivery,CAPITA BUSINESS SERVICES LTD,IPINVELECT3_2028,"28,893.71",Purchase Invoice
BIS,Skills Funding Agency,05/04/2016,Temporary Staff,Operations ICT - Technical Design Authority,CAPITA BUSINESS SERVICES LTD,IPINVELECT3_2028,"3,176.88",Purchase Invoice
BIS,Skills Funding Agency,05/04/2016,Temporary Staff,Operations ICT - Technical Design Authority,EXPERIS LIMITED,SPINVB_30911,339.38,Purchase Invoice
BIS,Skills Funding Agency,05/04/2016,Young People's Helpline,Main Funding,ANNA MORRISON CONSULTANCY SERVICES LIMITED,SPINVB_31025,"16,643.50",Purchase Invoice
BIS,Skills Funding Agency,06/04/2016,Archiving,HR - Human Resources,IRON MOUNTAIN UK LTD,IPINVELECT3_2029,"6,749.41",Purchase Invoice
BIS,Skills Funding Agency,06/04/2016,Archiving,Operations Finance - Financial Management,IRON MOUNTAIN UK LTD,IPINVELECT3_2029,"14,556.70",Purchase Invoice
BIS,Skills Funding Agency,06/04/2016,Diesel Car Mileage Passenger Supplement,Employer & Provider Services North East & Yorkshire,Agency Staff Member,SCLAIM_45278,4.25,Staff Expenses Claim
BIS,Skills Funding Agency,06/04/2016,Diesel Car Mileage Passenger Supplement,Finance Division - Provider Finance,Agency Staff Member,SCLAIM_45324,9,Staff Expenses Claim
BIS,Skills Funding Agency,06/04/2016,Diesel Car Mileage Passenger Supplement,National Careers & Learner Services,Agency Staff Member,SCLAIM_45273,2.1,Staff Expenses Claim
BIS,Skills Funding Agency,06/04/2016,Diesel Car Mileage,Apprenticeships & Delivery Services - Marketing,Agency Staff Member,SCLAIM_45282,180,Staff Expenses Claim
BIS,Skills Funding Agency,06/04/2016,Diesel Car Mileage,Central Delivery Service - European Social Fund - Audit Compliance,Agency Staff Member,SCLAIM_45296,161.1,Staff Expenses Claim
BIS,Skills Funding Agency,06/04/2016,Diesel Car Mileage,Central Delivery Service - European Social Fund - Audit Compliance,Agency Staff Member,SCLAIM_45321,708.3,Staff Expenses Claim
BIS,Skills Funding Agency,06/04/2016,Diesel Car Mileage,Employer & Provider Services North East & Yorkshire,Agency Staff Member,SCLAIM_45278,176.4,Staff Expenses Claim
BIS,Skills Funding Agency,06/04/2016,Diesel Car Mileage,Employer & Provider Services North East & Yorkshire,Agency Staff Member,SCLAIM_45279,252.9,Staff Expenses Claim
BIS,Skills Funding Agency,06/04/2016,Diesel Car Mileage,Employer & Provider Services North East & Yorkshire,Agency Staff Member,SCLAIM_45287,71.55,Staff Expenses Claim
BIS,Skills Funding Agency,06/04/2016,Diesel Car Mileage,Employer & Provider Services North West,Agency Staff Member,SCLAIM_45298,34.2,Staff Expenses Claim
BIS,Skills Funding Agency,06/04/2016,Diesel Car Mileage,Employer & Provider Services North West,Agency Staff Member,SCLAIM_45299,59.4,Staff Expenses Claim
BIS,Skills Funding Agency,06/04/2016,Diesel Car Mileage,Employer & Provider Services South East,Agency Staff Member,SCLAIM_45295,-13.5,Staff Expenses Claim
BIS,Skills Funding Agency,06/04/2016,Diesel Car Mileage,Finance Division - Provider Finance,Agency Staff Member,SCLAIM_45324,81,Staff Expenses Claim
BIS,Skills Funding Agency,06/04/2016,Diesel Car Mileage,Finance Division - Provider Finance,Agency Staff Member,SCLAIM_45326,151.2,Staff Expenses Claim
BIS,Skills Funding Agency,06/04/2016,Diesel Car Mileage,Funding & Programmes - Provider Management & Intervention Central,Agency Staff Member,SCLAIM_45310,174.6,Staff Expenses Claim
BIS,Skills Funding Agency,06/04/2016,Diesel Car Mileage,Funding & Programmes - Provider Management & Intervention North,Agency Staff Member,SCLAIM_45277,188.55,Staff Expenses Claim
BIS,Skills Funding Agency,06/04/2016,Diesel Car Mileage,Funding & Programmes - Provider Management & Intervention North,Agency Staff Member,SCLAIM_45284,25.2,Staff Expenses Claim
BIS,Skills Funding Agency,06/04/2016,Diesel Car Mileage,Funding & Programmes - Provider Management & Intervention North,Agency Staff Member,SCLAIM_45285,251.1,Staff Expenses Claim
BIS,Skills Funding Agency,06/04/2016,Diesel Car Mileage,Funding & Programmes - Provider Management & Intervention North,Agency Staff Member,SCLAIM_45317,116.7,Staff Expenses Claim
BIS,Skills Funding Agency,06/04/2016,Diesel Car Mileage,Funding & Programmes - Provider Management & Intervention North,Agency Staff Member,SCLAIM_45327,261.45,Staff Expenses Claim
BIS,Skills Funding Agency,06/04/2016,Diesel Car Mileage,Large Companies Unit,Agency Staff Member,SCLAIM_45286,513.9,Staff Expenses Claim
BIS,Skills Funding Agency,06/04/2016,Diesel Car Mileage,Large Companies Unit,Agency Staff Member,SCLAIM_45318,378.9,Staff Expenses Claim
BIS,Skills Funding Agency,06/04/2016,Diesel Car Mileage,National Careers & Learner Services,Agency Staff Member,SCLAIM_45271,85.05,Staff Expenses Claim
BIS,Skills Funding Agency,06/04/2016,Diesel Car Mileage,National Careers & Learner Services,Agency Staff Member,SCLAIM_45273,192.6,Staff Expenses Claim
BIS,Skills Funding Agency,06/04/2016,Diesel Car Mileage,National Careers & Learner Services,Agency Staff Member,SCLAIM_45304,9,Staff Expenses Claim
BIS,Skills Funding Agency,06/04/2016,Diesel Car Mileage,National Careers & Learner Services,Agency Staff Member,SCLAIM_45308,7.2,Staff Expenses Claim
BIS,Skills Funding Agency,06/04/2016,Diesel Car Mileage,Operations Finance - Financial Management,Agency Staff Member,SCLAIM_45313,304.2,Staff Expenses Claim
BIS,Skills Funding Agency,06/04/2016,Eye Tests,Apprenticeships & Delivery Services - Marketing,Agency Staff Member,SCLAIM_45302,60,Staff Expenses Claim
BIS,Skills Funding Agency,06/04/2016,Eye Tests,Chief Executive Office - Marketing  ,Agency Staff Member,SCLAIM_45325,20,Staff Expenses Claim
BIS,Skills Funding Agency,06/04/2016,Eye Tests,Operations Finance - Accounting Services,Agency Staff Member,SCLAIM_45293,80,Staff Expenses Claim
BIS,Skills Funding Agency,06/04/2016,Flexible Benefits Provider Payover,HR - Human Resources,AXA PPP HEALTHCARE,PAYCHAPSAUTO_531,"8,851.44",Payroll
BIS,Skills Funding Agency,06/04/2016,Framework for Excellence,Main Funding,HESA SERVICES LTD,SPINVB_31047,"5,088.00",Purchase Invoice
BIS,Skills Funding Agency,06/04/2016,Landline Telephone Service,Operations ICT - Technical Design Authority,IDN TELECOM LTD,IPINVELECT3_2030,464.76,Purchase Invoice
BIS,Skills Funding Agency,06/04/2016,"National Apprenticeship Service - Business, Innovation & Skills - Non-Participation",Main Funding,ASSOCIATION OF COLLEGES,SPINVB_31053,"4,999.20",Purchase Invoice
BIS,Skills Funding Agency,06/04/2016,"National Apprenticeship Service - Business, Innovation & Skills - Non-Participation",Main Funding,MARKET & OPINION RESEARCH INTERNATIONAL LTD,SPINVB_30934,"27,999.60",Purchase Invoice
BIS,Skills Funding Agency,06/04/2016,Next Step Development,Main Funding,"TNS UK LTD, TNS-BMRB",SPINVB_30989,"156,358.80",Purchase Invoice
BIS,Skills Funding Agency,06/04/2016,Next Step Helpline,Main Funding,LISTENING LTD,SPINVB_30919,"397,192.64",Purchase Invoice
BIS,Skills Funding Agency,06/04/2016,Other Fuel Car Mileage,Central Delivery Service - European Social Fund - Audit Compliance,Agency Staff Member,SCLAIM_45290,-5.5,Staff Expenses Claim
BIS,Skills Funding Agency,06/04/2016,Other Fuel Car Mileage,Central Delivery Service - European Social Fund - Audit Compliance,Agency Staff Member,SCLAIM_45296,-49,Staff Expenses Claim
BIS,Skills Funding Agency,06/04/2016,Other Fuel Car Mileage,Employer & Provider Services North East & Yorkshire,Agency Staff Member,SCLAIM_45312,166.5,Staff Expenses Claim
BIS,Skills Funding Agency,06/04/2016,Other Fuel Car Mileage,Employer & Provider Services South East,Agency Staff Member,SCLAIM_45306,-67.5,Staff Expenses Claim
BIS,Skills Funding Agency,06/04/2016,Other Fuel Car Mileage,Finance Division - Provider Finance,Agency Staff Member,SCLAIM_45324,-34.5,Staff Expenses Claim
BIS,Skills Funding Agency,06/04/2016,Other Fuel Car Mileage,Funding & Programmes - Provider Management & Intervention Central,Agency Staff Member,SCLAIM_45310,-18,Staff Expenses Claim
BIS,Skills Funding Agency,06/04/2016,Other Fuel Car Mileage,Funding & Programmes - Provider Management & Intervention Central,Agency Staff Member,SCLAIM_45319,-5.4,Staff Expenses Claim
BIS,Skills Funding Agency,06/04/2016,Other Travel,Apprenticeships & Delivery Services - Marketing,Agency Staff Member,SCLAIM_45282,29.8,Staff Expenses Claim
BIS,Skills Funding Agency,06/04/2016,Other Travel,Apprenticeships & Delivery Services - Marketing,Agency Staff Member,SCLAIM_45322,22.5,Staff Expenses Claim
BIS,Skills Funding Agency,06/04/2016,Other Travel,Central Delivery Service - European Social Fund - Audit Compliance,Agency Staff Member,SCLAIM_45296,9,Staff Expenses Claim
BIS,Skills Funding Agency,06/04/2016,Other Travel,Chief Executive Office - Marketing  ,Agency Staff Member,SCLAIM_45325,10.6,Staff Expenses Claim
BIS,Skills Funding Agency,06/04/2016,Other Travel,Employer & Provider Services North East & Yorkshire,Agency Staff Member,SCLAIM_45278,32.4,Staff Expenses Claim
BIS,Skills Funding Agency,06/04/2016,Other Travel,Employer & Provider Services North East & Yorkshire,Agency Staff Member,SCLAIM_45279,6,Staff Expenses Claim
BIS,Skills Funding Agency,06/04/2016,Other Travel,Employer & Provider Services North West,Agency Staff Member,SCLAIM_45298,20.6,Staff Expenses Claim
BIS,Skills Funding Agency,06/04/2016,Other Travel,Employer & Provider Services North West,Agency Staff Member,SCLAIM_45299,23,Staff Expenses Claim
BIS,Skills Funding Agency,06/04/2016,Other Travel,Employer & Provider Services South East,Agency Staff Member,SCLAIM_45292,5,Staff Expenses Claim
BIS,Skills Funding Agency,06/04/2016,Other Travel,Employer & Provider Services South East,Agency Staff Member,SCLAIM_45295,20.6,Staff Expenses Claim
BIS,Skills Funding Agency,06/04/2016,Other Travel,Finance Division - Provider Finance,Agency Staff Member,SCLAIM_45283,5,Staff Expenses Claim
BIS,Skills Funding Agency,06/04/2016,Other Travel,Finance Division - Provider Finance,Agency Staff Member,SCLAIM_45288,11.8,Staff Expenses Claim
BIS,Skills Funding Agency,06/04/2016,Other Travel,Finance Division - Provider Finance,Agency Staff Member,SCLAIM_45307,6,Staff Expenses Claim
BIS,Skills Funding Agency,06/04/2016,Other Travel,Finance Division - Provider Finance,Agency Staff Member,SCLAIM_45324,12,Staff Expenses Claim
BIS,Skills Funding Agency,06/04/2016,Other Travel,Finance Division - Provider Finance,Agency Staff Member,SCLAIM_45326,22,Staff Expenses Claim
BIS,Skills Funding Agency,06/04/2016,Other Travel,Funding & Programmes - Localism Policy Implementation,Agency Staff Member,SCLAIM_45280,-15,Staff Expenses Claim
BIS,Skills Funding Agency,06/04/2016,Other Travel,Funding & Programmes - Provider Management & Intervention North,Agency Staff Member,SCLAIM_45277,40.8,Staff Expenses Claim
BIS,Skills Funding Agency,06/04/2016,Other Travel,Funding & Programmes - Provider Management & Intervention North,Agency Staff Member,SCLAIM_45284,11,Staff Expenses Claim
BIS,Skills Funding Agency,06/04/2016,Other Travel,Funding & Programmes - Provider Management & Intervention North,Agency Staff Member,SCLAIM_45285,13.2,Staff Expenses Claim
BIS,Skills Funding Agency,06/04/2016,Other Travel,Funding & Programmes - Provider Management & Intervention North,Agency Staff Member,SCLAIM_45327,110.6,Staff Expenses Claim
BIS,Skills Funding Agency,06/04/2016,Other Travel,Large Companies Unit,Agency Staff Member,SCLAIM_45274,77,Staff Expenses Claim
BIS,Skills Funding Agency,06/04/2016,Other Travel,Large Companies Unit,Agency Staff Member,SCLAIM_45275,98,Staff Expenses Claim
BIS,Skills Funding Agency,06/04/2016,Other Travel,Large Companies Unit,Agency Staff Member,SCLAIM_45276,121.5,Staff Expenses Claim
BIS,Skills Funding Agency,06/04/2016,Other Travel,Large Companies Unit,Agency Staff Member,SCLAIM_45286,3,Staff Expenses Claim
BIS,Skills Funding Agency,06/04/2016,Other Travel,Large Companies Unit,Agency Staff Member,SCLAIM_45318,15,Staff Expenses Claim
BIS,Skills Funding Agency,06/04/2016,Other Travel,National Careers & Learner Services,Agency Staff Member,SCLAIM_45271,9.9,Staff Expenses Claim
BIS,Skills Funding Agency,06/04/2016,Other Travel,National Careers & Learner Services,Agency Staff Member,SCLAIM_45273,34.5,Staff Expenses Claim
BIS,Skills Funding Agency,06/04/2016,Other Travel,National Careers & Learner Services,Agency Staff Member,SCLAIM_45304,15,Staff Expenses Claim
BIS,Skills Funding Agency,06/04/2016,Other Travel,National Careers & Learner Services,Agency Staff Member,SCLAIM_45308,10.4,Staff Expenses Claim
BIS,Skills Funding Agency,06/04/2016,Other Travel,National Careers & Learner Services,Agency Staff Member,SCLAIM_45309,19.5,Staff Expenses Claim
BIS,Skills Funding Agency,06/04/2016,Other Travel,Operations Finance - Financial Management,Agency Staff Member,SCLAIM_45313,22,Staff Expenses Claim
BIS,Skills Funding Agency,06/04/2016,Petrol Car Mileage Passenger Supplement,Large Companies Unit,Agency Staff Member,SCLAIM_45275,4.9,Staff Expenses Claim
BIS,Skills Funding Agency,06/04/2016,Petrol Car Mileage,Apprenticeships & Delivery Services - Marketing,Agency Staff Member,SCLAIM_45272,27,Staff Expenses Claim
BIS,Skills Funding Agency,06/04/2016,Petrol Car Mileage,Apprenticeships & Delivery Services - Marketing,Agency Staff Member,SCLAIM_45302,60.3,Staff Expenses Claim
BIS,Skills Funding Agency,06/04/2016,Petrol Car Mileage,Central Delivery Service - European Social Fund - Audit Compliance,Agency Staff Member,SCLAIM_45297,129.6,Staff Expenses Claim
BIS,Skills Funding Agency,06/04/2016,Petrol Car Mileage,Employer & Provider Services London,Agency Staff Member,SCLAIM_45303,172.8,Staff Expenses Claim
BIS,Skills Funding Agency,06/04/2016,Petrol Car Mileage,Employer & Provider Services North East & Yorkshire,Agency Staff Member,SCLAIM_45314,150.25,Staff Expenses Claim
BIS,Skills Funding Agency,06/04/2016,Petrol Car Mileage,Employer & Provider Services North East & Yorkshire,Agency Staff Member,SCLAIM_45315,32.4,Staff Expenses Claim
BIS,Skills Funding Agency,06/04/2016,Petrol Car Mileage,Employer & Provider Services South East,Agency Staff Member,SCLAIM_45292,17.1,Staff Expenses Claim
BIS,Skills Funding Agency,06/04/2016,Petrol Car Mileage,Employer & Provider Services South East,Agency Staff Member,SCLAIM_45294,78.75,Staff Expenses Claim
BIS,Skills Funding Agency,06/04/2016,Petrol Car Mileage,Employer & Provider Services South East,Agency Staff Member,SCLAIM_45295,116.1,Staff Expenses Claim
BIS,Skills Funding Agency,06/04/2016,Petrol Car Mileage,Employer & Provider Services South East,Agency Staff Member,SCLAIM_45306,121.5,Staff Expenses Claim
BIS,Skills Funding Agency,06/04/2016,Petrol Car Mileage,Finance Division - Provider Finance,Agency Staff Member,SCLAIM_45283,136.8,Staff Expenses Claim
BIS,Skills Funding Agency,06/04/2016,Petrol Car Mileage,Finance Division - Provider Finance,Agency Staff Member,SCLAIM_45291,7.2,Staff Expenses Claim
BIS,Skills Funding Agency,06/04/2016,Petrol Car Mileage,Finance Division - Provider Finance,Agency Staff Member,SCLAIM_45307,54,Staff Expenses Claim
BIS,Skills Funding Agency,06/04/2016,Petrol Car Mileage,Funding & Programmes - Provider Management & Intervention Central,Agency Staff Member,SCLAIM_45319,43.2,Staff Expenses Claim
BIS,Skills Funding Agency,06/04/2016,Petrol Car Mileage,Large Companies Unit,Agency Staff Member,SCLAIM_45274,249.75,Staff Expenses Claim
BIS,Skills Funding Agency,06/04/2016,Petrol Car Mileage,Large Companies Unit,Agency Staff Member,SCLAIM_45275,248.4,Staff Expenses Claim
BIS,Skills Funding Agency,06/04/2016,Petrol Car Mileage,Large Companies Unit,Agency Staff Member,SCLAIM_45276,272.7,Staff Expenses Claim
BIS,Skills Funding Agency,06/04/2016,Petrol Car Mileage,National Careers & Learner Services,Agency Staff Member,SCLAIM_45309,90.45,Staff Expenses Claim
BIS,Skills Funding Agency,06/04/2016,Postage,Finance Division - Provider Finance,Agency Staff Member,SCLAIM_45324,2.05,Staff Expenses Claim
BIS,Skills Funding Agency,06/04/2016,Professional Subscriptions,Chief Executive Office - Executive Office,Agency Staff Member,SCLAIMPRO_942,235,Staff Expenses Claim
BIS,Skills Funding Agency,06/04/2016,Professional Subscriptions,Operations Finance - Accounting Services,Agency Staff Member,SCLAIMPRO_940,221,Staff Expenses Claim
BIS,Skills Funding Agency,06/04/2016,Professional Subscriptions,Operations Finance - Accounting Services,Agency Staff Member,SCLAIMPRO_941,264,Staff Expenses Claim
BIS,Skills Funding Agency,06/04/2016,Rail Warrants & Tickets,Apprenticeships & Delivery Services - Marketing,Agency Staff Member,SCLAIM_45282,8.9,Staff Expenses Claim
BIS,Skills Funding Agency,06/04/2016,Rail Warrants & Tickets,Employer & Provider Services London,Agency Staff Member,SCLAIM_45300,14.8,Staff Expenses Claim
BIS,Skills Funding Agency,06/04/2016,Rail Warrants & Tickets,Employer & Provider Services London,Agency Staff Member,SCLAIM_45303,25.3,Staff Expenses Claim
BIS,Skills Funding Agency,06/04/2016,Rail Warrants & Tickets,Employer & Provider Services North East & Yorkshire,Agency Staff Member,SCLAIM_45279,41.1,Staff Expenses Claim
BIS,Skills Funding Agency,06/04/2016,Rail Warrants & Tickets,National Careers & Learner Services,Agency Staff Member,SCLAIM_45273,4.8,Staff Expenses Claim
BIS,Skills Funding Agency,06/04/2016,Rail Warrants & Tickets,National Careers & Learner Services,Agency Staff Member,SCLAIM_45309,19.6,Staff Expenses Claim
BIS,Skills Funding Agency,06/04/2016,Self-Drive Car Hire,Apprenticeships & Delivery Services - Marketing,Agency Staff Member,SCLAIM_45302,17.25,Staff Expenses Claim
BIS,Skills Funding Agency,06/04/2016,Self-Drive Car Hire,Central Delivery Service - European Social Fund - Audit Compliance,Agency Staff Member,SCLAIM_45290,50.83,Staff Expenses Claim
BIS,Skills Funding Agency,06/04/2016,Self-Drive Car Hire,Employer & Provider Services South East,Agency Staff Member,SCLAIM_45295,41.77,Staff Expenses Claim
BIS,Skills Funding Agency,06/04/2016,Self-Drive Car Hire,Finance Division - Provider Finance,Agency Staff Member,SCLAIM_45324,32.57,Staff Expenses Claim
BIS,Skills Funding Agency,06/04/2016,Self-Drive Car Hire,Funding & Programmes - Localism Policy Implementation,Agency Staff Member,SCLAIM_45280,80.78,Staff Expenses Claim
BIS,Skills Funding Agency,06/04/2016,Self-Drive Car Hire,Funding & Programmes - Provider Management & Intervention North,Agency Staff Member,SCLAIM_45317,25,Staff Expenses Claim
BIS,Skills Funding Agency,06/04/2016,Self-Drive Car Hire,Funding & Programmes - Provider Management & Intervention South,Agency Staff Member,SCLAIM_45281,9.76,Staff Expenses Claim
BIS,Skills Funding Agency,06/04/2016,Software Maintenance & Repair,Operations ICT - Business IT - Citizen Services,LOCKHEED MARTIN BUSINESS TECHNOLOGY SOLUTIONS LIMITED,SPINVB_31005,"118,643.86",Purchase Invoice
BIS,Skills Funding Agency,06/04/2016,Subsistence,Apprenticeships & Delivery Services - Marketing,Agency Staff Member,SCLAIM_45301,60,Staff Expenses Claim
BIS,Skills Funding Agency,06/04/2016,Subsistence,Apprenticeships & Delivery Services - Marketing,Agency Staff Member,SCLAIM_45322,25,Staff Expenses Claim
BIS,Skills Funding Agency,06/04/2016,Subsistence,Central Delivery Service - European Social Fund - Audit Compliance,Agency Staff Member,SCLAIM_45290,60,Staff Expenses Claim
BIS,Skills Funding Agency,06/04/2016,Subsistence,Central Delivery Service - European Social Fund - Audit Compliance,Agency Staff Member,SCLAIM_45321,50,Staff Expenses Claim
BIS,Skills Funding Agency,06/04/2016,Subsistence,Chief Executive Office - Marketing  ,Agency Staff Member,SCLAIM_45325,5,Staff Expenses Claim
BIS,Skills Funding Agency,06/04/2016,Subsistence,Employer & Provider Services North East & Yorkshire,Agency Staff Member,SCLAIM_45279,25,Staff Expenses Claim
BIS,Skills Funding Agency,06/04/2016,Subsistence,Employer & Provider Services South East,Agency Staff Member,SCLAIM_45295,64.4,Staff Expenses Claim
BIS,Skills Funding Agency,06/04/2016,Subsistence,Finance Division - Provider Finance,Agency Staff Member,SCLAIM_45324,25,Staff Expenses Claim
BIS,Skills Funding Agency,06/04/2016,Subsistence,Funding & Programmes - Delivery & Performance,Agency Staff Member,SCLAIM_45305,100,Staff Expenses Claim
BIS,Skills Funding Agency,06/04/2016,Subsistence,Funding & Programmes - Provider Management & Intervention Central,Agency Staff Member,SCLAIM_45310,20,Staff Expenses Claim
BIS,Skills Funding Agency,06/04/2016,Subsistence,Large Companies Unit,Agency Staff Member,SCLAIM_45274,10,Staff Expenses Claim
BIS,Skills Funding Agency,06/04/2016,Subsistence,Large Companies Unit,Agency Staff Member,SCLAIM_45275,52,Staff Expenses Claim
BIS,Skills Funding Agency,06/04/2016,Subsistence,Large Companies Unit,Agency Staff Member,SCLAIM_45276,40,Staff Expenses Claim
BIS,Skills Funding Agency,06/04/2016,Subsistence,Large Companies Unit,Agency Staff Member,SCLAIM_45286,50,Staff Expenses Claim
BIS,Skills Funding Agency,06/04/2016,Subsistence,National Careers & Learner Services,Agency Staff Member,SCLAIM_45271,45,Staff Expenses Claim
BIS,Skills Funding Agency,06/04/2016,Subsistence,National Careers & Learner Services,Agency Staff Member,SCLAIM_45273,10,Staff Expenses Claim
BIS,Skills Funding Agency,06/04/2016,Subsistence,National Careers & Learner Services,Agency Staff Member,SCLAIM_45304,10,Staff Expenses Claim
BIS,Skills Funding Agency,06/04/2016,Subsistence,Operations Finance - Financial Management,Agency Staff Member,SCLAIM_45313,10,Staff Expenses Claim
BIS,Skills Funding Agency,06/04/2016,Subsistence,Operations ICT - Solution Design & Innovation,Agency Staff Member,SCLAIM_45311,125,Staff Expenses Claim
BIS,Skills Funding Agency,06/04/2016,Sundry Items,Funding & Programmes - Provider Management & Intervention Central,Agency Staff Member,SCLAIM_45310,-2,Staff Expenses Claim
BIS,Skills Funding Agency,06/04/2016,Sundry Items,National Careers & Learner Services,Agency Staff Member,SCLAIM_45308,15,Staff Expenses Claim
BIS,Skills Funding Agency,06/04/2016,Taxis,Apprenticeships & Delivery Services - Marketing,Agency Staff Member,SCLAIM_45272,14.8,Staff Expenses Claim
BIS,Skills Funding Agency,06/04/2016,Taxis,Apprenticeships & Delivery Services - Marketing,Agency Staff Member,SCLAIM_45301,43.55,Staff Expenses Claim
BIS,Skills Funding Agency,06/04/2016,Taxis,Apprenticeships & Delivery Services - Marketing,Agency Staff Member,SCLAIM_45322,10,Staff Expenses Claim
BIS,Skills Funding Agency,06/04/2016,Taxis,Chief Executive Office - Communications,Agency Staff Member,SCLAIM_45323,16.4,Staff Expenses Claim
BIS,Skills Funding Agency,06/04/2016,Taxis,Employer & Provider Services London,Agency Staff Member,SCLAIM_45303,24,Staff Expenses Claim
BIS,Skills Funding Agency,06/04/2016,Taxis,Employer & Provider Services North East & Yorkshire,Agency Staff Member,SCLAIM_45279,33.5,Staff Expenses Claim
BIS,Skills Funding Agency,06/04/2016,Taxis,Finance Division - Provider Finance,Agency Staff Member,SCLAIM_45324,8,Staff Expenses Claim
BIS,Skills Funding Agency,06/04/2016,Taxis,Large Companies Unit,Agency Staff Member,SCLAIM_45275,20,Staff Expenses Claim
BIS,Skills Funding Agency,06/04/2016,Taxis,National Careers & Learner Services,Agency Staff Member,SCLAIM_45271,10,Staff Expenses Claim
BIS,Skills Funding Agency,06/04/2016,Taxis,National Careers & Learner Services,Agency Staff Member,SCLAIM_45304,40,Staff Expenses Claim
BIS,Skills Funding Agency,06/04/2016,Training Materials,Funding & Programmes - Delivery & Performance,Agency Staff Member,SCLAIM_45305,25,Staff Expenses Claim
BIS,Skills Funding Agency,08/04/2016,Career Development Loans - Programme Support Costs,Main Funding,EDUCATION FUNDING AGENCY,SPINVB_30963,"135,120.00",Purchase Invoice
BIS,Skills Funding Agency,08/04/2016,Dance and Drama,Main Funding,EDUCATION FUNDING AGENCY,SPINVB_30963,"382,962.00",Purchase Invoice
BIS,Skills Funding Agency,08/04/2016,Hosting,Operations ICT - Technical Design Authority,FORDWAY SOLUTIONS LIMITED,SPINVB_31004,"97,150.27",Purchase Invoice
BIS,Skills Funding Agency,08/04/2016,Hosting,Operations ICT - Technical Design Authority,FORDWAY SOLUTIONS LIMITED,SPINVB_31006,"7,045.50",Purchase Invoice
BIS,Skills Funding Agency,08/04/2016,Hosting,Operations ICT - Technical Design Authority,FORDWAY SOLUTIONS LIMITED,SPINVB_31007,"51,348.00",Purchase Invoice
BIS,Skills Funding Agency,08/04/2016,Hosting,Operations ICT - Technical Design Authority,FORDWAY SOLUTIONS LIMITED,SPINVB_31008,"37,245.64",Purchase Invoice
BIS,Skills Funding Agency,08/04/2016,Hosting,Operations ICT - Technical Design Authority,FORDWAY SOLUTIONS LIMITED,SPINVB_31009,"11,579.58",Purchase Invoice
BIS,Skills Funding Agency,08/04/2016,Hosting,Operations ICT - Technical Design Authority,FORDWAY SOLUTIONS LIMITED,SPINVB_31010,"9,306.00",Purchase Invoice
BIS,Skills Funding Agency,08/04/2016,Hosting,Operations ICT - Technical Design Authority,FORDWAY SOLUTIONS LIMITED,SPINVB_31011,"2,709.01",Purchase Invoice
BIS,Skills Funding Agency,08/04/2016,Hosting,Operations ICT - Technical Design Authority,FORDWAY SOLUTIONS LIMITED,SPINVB_31013,"31,476.46",Purchase Invoice
BIS,Skills Funding Agency,08/04/2016,Hosting,Operations ICT - Technical Design Authority,FORDWAY SOLUTIONS LIMITED,SPINVB_31014,27.6,Purchase Invoice
BIS,Skills Funding Agency,08/04/2016,Hosting,Operations ICT - Technical Design Authority,FORDWAY SOLUTIONS LIMITED,SPINVB_31015,"2,821.50",Purchase Invoice
BIS,Skills Funding Agency,08/04/2016,Licences,Operations ICT - Service Integration & Management,SCARISTA LTD,SPINVB_31063,300.53,Purchase Invoice
BIS,Skills Funding Agency,08/04/2016,Local Growth Deals,Main Funding,PRICE WATERHOUSE COOPER LLP,SPINVB_30916,"244,000.00",Purchase Invoice
BIS,Skills Funding Agency,08/04/2016,Managed IT Service,Funding & Programmes - Funding Systems and Information,ANALYSE-CONCEPT LTD,SPINVB_30898,"16,800.00",Purchase Invoice
BIS,Skills Funding Agency,08/04/2016,Managed IT Service,Funding & Programmes - Funding Systems and Information,ANALYSE-CONCEPT LTD,SPINVB_30900,"14,683.20",Purchase Invoice
BIS,Skills Funding Agency,08/04/2016,Managed IT Service,Operations ICT - Citizen Digital Service,SCROLL LLP,SPINVB_30967,"13,362.48",Purchase Invoice
BIS,Skills Funding Agency,08/04/2016,"National Apprenticeship Service - Business, Innovation & Skills - Non-Participation",Main Funding,INSPIRED NEIGHBOURHOODS C.I.C.,SPINVB_31088,"4,990.00",Purchase Invoice
BIS,Skills Funding Agency,08/04/2016,Office Refreshments,Operations Finance - Financial Management,MADELEY DAIRIES,SPINVB_31095,14.79,Purchase Invoice
BIS,Skills Funding Agency,08/04/2016,Other Events,Apprenticeships & Delivery Services - Marketing,CAPITA TRAVEL AND EVENTS LTD,IPINVELECT3_2033,"11,238.00",Purchase Invoice
BIS,Skills Funding Agency,08/04/2016,Professional Services - Single Assignments,Funding & Programmes - Delivery & Performance - Programme Delivery,TRUEPENNY PEOPLE UK LTD,SPINVB_30996,"12,000.00",Purchase Invoice
BIS,Skills Funding Agency,08/04/2016,Professional Services - Single Assignments,Operations ICT - Projects,CAPGEMINI UK PLC,SPCRNB_1099,"-5,169.29",Purchase Credit Note
BIS,Skills Funding Agency,08/04/2016,Professional Services - Single Assignments,Operations ICT - Projects,CAPGEMINI UK PLC,SPINVB_30975,"259,327.97",Purchase Invoice
BIS,Skills Funding Agency,08/04/2016,Professional Services - Single Assignments,Operations ICT - Projects,CIBER UK LIMITED,SPCRNB_1096,-38.4,Purchase Credit Note
BIS,Skills Funding Agency,08/04/2016,Professional Services - Single Assignments,Operations ICT - Projects,CIBER UK LIMITED,SPCRNB_1097,-495.42,Purchase Credit Note
BIS,Skills Funding Agency,08/04/2016,Professional Services - Single Assignments,Operations ICT - Projects,CIBER UK LIMITED,SPCRNB_1098,-124.79,Purchase Credit Note
BIS,Skills Funding Agency,08/04/2016,Professional Services - Single Assignments,Operations ICT - Projects,CIBER UK LIMITED,SPINVB_29899,"3,816.61",Purchase Invoice
BIS,Skills Funding Agency,08/04/2016,Professional Services - Single Assignments,Operations ICT - Projects,CIBER UK LIMITED,SPINVB_29900,"5,358.94",Purchase Invoice
BIS,Skills Funding Agency,08/04/2016,Professional Services - Single Assignments,Operations ICT - Projects,CIBER UK LIMITED,SPINVB_29901,"4,258.88",Purchase Invoice
BIS,Skills Funding Agency,08/04/2016,Professional Services,Operations ICT - Mission IT / Business As Usual Major Releases,CAPGEMINI UK PLC,SPINVB_30983,"22,912.10",Purchase Invoice
BIS,Skills Funding Agency,08/04/2016,Professional Services,Operations ICT - Mission IT / Business As Usual Major Releases,INFOR GLOBAL SOLUTIONS (MIDLANDS IV) LTD,SPINVB_30921,"18,281.26",Purchase Invoice
BIS,Skills Funding Agency,08/04/2016,Software Maintenance & Repair,Operations ICT - Business IT - Agency Services,FORDWAY SOLUTIONS LIMITED,SPINVB_31012,"12,170.40",Purchase Invoice
BIS,Skills Funding Agency,08/04/2016,Software Maintenance & Repair,Operations ICT - Technical Design Authority,FORDWAY SOLUTIONS LIMITED,SPINVB_31016,"1,620.00",Purchase Invoice
BIS,Skills Funding Agency,08/04/2016,Software Maintenance & Repair,Operations ICT - Technical Design Authority,MICROSOFT LTD,SPINVB_31062,"159,022.80",Purchase Invoice
BIS,Skills Funding Agency,08/04/2016,Temporary Staff,HR - Human Resources,SF RECRUITMENT LTD,SPINVB_30992,567,Purchase Invoice
BIS,Skills Funding Agency,08/04/2016,Temporary Staff,Operations ICT - Change Delivery,BADENOCH & CLARK IP LTD,IPINVELECT3_2031,"4,555.87",Purchase Invoice
BIS,Skills Funding Agency,08/04/2016,Temporary Staff,Operations ICT - Citizen Digital Service,CAPITA BUSINESS SERVICES LTD,IPINVELECT3_2032,"2,630.93",Purchase Invoice
BIS,Skills Funding Agency,08/04/2016,Temporary Staff,Operations ICT - Employer Digital Service,CAPITA BUSINESS SERVICES LTD,IPINVELECT3_2032,"1,992.24",Purchase Invoice
BIS,Skills Funding Agency,08/04/2016,Temporary Staff,Operations ICT - Information & Communication Technology - Technical,CAPITA BUSINESS SERVICES LTD,IPINVELECT3_2032,"1,583.46",Purchase Invoice
BIS,Skills Funding Agency,08/04/2016,Temporary Staff,Operations ICT - Project Delivery,CAPITA BUSINESS SERVICES LTD,IPINVELECT3_2032,"7,370.93",Purchase Invoice
BIS,Skills Funding Agency,08/04/2016,Temporary Staff,Operations ICT - Technical Design Authority,CAPITA BUSINESS SERVICES LTD,IPINVELECT3_2032,"38,390.46",Purchase Invoice
BIS,Skills Funding Agency,08/04/2016,Training Venue & Refreshments,Apprenticeships & Delivery Services - Apprenticeships & Employer Policy Implementation,CAPITA TRAVEL AND EVENTS LTD,IPINVELECT3_2033,"4,426.80",Purchase Invoice
BIS,Skills Funding Agency,08/04/2016,Training Venue & Refreshments,Large Companies Unit,CAPITA TRAVEL AND EVENTS LTD,IPINVELECT3_2033,243,Purchase Invoice
BIS,Skills Funding Agency,08/04/2016,Training Venue & Refreshments,National Careers & Learner Services,CAPITA TRAVEL AND EVENTS LTD,IPINVELECT3_2033,554.4,Purchase Invoice
BIS,Skills Funding Agency,12/04/2016,Computer Hardware,Operations ICT - Technical Design Authority,SPECIALIST COMPUTER CENTRES PLC,SPINVB_31041,"22,603.15",Purchase Invoice
BIS,Skills Funding Agency,12/04/2016,Computer Hardware,Operations ICT - Technical Design Authority,SPECIALIST COMPUTER CENTRES PLC,SPINVB_31042,"20,609.42",Purchase Invoice
BIS,Skills Funding Agency,12/04/2016,Computer Hardware,Operations ICT - Technical Design Authority,SPECIALIST COMPUTER CENTRES PLC,SPINVB_31045,"57,420.00",Purchase Invoice
BIS,Skills Funding Agency,12/04/2016,Employee Recognition Scheme,HR - Human Resources,P&MM LTD,SPINVB_30806,"4,391.01",Purchase Invoice
BIS,Skills Funding Agency,12/04/2016,Equipment Consumables,Operations ICT - Technical Design Authority,UNIFY ENTERPRISE COMMUNICATIONS LTD,SPINVB_30986,"73,208.50",Purchase Invoice
BIS,Skills Funding Agency,12/04/2016,Equipment Consumables,Operations ICT - Technical Design Authority,XMA LTD,SPINVB_31098,193.04,Purchase Invoice
BIS,Skills Funding Agency,12/04/2016,Equipment Consumables,Operations ICT - Technical Design Authority,XMA LTD,SPINVB_31099,"3,860.88",Purchase Invoice
BIS,Skills Funding Agency,12/04/2016,Gas,Chief Executive Office - Executive Office,CORONA ENERGY LTD,SPINVNO_3812,"1,604.15",Purchase Invoice
BIS,Skills Funding Agency,12/04/2016,Gas,Chief Executive Office - Executive Office,CORONA ENERGY LTD,SPINVNO_3813,"6,221.00",Purchase Invoice
BIS,Skills Funding Agency,12/04/2016,Hardware Maintenance & Repair,Operations ICT - Technical Design Authority,CGI IT UK LIMITED,SPINVB_30859,"157,694.40",Purchase Invoice
BIS,Skills Funding Agency,12/04/2016,Hosting,Operations ICT - Technical Design Authority,SPECIALIST COMPUTER CENTRES PLC,SPINVB_31028,"17,888.00",Purchase Invoice
BIS,Skills Funding Agency,12/04/2016,Hosting,Operations ICT - Technical Design Authority,SPECIALIST COMPUTER CENTRES PLC,SPINVB_31029,"17,612.96",Purchase Invoice
BIS,Skills Funding Agency,12/04/2016,Hosting,Operations ICT - Technical Design Authority,SPECIALIST COMPUTER CENTRES PLC,SPINVB_31032,"12,131.21",Purchase Invoice
BIS,Skills Funding Agency,12/04/2016,Hosting,Operations ICT - Technical Design Authority,SPECIALIST COMPUTER CENTRES PLC,SPINVB_31033,"13,596.00",Purchase Invoice
BIS,Skills Funding Agency,12/04/2016,Hosting,Operations ICT - Technical Design Authority,SPECIALIST COMPUTER CENTRES PLC,SPINVB_31034,"2,970.00",Purchase Invoice
BIS,Skills Funding Agency,12/04/2016,Hosting,Operations ICT - Technical Design Authority,SPECIALIST COMPUTER CENTRES PLC,SPINVB_31035,"1,716.00",Purchase Invoice
BIS,Skills Funding Agency,12/04/2016,Hosting,Operations ICT - Technical Design Authority,SPECIALIST COMPUTER CENTRES PLC,SPINVB_31040,"9,840.00",Purchase Invoice
BIS,Skills Funding Agency,12/04/2016,Managed IT Service,Funding & Programmes - Delivery & Performance - Data Collections,TRUEPENNY PEOPLE UK LTD,SPINVB_30995,"10,200.00",Purchase Invoice
BIS,Skills Funding Agency,12/04/2016,Managed IT Service,Funding & Programmes - Delivery & Performance - Data Collections,TRUEPENNY PEOPLE UK LTD,SPINVB_30997,"27,804.48",Purchase Invoice
BIS,Skills Funding Agency,12/04/2016,Managed IT Service,Funding & Programmes - Delivery & Performance - Performance & Management Information,MASTEK UK LIMITED,SPINVB_31102,"10,584.00",Purchase Invoice
BIS,Skills Funding Agency,12/04/2016,Managed IT Service,Funding & Programmes - Funding Systems and Information,ANALYSE-CONCEPT LTD,SPINVB_30847,704.8,Purchase Invoice
BIS,Skills Funding Agency,12/04/2016,Managed IT Service,Funding & Programmes - Funding Systems and Information,PANLOGIC LTD,SPINVB_30419,"1,189.80",Purchase Invoice
BIS,Skills Funding Agency,12/04/2016,Managed IT Service,Funding & Programmes - Funding Systems and Information,PANLOGIC LTD,SPINVB_30421,"1,189.80",Purchase Invoice
BIS,Skills Funding Agency,12/04/2016,Managed IT Service,Operations ICT - Citizen Digital Service,LOCKHEED MARTIN BUSINESS TECHNOLOGY SOLUTIONS LIMITED,SPINVB_31071,"14,933.10",Purchase Invoice
BIS,Skills Funding Agency,12/04/2016,Managed IT Service,Operations ICT - Citizen Digital Service,LOCKHEED MARTIN BUSINESS TECHNOLOGY SOLUTIONS LIMITED,SPINVB_31072,"15,015.89",Purchase Invoice
BIS,Skills Funding Agency,12/04/2016,Managed IT Service,Operations ICT - Projects,ORANGE BUS LIMITED,SPINVB_30907,"10,402.93",Purchase Invoice
BIS,Skills Funding Agency,12/04/2016,Managed IT Service,Operations ICT - Solution Design & Innovation,LOCKHEED MARTIN BUSINESS TECHNOLOGY SOLUTIONS LIMITED,SPINVB_31068,"12,360.00",Purchase Invoice
BIS,Skills Funding Agency,12/04/2016,"National Apprenticeship Service - Business, Innovation & Skills - Non-Participation",Main Funding,SHROPSHIRE COUNTY COUNCIL,SPINVB_30941,"2,100.00",Purchase Invoice
BIS,Skills Funding Agency,12/04/2016,None,None,GREATER LONDON AUTHORITY,TREASURYADJ_399,"8,610.00",Duplicate Receipt Refund
BIS,Skills Funding Agency,12/04/2016,Photocopier Rental,Operations ICT - Business IT - Agency Services,XEROX FINANCE LTD,SPINVB_30879,"1,581.20",Purchase Invoice
BIS,Skills Funding Agency,12/04/2016,Photocopier Rental,Operations ICT - Business IT - Agency Services,XEROX UK LIMITED,SPINVB_30994,13656.11,Purchase Invoice
BIS,Skills Funding Agency,12/04/2016,Postage,Chief Executive Office - Executive Office,ROYAL MAIL HOLDINGS PLC,SPINVNO_3811,"1,162.72",Purchase Invoice
BIS,Skills Funding Agency,12/04/2016,Professional Services - Single Assignments,Operations ICT - Projects,CIBER UK LIMITED,SPINVB_31064,"110,484.00",Purchase Invoice
BIS,Skills Funding Agency,12/04/2016,Professional Services,Operations ICT - Technical Design Authority,SPECIALIST COMPUTER CENTRES PLC,SPINVB_31026,"1,260.00",Purchase Invoice
BIS,Skills Funding Agency,12/04/2016,Professional Services,Operations ICT - Technical Design Authority,SPECIALIST COMPUTER CENTRES PLC,SPINVB_31030,"12,606.00",Purchase Invoice
BIS,Skills Funding Agency,12/04/2016,Professional Services,Operations ICT - Technical Design Authority,SPECIALIST COMPUTER CENTRES PLC,SPINVB_31031,"6,114.00",Purchase Invoice
BIS,Skills Funding Agency,12/04/2016,Professional Services,Operations ICT - Technical Design Authority,SPECIALIST COMPUTER CENTRES PLC,SPINVB_31036,"33,396.00",Purchase Invoice
BIS,Skills Funding Agency,12/04/2016,Professional Services,Operations ICT - Technical Design Authority,SPECIALIST COMPUTER CENTRES PLC,SPINVB_31037,858,Purchase Invoice
BIS,Skills Funding Agency,12/04/2016,Professional Services,Operations ICT - Technical Design Authority,SPECIALIST COMPUTER CENTRES PLC,SPINVB_31038,"3,696.00",Purchase Invoice
BIS,Skills Funding Agency,12/04/2016,Professional Services,Operations ICT - Technical Design Authority,SPECIALIST COMPUTER CENTRES PLC,SPINVB_31039,"5,313.00",Purchase Invoice
BIS,Skills Funding Agency,12/04/2016,Professional Services,Operations ICT - Technical Design Authority,SPECIALIST COMPUTER CENTRES PLC,SPINVB_31043,"38,709.00",Purchase Invoice
BIS,Skills Funding Agency,12/04/2016,Software Maintenance & Repair,Operations ICT - Project Delivery,PROGRAM FRAMEWORK LIMITED,SPINVB_31075,"7,905.12",Purchase Invoice
BIS,Skills Funding Agency,12/04/2016,Software Maintenance & Repair,Operations ICT - Technical Design Authority,LOCKHEED MARTIN BUSINESS TECHNOLOGY SOLUTIONS LIMITED,SPINVB_31069,"84,179.76",Purchase Invoice
BIS,Skills Funding Agency,12/04/2016,Software Maintenance & Repair,Operations ICT - Technical Design Authority,MATRAXIS LTD,SPINVB_30968,"74,643.79",Purchase Invoice
BIS,Skills Funding Agency,12/04/2016,Support Services,Funding & Programmes - Delivery & Performance - Data Collections,NCC GROUP SECURITY SERVICES LTD,SPINVB_30999,"16,104.48",Purchase Invoice
BIS,Skills Funding Agency,12/04/2016,Temporary Staff,Funding & Programmes - Delivery & Performance,CAPGEMINI UK PLC,SPINVB_30970,278.4,Purchase Invoice
BIS,Skills Funding Agency,12/04/2016,Temporary Staff,Funding & Programmes - Executive Office,SMART SOURCING PLC,SPINVB_30824,"3,317.30",Purchase Invoice
BIS,Skills Funding Agency,12/04/2016,Temporary Staff,Operations Finance - Accounting Services,HAYS SPECIALIST RECRUITMENT LTD,IPINVELECT3_2034,"1,674.00",Purchase Invoice
BIS,Skills Funding Agency,12/04/2016,Temporary Staff,Operations ICT - Change Delivery,BADENOCH & CLARK IP LTD,IPINVELECT3_2035,"1,012.42",Purchase Invoice
BIS,Skills Funding Agency,12/04/2016,Temporary Staff,Operations ICT - Citizen Digital Service,PARITY RESOURCES LTD,SPINVB_31056,"3,217.73",Purchase Invoice
BIS,Skills Funding Agency,12/04/2016,Temporary Staff,Operations ICT - Employer Digital Service,SMART SOURCING PLC,SPINVB_30824,"4,765.01",Purchase Invoice
BIS,Skills Funding Agency,12/04/2016,Temporary Staff,Operations ICT - Project Delivery,METHODS ADVISORY LTD,SPINVB_31021,"8,132.44",Purchase Invoice
BIS,Skills Funding Agency,12/04/2016,Temporary Staff,Operations ICT - Project Delivery,PARITY RESOURCES LTD,SPINVB_30864,"11,255.70",Purchase Invoice
BIS,Skills Funding Agency,12/04/2016,Temporary Staff,Operations ICT - Project Delivery,PARITY RESOURCES LTD,SPINVB_31057,"5,958.90",Purchase Invoice
BIS,Skills Funding Agency,12/04/2016,Temporary Staff,Operations ICT - Project Delivery,PARITY RESOURCES LTD,SPINVB_31058,"7,460.16",Purchase Invoice
BIS,Skills Funding Agency,12/04/2016,Temporary Staff,Operations ICT - Project Delivery,PARITY RESOURCES LTD,SPINVB_31059,"10,406.23",Purchase Invoice
BIS,Skills Funding Agency,12/04/2016,Temporary Staff,Operations ICT - Project Delivery,PARITY RESOURCES LTD,SPINVB_31060,898.8,Purchase Invoice
BIS,Skills Funding Agency,12/04/2016,Temporary Staff,Operations ICT - Technical Design Authority,BAE SYSTEMS APPLIED INTELLIGENCE LIMITED,SPINVB_31051,194.27,Purchase Invoice
BIS,Skills Funding Agency,12/04/2016,Wide Area Networks,Operations ICT - Technical Design Authority,EXTERA LIMITED,SPINVB_30998,"21,987.60",Purchase Invoice
BIS,Skills Funding Agency,13/04/2016,16-18 Apprenticeship Grant for Employers - Centralised Contract Management,Main Funding,AGE UK TRADING LTD,AGEC_664,"-13,500.00",Programme System File
BIS,Skills Funding Agency,13/04/2016,16-18 Apprenticeship Grant for Employers - Centralised Contract Management,Main Funding,AGE UK TRADING LTD,AGER_2171,"13,500.00",Programme System File
BIS,Skills Funding Agency,13/04/2016,16-18 Apprenticeship Grant for Employers - Centralised Contract Management,Main Funding,AMERSHAM & WYCOMBE COLLEGE,AGER_2278,"3,000.00",Programme System File
BIS,Skills Funding Agency,13/04/2016,16-18 Apprenticeship Grant for Employers - Centralised Contract Management,Main Funding,ANDREW COLLINGE TRAINING LTD,AGEC_717,"-75,000.00",Programme System File
BIS,Skills Funding Agency,13/04/2016,16-18 Apprenticeship Grant for Employers - Centralised Contract Management,Main Funding,ANDREW COLLINGE TRAINING LTD,AGER_2321,"75,000.00",Programme System File
BIS,Skills Funding Agency,13/04/2016,16-18 Apprenticeship Grant for Employers - Centralised Contract Management,Main Funding,AYLESBURY COLLEGE,AGER_1000,"43,500.00",Programme System File
BIS,Skills Funding Agency,13/04/2016,16-18 Apprenticeship Grant for Employers - Centralised Contract Management,Main Funding,AYLESBURY COLLEGE,AGER_1668,"21,000.00",Programme System File
BIS,Skills Funding Agency,13/04/2016,16-18 Apprenticeship Grant for Employers - Centralised Contract Management,Main Funding,AYLESBURY COLLEGE,AGER_2440,"9,000.00",Programme System File
BIS,Skills Funding Agency,13/04/2016,16-18 Apprenticeship Grant for Employers - Centralised Contract Management,Main Funding,BEXLEY YOUTH TRAINING GROUP,AGEC_860,"-9,000.00",Programme System File
BIS,Skills Funding Agency,13/04/2016,16-18 Apprenticeship Grant for Employers - Centralised Contract Management,Main Funding,BEXLEY YOUTH TRAINING GROUP,AGER_2753,"9,000.00",Programme System File
BIS,Skills Funding Agency,13/04/2016,16-18 Apprenticeship Grant for Employers - Centralised Contract Management,Main Funding,BOURNEMOUTH & POOLE COLLEGE,AGEC_921,"-61,500.00",Programme System File
BIS,Skills Funding Agency,13/04/2016,16-18 Apprenticeship Grant for Employers - Centralised Contract Management,Main Funding,BOURNEMOUTH & POOLE COLLEGE,AGER_2917,"61,500.00",Programme System File
BIS,Skills Funding Agency,13/04/2016,16-18 Apprenticeship Grant for Employers - Centralised Contract Management,Main Funding,BRISTOL CITY COUNCIL,AGEC_649,"-34,500.00",Programme System File
BIS,Skills Funding Agency,13/04/2016,16-18 Apprenticeship Grant for Employers - Centralised Contract Management,Main Funding,BRISTOL CITY COUNCIL,AGER_2103,"34,500.00",Programme System File
BIS,Skills Funding Agency,13/04/2016,16-18 Apprenticeship Grant for Employers - Centralised Contract Management,Main Funding,BROADLAND DISTRICT COUNCIL,AGER_2233,"4,500.00",Programme System File
BIS,Skills Funding Agency,13/04/2016,16-18 Apprenticeship Grant for Employers - Centralised Contract Management,Main Funding,CALDERDALE COLLEGE,AGER_2257,"4,500.00",Programme System File
BIS,Skills Funding Agency,13/04/2016,16-18 Apprenticeship Grant for Employers - Centralised Contract Management,Main Funding,CARLISLE COLLEGE,AGEC_706,"-1,500.00",Programme System File
BIS,Skills Funding Agency,13/04/2016,16-18 Apprenticeship Grant for Employers - Centralised Contract Management,Main Funding,CARLISLE COLLEGE,AGER_2275,"7,500.00",Programme System File
BIS,Skills Funding Agency,13/04/2016,16-18 Apprenticeship Grant for Employers - Centralised Contract Management,Main Funding,CARSHALTON COLLEGE,AGEC_708,"-51,000.00",Programme System File
BIS,Skills Funding Agency,13/04/2016,16-18 Apprenticeship Grant for Employers - Centralised Contract Management,Main Funding,CARSHALTON COLLEGE,AGER_2280,"51,000.00",Programme System File
BIS,Skills Funding Agency,13/04/2016,16-18 Apprenticeship Grant for Employers - Centralised Contract Management,Main Funding,CHEYNES MANAGEMENT LTD,AGEC_938,"-10,500.00",Programme System File
BIS,Skills Funding Agency,13/04/2016,16-18 Apprenticeship Grant for Employers - Centralised Contract Management,Main Funding,CHEYNES MANAGEMENT LTD,AGER_2949,"10,500.00",Programme System File
BIS,Skills Funding Agency,13/04/2016,16-18 Apprenticeship Grant for Employers - Centralised Contract Management,Main Funding,COVENTRY & WARWICKSHIRE CHAMBERS OF COMMERCE TRAINING LIMITED,AGEC_704,"-37,500.00",Programme System File
BIS,Skills Funding Agency,13/04/2016,16-18 Apprenticeship Grant for Employers - Centralised Contract Management,Main Funding,COVENTRY & WARWICKSHIRE CHAMBERS OF COMMERCE TRAINING LIMITED,AGER_2273,"37,500.00",Programme System File
BIS,Skills Funding Agency,13/04/2016,16-18 Apprenticeship Grant for Employers - Centralised Contract Management,Main Funding,CREATIVE PROCESS,AGEC_655,"-3,000.00",Programme System File
BIS,Skills Funding Agency,13/04/2016,16-18 Apprenticeship Grant for Employers - Centralised Contract Management,Main Funding,CREATIVE PROCESS,AGER_2130,"3,000.00",Programme System File
BIS,Skills Funding Agency,13/04/2016,16-18 Apprenticeship Grant for Employers - Centralised Contract Management,Main Funding,DARLINGTON COLLEGE,AGEC_723,"-9,000.00",Programme System File
BIS,Skills Funding Agency,13/04/2016,16-18 Apprenticeship Grant for Employers - Centralised Contract Management,Main Funding,DARLINGTON COLLEGE,AGER_1409,"4,500.00",Programme System File
BIS,Skills Funding Agency,13/04/2016,16-18 Apprenticeship Grant for Employers - Centralised Contract Management,Main Funding,DARLINGTON COLLEGE,AGER_2327,"12,000.00",Programme System File
BIS,Skills Funding Agency,13/04/2016,16-18 Apprenticeship Grant for Employers - Centralised Contract Management,Main Funding,DARLINGTON COLLEGE,AGER_568,"52,500.00",Programme System File
BIS,Skills Funding Agency,13/04/2016,16-18 Apprenticeship Grant for Employers - Centralised Contract Management,Main Funding,DERBYSHIRE COUNTY COUNCIL,AGEC_731,"-1,500.00",Programme System File
BIS,Skills Funding Agency,13/04/2016,16-18 Apprenticeship Grant for Employers - Centralised Contract Management,Main Funding,DERBYSHIRE COUNTY COUNCIL,AGER_2344,"1,500.00",Programme System File
BIS,Skills Funding Agency,13/04/2016,16-18 Apprenticeship Grant for Employers - Centralised Contract Management,Main Funding,EAST RIDING OF YORKSHIRE COUNCIL,AGER_1004,"6,000.00",Programme System File
BIS,Skills Funding Agency,13/04/2016,16-18 Apprenticeship Grant for Employers - Centralised Contract Management,Main Funding,EDUCATION & TRAINING SKILLS LTD,AGEC_741,"-1,500.00",Programme System File
BIS,Skills Funding Agency,13/04/2016,16-18 Apprenticeship Grant for Employers - Centralised Contract Management,Main Funding,EDUCATION & TRAINING SKILLS LTD,AGER_2362,"3,000.00",Programme System File
BIS,Skills Funding Agency,13/04/2016,16-18 Apprenticeship Grant for Employers - Centralised Contract Management,Main Funding,FAREHAM COLLEGE,AGEC_933,"-54,000.00",Programme System File
BIS,Skills Funding Agency,13/04/2016,16-18 Apprenticeship Grant for Employers - Centralised Contract Management,Main Funding,FAREHAM COLLEGE,AGER_2942,"54,000.00",Programme System File
BIS,Skills Funding Agency,13/04/2016,16-18 Apprenticeship Grant for Employers - Centralised Contract Management,Main Funding,FAREPORT TRAINING ORGANISATION LTD,AGEC_742,"-22,500.00",Programme System File
BIS,Skills Funding Agency,13/04/2016,16-18 Apprenticeship Grant for Employers - Centralised Contract Management,Main Funding,FAREPORT TRAINING ORGANISATION LTD,AGER_2372,"22,500.00",Programme System File
BIS,Skills Funding Agency,13/04/2016,16-18 Apprenticeship Grant for Employers - Centralised Contract Management,Main Funding,HACKNEY COMMUNITY COLLEGE,AGEC_758,"-13,500.00",Programme System File
BIS,Skills Funding Agency,13/04/2016,16-18 Apprenticeship Grant for Employers - Centralised Contract Management,Main Funding,HACKNEY COMMUNITY COLLEGE,AGER_2402,"135,000.00",Programme System File
BIS,Skills Funding Agency,13/04/2016,16-18 Apprenticeship Grant for Employers - Centralised Contract Management,Main Funding,HARROW COLLEGE,AGER_2417,"-3,000.00",Programme System File
BIS,Skills Funding Agency,13/04/2016,16-18 Apprenticeship Grant for Employers - Centralised Contract Management,Main Funding,HAVANT COLLEGE,AGER_1456,"1,500.00",Programme System File
BIS,Skills Funding Agency,13/04/2016,16-18 Apprenticeship Grant for Employers - Centralised Contract Management,Main Funding,HAVANT COLLEGE,AGER_636,"4,500.00",Programme System File
BIS,Skills Funding Agency,13/04/2016,16-18 Apprenticeship Grant for Employers - Centralised Contract Management,Main Funding,HAVERING COLLEGE OF FURTHER & HIGHER EDUCATION,AGEC_762,"-31,500.00",Programme System File
BIS,Skills Funding Agency,13/04/2016,16-18 Apprenticeship Grant for Employers - Centralised Contract Management,Main Funding,HAVERING COLLEGE OF FURTHER & HIGHER EDUCATION,AGER_2426,"31,500.00",Programme System File
BIS,Skills Funding Agency,13/04/2016,16-18 Apprenticeship Grant for Employers - Centralised Contract Management,Main Funding,HUDSON & HUGHES TRAINING LTD,AGEC_683,"-1,500.00",Programme System File
BIS,Skills Funding Agency,13/04/2016,16-18 Apprenticeship Grant for Employers - Centralised Contract Management,Main Funding,HUDSON & HUGHES TRAINING LTD,AGER_2218,"1,500.00",Programme System File
BIS,Skills Funding Agency,13/04/2016,16-18 Apprenticeship Grant for Employers - Centralised Contract Management,Main Funding,HUMBER LEARNING CONSORTIUM,AGEC_777,"-7,500.00",Programme System File
BIS,Skills Funding Agency,13/04/2016,16-18 Apprenticeship Grant for Employers - Centralised Contract Management,Main Funding,HUMBER LEARNING CONSORTIUM,AGER_2462,"7,500.00",Programme System File
BIS,Skills Funding Agency,13/04/2016,16-18 Apprenticeship Grant for Employers - Centralised Contract Management,Main Funding,ICON VOCATIONAL TRAINING LTD,AGEC_782,"-13,500.00",Programme System File
BIS,Skills Funding Agency,13/04/2016,16-18 Apprenticeship Grant for Employers - Centralised Contract Management,Main Funding,ICON VOCATIONAL TRAINING LTD,AGER_2468,"13,500.00",Programme System File
BIS,Skills Funding Agency,13/04/2016,16-18 Apprenticeship Grant for Employers - Centralised Contract Management,Main Funding,JOHN LEGGOTT SIXTH FORM COLLEGE,AGEC_686,"-1,500.00",Programme System File
BIS,Skills Funding Agency,13/04/2016,16-18 Apprenticeship Grant for Employers - Centralised Contract Management,Main Funding,JOHN LEGGOTT SIXTH FORM COLLEGE,AGER_2223,"1,500.00",Programme System File
BIS,Skills Funding Agency,13/04/2016,16-18 Apprenticeship Grant for Employers - Centralised Contract Management,Main Funding,KINGSTON COLLEGE,AGEC_788,"-24,000.00",Programme System File
BIS,Skills Funding Agency,13/04/2016,16-18 Apprenticeship Grant for Employers - Centralised Contract Management,Main Funding,KINGSTON COLLEGE,AGER_2491,"24,000.00",Programme System File
BIS,Skills Funding Agency,13/04/2016,16-18 Apprenticeship Grant for Employers - Centralised Contract Management,Main Funding,KINGSTON UPON HULL CITY COUNCIL,AGEC_773,"-21,000.00",Programme System File
BIS,Skills Funding Agency,13/04/2016,16-18 Apprenticeship Grant for Employers - Centralised Contract Management,Main Funding,KINGSTON UPON HULL CITY COUNCIL,AGER_2453,"21,000.00",Programme System File
BIS,Skills Funding Agency,13/04/2016,16-18 Apprenticeship Grant for Employers - Centralised Contract Management,Main Funding,LESOCO,AGER_672,"3,000.00",Programme System File
BIS,Skills Funding Agency,13/04/2016,16-18 Apprenticeship Grant for Employers - Centralised Contract Management,Main Funding,LIGA (UK) LTD,AGEC_675,"-19,500.00",Programme System File
BIS,Skills Funding Agency,13/04/2016,16-18 Apprenticeship Grant for Employers - Centralised Contract Management,Main Funding,LIGA (UK) LTD,AGER_2195,"19,500.00",Programme System File
BIS,Skills Funding Agency,13/04/2016,16-18 Apprenticeship Grant for Employers - Centralised Contract Management,Main Funding,LONDON BOROUGH OF WALTHAM FOREST,AGEC_685,"-4,500.00",Programme System File
BIS,Skills Funding Agency,13/04/2016,16-18 Apprenticeship Grant for Employers - Centralised Contract Management,Main Funding,LONDON BOROUGH OF WALTHAM FOREST,AGER_2220,"4,500.00",Programme System File
BIS,Skills Funding Agency,13/04/2016,16-18 Apprenticeship Grant for Employers - Centralised Contract Management,Main Funding,LOWESTOFT COLLEGE,AGEC_801,"-6,000.00",Programme System File
BIS,Skills Funding Agency,13/04/2016,16-18 Apprenticeship Grant for Employers - Centralised Contract Management,Main Funding,LOWESTOFT COLLEGE,AGER_1472,"21,000.00",Programme System File
BIS,Skills Funding Agency,13/04/2016,16-18 Apprenticeship Grant for Employers - Centralised Contract Management,Main Funding,LOWESTOFT COLLEGE,AGER_2532,"12,000.00",Programme System File
BIS,Skills Funding Agency,13/04/2016,16-18 Apprenticeship Grant for Employers - Centralised Contract Management,Main Funding,MARR CORPORTATION LIMITED,AGER_2136,"-1,500.00",Programme System File
BIS,Skills Funding Agency,13/04/2016,16-18 Apprenticeship Grant for Employers - Centralised Contract Management,Main Funding,MIDDLESBROUGH COLLEGE,AGEC_805,"-15,000.00",Programme System File
BIS,Skills Funding Agency,13/04/2016,16-18 Apprenticeship Grant for Employers - Centralised Contract Management,Main Funding,MIDDLESBROUGH COLLEGE,AGER_2556,"21,000.00",Programme System File
BIS,Skills Funding Agency,13/04/2016,16-18 Apprenticeship Grant for Employers - Centralised Contract Management,Main Funding,MILLBROOK MANAGEMENT SERVICES LTD,AGER_2678,"1,500.00",Programme System File
BIS,Skills Funding Agency,13/04/2016,16-18 Apprenticeship Grant for Employers - Centralised Contract Management,Main Funding,MOMENTUM TRAINING & CONSULTANCY LTD,AGER_2230,"-1,500.00",Programme System File
BIS,Skills Funding Agency,13/04/2016,16-18 Apprenticeship Grant for Employers - Centralised Contract Management,Main Funding,NELSON & COLNE COLLEGE,AGEC_811,"-21,000.00",Programme System File
BIS,Skills Funding Agency,13/04/2016,16-18 Apprenticeship Grant for Employers - Centralised Contract Management,Main Funding,NELSON & COLNE COLLEGE,AGER_2586,"21,000.00",Programme System File
BIS,Skills Funding Agency,13/04/2016,16-18 Apprenticeship Grant for Employers - Centralised Contract Management,Main Funding,NEWCASTLE COLLEGE,AGEC_229,"-159,000.00",Programme System File
BIS,Skills Funding Agency,13/04/2016,16-18 Apprenticeship Grant for Employers - Centralised Contract Management,Main Funding,NEWCASTLE COLLEGE,AGEC_371,"-1,500.00",Programme System File
BIS,Skills Funding Agency,13/04/2016,16-18 Apprenticeship Grant for Employers - Centralised Contract Management,Main Funding,NEWCASTLE COLLEGE,AGEC_373,"-39,000.00",Programme System File
BIS,Skills Funding Agency,13/04/2016,16-18 Apprenticeship Grant for Employers - Centralised Contract Management,Main Funding,NEWCASTLE COLLEGE,AGEC_690,"-9,000.00",Programme System File
BIS,Skills Funding Agency,13/04/2016,16-18 Apprenticeship Grant for Employers - Centralised Contract Management,Main Funding,NEWCASTLE COLLEGE,AGEC_692,"-42,000.00",Programme System File
BIS,Skills Funding Agency,13/04/2016,16-18 Apprenticeship Grant for Employers - Centralised Contract Management,Main Funding,NEWCASTLE COLLEGE,AGEC_94,"-6,710.00",Programme System File
BIS,Skills Funding Agency,13/04/2016,16-18 Apprenticeship Grant for Employers - Centralised Contract Management,Main Funding,NEWCASTLE COLLEGE,AGER_1336,"7,500.00",Programme System File
BIS,Skills Funding Agency,13/04/2016,16-18 Apprenticeship Grant for Employers - Centralised Contract Management,Main Funding,NEWCASTLE COLLEGE,AGER_1338,"4,500.00",Programme System File
BIS,Skills Funding Agency,13/04/2016,16-18 Apprenticeship Grant for Employers - Centralised Contract Management,Main Funding,NEWCASTLE COLLEGE,AGER_1342,"14,210.00",Programme System File
BIS,Skills Funding Agency,13/04/2016,16-18 Apprenticeship Grant for Employers - Centralised Contract Management,Main Funding,NEWCASTLE COLLEGE,AGER_1630,"159,000.00",Programme System File
BIS,Skills Funding Agency,13/04/2016,16-18 Apprenticeship Grant for Employers - Centralised Contract Management,Main Funding,NEWCASTLE COLLEGE,AGER_2244,"9,000.00",Programme System File
BIS,Skills Funding Agency,13/04/2016,16-18 Apprenticeship Grant for Employers - Centralised Contract Management,Main Funding,NEWCASTLE COLLEGE,AGER_2246,"42,000.00",Programme System File
BIS,Skills Funding Agency,13/04/2016,16-18 Apprenticeship Grant for Employers - Centralised Contract Management,Main Funding,NEWCASTLE COLLEGE,AGER_2248,"46,500.00",Programme System File
BIS,Skills Funding Agency,13/04/2016,16-18 Apprenticeship Grant for Employers - Centralised Contract Management,Main Funding,NEWCASTLE COLLEGE,AGER_440,"49,500.00",Programme System File
BIS,Skills Funding Agency,13/04/2016,16-18 Apprenticeship Grant for Employers - Centralised Contract Management,Main Funding,NEWCASTLE COLLEGE,AGER_444,"52,500.00",Programme System File
BIS,Skills Funding Agency,13/04/2016,16-18 Apprenticeship Grant for Employers - Centralised Contract Management,Main Funding,NEWCASTLE COLLEGE,AGER_924,"159,000.00",Programme System File
BIS,Skills Funding Agency,13/04/2016,16-18 Apprenticeship Grant for Employers - Centralised Contract Management,Main Funding,NHTA LTD,AGEC_816,"-24,000.00",Programme System File
BIS,Skills Funding Agency,13/04/2016,16-18 Apprenticeship Grant for Employers - Centralised Contract Management,Main Funding,NHTA LTD,AGER_2598,"24,000.00",Programme System File
BIS,Skills Funding Agency,13/04/2016,16-18 Apprenticeship Grant for Employers - Centralised Contract Management,Main Funding,NORTH LIVERPOOL REGENERATION COMPANY LTD,AGEC_689,"-1,500.00",Programme System File
BIS,Skills Funding Agency,13/04/2016,16-18 Apprenticeship Grant for Employers - Centralised Contract Management,Main Funding,NORTH LIVERPOOL REGENERATION COMPANY LTD,AGER_2236,"1,500.00",Programme System File
BIS,Skills Funding Agency,13/04/2016,16-18 Apprenticeship Grant for Employers - Centralised Contract Management,Main Funding,NORTH YORKSHIRE COUNTY COUNCIL,AGER_2625,"1,500.00",Programme System File
BIS,Skills Funding Agency,13/04/2016,16-18 Apprenticeship Grant for Employers - Centralised Contract Management,Main Funding,NORTHAMPTONSHIRE INDUSTRIAL TRAINING ASSOCIATION LTD,AGEC_818,"-13,500.00",Programme System File
BIS,Skills Funding Agency,13/04/2016,16-18 Apprenticeship Grant for Employers - Centralised Contract Management,Main Funding,NORTHAMPTONSHIRE INDUSTRIAL TRAINING ASSOCIATION LTD,AGER_2602,"13,500.00",Programme System File
BIS,Skills Funding Agency,13/04/2016,16-18 Apprenticeship Grant for Employers - Centralised Contract Management,Main Funding,ORACLE TRAINING CONSULTANTS LTD,AGER_2640,"1,500.00",Programme System File
BIS,Skills Funding Agency,13/04/2016,16-18 Apprenticeship Grant for Employers - Centralised Contract Management,Main Funding,PLYMOUTH CITY COUNCIL,AGER_2659,"1,500.00",Programme System File
BIS,Skills Funding Agency,13/04/2016,16-18 Apprenticeship Grant for Employers - Centralised Contract Management,Main Funding,RELEASE POTENTIAL LIMITED,AGER_2140,"-1,500.00",Programme System File
BIS,Skills Funding Agency,13/04/2016,16-18 Apprenticeship Grant for Employers - Centralised Contract Management,Main Funding,ROTHERHAM COLLEGE OF ARTS & TECHNOLOGY,AGEC_844,"-7,500.00",Programme System File
BIS,Skills Funding Agency,13/04/2016,16-18 Apprenticeship Grant for Employers - Centralised Contract Management,Main Funding,ROTHERHAM COLLEGE OF ARTS & TECHNOLOGY,AGER_2698,"7,500.00",Programme System File
BIS,Skills Funding Agency,13/04/2016,16-18 Apprenticeship Grant for Employers - Centralised Contract Management,Main Funding,ROYAL BOROUGH OF KINGSTON UPON THAMES COUNCIL,AGER_1531,"1,500.00",Programme System File
BIS,Skills Funding Agency,13/04/2016,16-18 Apprenticeship Grant for Employers - Centralised Contract Management,Main Funding,ROYAL BOROUGH OF KINGSTON UPON THAMES COUNCIL,AGER_2700,"7,500.00",Programme System File
BIS,Skills Funding Agency,13/04/2016,16-18 Apprenticeship Grant for Employers - Centralised Contract Management,Main Funding,ROYAL BOROUGH OF KINGSTON UPON THAMES COUNCIL,AGER_777,"30,000.00",Programme System File
BIS,Skills Funding Agency,13/04/2016,16-18 Apprenticeship Grant for Employers - Centralised Contract Management,Main Funding,RUTLAND COUNTY COUNCIL,AGER_1530,"1,500.00",Programme System File
BIS,Skills Funding Agency,13/04/2016,16-18 Apprenticeship Grant for Employers - Centralised Contract Management,Main Funding,RUTLAND COUNTY COUNCIL,AGER_775,"9,000.00",Programme System File
BIS,Skills Funding Agency,13/04/2016,16-18 Apprenticeship Grant for Employers - Centralised Contract Management,Main Funding,SBC TRAINING LIMITED,AGEC_668,"-7,500.00",Programme System File
BIS,Skills Funding Agency,13/04/2016,16-18 Apprenticeship Grant for Employers - Centralised Contract Management,Main Funding,SBC TRAINING LIMITED,AGER_2181,"7,500.00",Programme System File
BIS,Skills Funding Agency,13/04/2016,16-18 Apprenticeship Grant for Employers - Centralised Contract Management,Main Funding,SERCO LTD,AGEC_560,"-1,500.00",Programme System File
BIS,Skills Funding Agency,13/04/2016,16-18 Apprenticeship Grant for Employers - Centralised Contract Management,Main Funding,SERCO LTD,AGEC_852,"-3,000.00",Programme System File
BIS,Skills Funding Agency,13/04/2016,16-18 Apprenticeship Grant for Employers - Centralised Contract Management,Main Funding,SERCO LTD,AGER_1825,"1,500.00",Programme System File
BIS,Skills Funding Agency,13/04/2016,16-18 Apprenticeship Grant for Employers - Centralised Contract Management,Main Funding,SERCO LTD,AGER_2724,"4,500.00",Programme System File
BIS,Skills Funding Agency,13/04/2016,16-18 Apprenticeship Grant for Employers - Centralised Contract Management,Main Funding,SOCIAL ENTERPRISE KENT CIC,AGER_2147,"-1,500.00",Programme System File
BIS,Skills Funding Agency,13/04/2016,16-18 Apprenticeship Grant for Employers - Centralised Contract Management,Main Funding,SOMERSET COLLEGE OF ARTS & TECHNOLOGY,AGEC_865,"-24,000.00",Programme System File
BIS,Skills Funding Agency,13/04/2016,16-18 Apprenticeship Grant for Employers - Centralised Contract Management,Main Funding,SOMERSET COLLEGE OF ARTS & TECHNOLOGY,AGER_2752,"24,000.00",Programme System File
BIS,Skills Funding Agency,13/04/2016,16-18 Apprenticeship Grant for Employers - Centralised Contract Management,Main Funding,SOUTH CHESHIRE COLLEGE,AGEC_858,"-33,000.00",Programme System File
BIS,Skills Funding Agency,13/04/2016,16-18 Apprenticeship Grant for Employers - Centralised Contract Management,Main Funding,SOUTH CHESHIRE COLLEGE,AGER_2746,"33,000.00",Programme System File
BIS,Skills Funding Agency,13/04/2016,16-18 Apprenticeship Grant for Employers - Centralised Contract Management,Main Funding,SOUTH DOWNS COLLEGE,AGEC_866,"-15,000.00",Programme System File
BIS,Skills Funding Agency,13/04/2016,16-18 Apprenticeship Grant for Employers - Centralised Contract Management,Main Funding,SOUTH DOWNS COLLEGE,AGER_2755,"15,000.00",Programme System File
BIS,Skills Funding Agency,13/04/2016,16-18 Apprenticeship Grant for Employers - Centralised Contract Management,Main Funding,SOUTH WEST REGIONAL ASSESSMENT CENTRE LTD,AGER_2929,"-1,500.00",Programme System File
BIS,Skills Funding Agency,13/04/2016,16-18 Apprenticeship Grant for Employers - Centralised Contract Management,Main Funding,SPAN TRAINING & DEVELOPMENT LTD,AGEC_942,"-22,500.00",Programme System File
BIS,Skills Funding Agency,13/04/2016,16-18 Apprenticeship Grant for Employers - Centralised Contract Management,Main Funding,SPAN TRAINING & DEVELOPMENT LTD,AGER_2965,"22,500.00",Programme System File
BIS,Skills Funding Agency,13/04/2016,16-18 Apprenticeship Grant for Employers - Centralised Contract Management,Main Funding,STOCKTON ON TEES BOROUGH COUNCIL,AGER_1236,"4,500.00",Programme System File
BIS,Skills Funding Agency,13/04/2016,16-18 Apprenticeship Grant for Employers - Centralised Contract Management,Main Funding,STOCKTON ON TEES BOROUGH COUNCIL,AGER_887,"9,000.00",Programme System File
BIS,Skills Funding Agency,13/04/2016,16-18 Apprenticeship Grant for Employers - Centralised Contract Management,Main Funding,T Q WORKFORCE DEVELOPMENT LTD,AGER_2071,"1,500.00",Programme System File
BIS,Skills Funding Agency,13/04/2016,16-18 Apprenticeship Grant for Employers - Centralised Contract Management,Main Funding,UNIVERSITY OF SHEFFIELD,AGEC_688,"-1,500.00",Programme System File
BIS,Skills Funding Agency,13/04/2016,16-18 Apprenticeship Grant for Employers - Centralised Contract Management,Main Funding,UNIVERSITY OF SHEFFIELD,AGER_2235,"1,500.00",Programme System File
BIS,Skills Funding Agency,13/04/2016,16-18 Apprenticeship Grant for Employers - Centralised Contract Management,Main Funding,VOCATIONAL COLLEGE LTD,AGEC_899,"-3,000.00",Programme System File
BIS,Skills Funding Agency,13/04/2016,16-18 Apprenticeship Grant for Employers - Centralised Contract Management,Main Funding,VOCATIONAL COLLEGE LTD,AGER_2845,"3,000.00",Programme System File
BIS,Skills Funding Agency,13/04/2016,16-18 Apprenticeship Grant for Employers - Centralised Contract Management,Main Funding,WAKEFIELD CITY COUNCIL,AGEC_684,"-3,000.00",Programme System File
BIS,Skills Funding Agency,13/04/2016,16-18 Apprenticeship Grant for Employers - Centralised Contract Management,Main Funding,WAKEFIELD CITY COUNCIL,AGER_2219,"3,000.00",Programme System File
BIS,Skills Funding Agency,13/04/2016,16-18 Apprenticeship Grant for Employers - Centralised Contract Management,Main Funding,WALTHAM FOREST COLLEGE,AGEC_906,"-33,000.00",Programme System File
BIS,Skills Funding Agency,13/04/2016,16-18 Apprenticeship Grant for Employers - Centralised Contract Management,Main Funding,WALTHAM FOREST COLLEGE,AGER_2876,"33,000.00",Programme System File
BIS,Skills Funding Agency,13/04/2016,16-18 Apprenticeship Grant for Employers - Centralised Contract Management,Main Funding,WEST ANGLIA TRAINING ASSOCIATION LIMITED,AGER_2875,"1,500.00",Programme System File
BIS,Skills Funding Agency,13/04/2016,16-18 Apprenticeship Grant for Employers - Centralised Contract Management,Main Funding,WEST THAMES COLLEGE,AGER_2885,"1,500.00",Programme System File
BIS,Skills Funding Agency,13/04/2016,16-18 Apprenticeship Grant for Employers - Centralised Contract Management,Main Funding,WESTWARD PATHFINDER,AGEC_483,"-1,500.00",Programme System File
BIS,Skills Funding Agency,13/04/2016,16-18 Apprenticeship Grant for Employers - Centralised Contract Management,Main Funding,WESTWARD PATHFINDER,AGER_1622,"1,500.00",Programme System File
BIS,Skills Funding Agency,13/04/2016,16-18 Apprenticeship Grant for Employers - Centralised Contract Management,Main Funding,WESTWARD PATHFINDER,AGER_2231,"1,500.00",Programme System File
BIS,Skills Funding Agency,13/04/2016,16-18 Apprenticeship Grant for Employers - Centralised Contract Management,Main Funding,WEYMOUTH COLLEGE,AGEC_911,"-30,000.00",Programme System File
BIS,Skills Funding Agency,13/04/2016,16-18 Apprenticeship Grant for Employers - Centralised Contract Management,Main Funding,WEYMOUTH COLLEGE,AGER_2897,"30,000.00",Programme System File
BIS,Skills Funding Agency,13/04/2016,16-18 Apprenticeship Grant for Employers - Centralised Contract Management,Main Funding,WRITTLE COLLEGE SERVICES LTD,AGEC_922,"-25,500.00",Programme System File
BIS,Skills Funding Agency,13/04/2016,16-18 Apprenticeship Grant for Employers - Centralised Contract Management,Main Funding,WRITTLE COLLEGE SERVICES LTD,AGER_2910,"25,500.00",Programme System File
BIS,Skills Funding Agency,13/04/2016,16-18 Apprenticeship Grant for Employers - Centralised Contract Management,Main Funding,YORK COLLEGE,AGEC_928,"-39,000.00",Programme System File
BIS,Skills Funding Agency,13/04/2016,16-18 Apprenticeship Grant for Employers - Centralised Contract Management,Main Funding,YORK COLLEGE,AGER_2927,"39,000.00",Programme System File
BIS,Skills Funding Agency,13/04/2016,16-18 Apprenticeship Grant for Employers,Main Funding,AMERSHAM & WYCOMBE COLLEGE,NUPS15_19205,"-3,000.00",Programme Template
BIS,Skills Funding Agency,13/04/2016,16-18 Apprenticeship Grant for Employers,Main Funding,AYLESBURY COLLEGE,NUPS15_15673,"-36,000.00",Programme Template
BIS,Skills Funding Agency,13/04/2016,16-18 Apprenticeship Grant for Employers,Main Funding,AYLESBURY COLLEGE,NUPS15_17408,"1,500.00",Programme Template
BIS,Skills Funding Agency,13/04/2016,16-18 Apprenticeship Grant for Employers,Main Funding,AYLESBURY COLLEGE,NUPS15_17527,"3,000.00",Programme Template
BIS,Skills Funding Agency,13/04/2016,16-18 Apprenticeship Grant for Employers,Main Funding,AYLESBURY COLLEGE,NUPS15_18898,"-3,000.00",Programme Template
BIS,Skills Funding Agency,13/04/2016,16-18 Apprenticeship Grant for Employers,Main Funding,BC ARCH LTD T/A ARCH APPRENTICES,NQAA_5836,"-22,500.00",Programme Template
BIS,Skills Funding Agency,13/04/2016,16-18 Apprenticeship Grant for Employers,Main Funding,BOURNEMOUTH & POOLE COLLEGE,NUPS15_19220,"-1,500.00",Programme Template
BIS,Skills Funding Agency,13/04/2016,16-18 Apprenticeship Grant for Employers,Main Funding,BROADLAND DISTRICT COUNCIL,NUPS15_18910,"-6,000.00",Programme Template
BIS,Skills Funding Agency,13/04/2016,16-18 Apprenticeship Grant for Employers,Main Funding,CARLISLE COLLEGE,NUPS15_18920,"-6,000.00",Programme Template
BIS,Skills Funding Agency,13/04/2016,16-18 Apprenticeship Grant for Employers,Main Funding,COVENTRY CITY COUNCIL,NUPS15_19335,"-1,500.00",Programme Template
BIS,Skills Funding Agency,13/04/2016,16-18 Apprenticeship Grant for Employers,Main Funding,DARLINGTON COLLEGE,NUPS15_15739,"-19,500.00",Programme Template
BIS,Skills Funding Agency,13/04/2016,16-18 Apprenticeship Grant for Employers,Main Funding,DARLINGTON COLLEGE,NUPS15_17465,"-1,500.00",Programme Template
BIS,Skills Funding Agency,13/04/2016,16-18 Apprenticeship Grant for Employers,Main Funding,DARLINGTON COLLEGE,NUPS15_17566,"3,000.00",Programme Template
BIS,Skills Funding Agency,13/04/2016,16-18 Apprenticeship Grant for Employers,Main Funding,DARLINGTON COLLEGE,NUPS15_18937,"-3,000.00",Programme Template
BIS,Skills Funding Agency,13/04/2016,16-18 Apprenticeship Grant for Employers,Main Funding,DARLINGTON COLLEGE,NUPS15_19234,"-1,500.00",Programme Template
BIS,Skills Funding Agency,13/04/2016,16-18 Apprenticeship Grant for Employers,Main Funding,E TRAINING LTD,NUPS15_18941,"-1,500.00",Programme Template
BIS,Skills Funding Agency,13/04/2016,16-18 Apprenticeship Grant for Employers,Main Funding,E TRAINING LTD,NUPS15_19155,"-1,500.00",Programme Template
BIS,Skills Funding Agency,13/04/2016,16-18 Apprenticeship Grant for Employers,Main Funding,EAST RIDING OF YORKSHIRE COUNCIL,NUPS15_16328,"-6,000.00",Programme Template
BIS,Skills Funding Agency,13/04/2016,16-18 Apprenticeship Grant for Employers,Main Funding,EDUCATION & TRAINING SKILLS LTD,NUPS15_18944,"-1,500.00",Programme Template
BIS,Skills Funding Agency,13/04/2016,16-18 Apprenticeship Grant for Employers,Main Funding,HAVANT COLLEGE,NUPS15_16462,"-4,500.00",Programme Template
BIS,Skills Funding Agency,13/04/2016,16-18 Apprenticeship Grant for Employers,Main Funding,LESOCO,NUPS15_16525,"-3,000.00",Programme Template
BIS,Skills Funding Agency,13/04/2016,16-18 Apprenticeship Grant for Employers,Main Funding,LOWESTOFT COLLEGE,NUPS15_17616,"1,500.00",Programme Template
BIS,Skills Funding Agency,13/04/2016,16-18 Apprenticeship Grant for Employers,Main Funding,LOWESTOFT COLLEGE,NUPS15_18987,"-1,500.00",Programme Template
BIS,Skills Funding Agency,13/04/2016,16-18 Apprenticeship Grant for Employers,Main Funding,MIDDLESBROUGH COLLEGE,NUPS15_18992,"-4,500.00",Programme Template
BIS,Skills Funding Agency,13/04/2016,16-18 Apprenticeship Grant for Employers,Main Funding,MILLBROOK MANAGEMENT SERVICES LTD,NUPS15_19029,"-1,500.00",Programme Template
BIS,Skills Funding Agency,13/04/2016,16-18 Apprenticeship Grant for Employers,Main Funding,NEWCASTLE COLLEGE,NQAA_5836,"30,000.00",Programme Template
BIS,Skills Funding Agency,13/04/2016,16-18 Apprenticeship Grant for Employers,Main Funding,NEWCASTLE COLLEGE,NUPS15_16753,"9,000.00",Programme Template
BIS,Skills Funding Agency,13/04/2016,16-18 Apprenticeship Grant for Employers,Main Funding,NEWCASTLE COLLEGE,NUPS15_16754,"28,500.00",Programme Template
BIS,Skills Funding Agency,13/04/2016,16-18 Apprenticeship Grant for Employers,Main Funding,NEWCASTLE COLLEGE,NUPS15_17208,"-10,500.00",Programme Template
BIS,Skills Funding Agency,13/04/2016,16-18 Apprenticeship Grant for Employers,Main Funding,NEWCASTLE COLLEGE,NUPS15_17209,"-51,000.00",Programme Template
BIS,Skills Funding Agency,13/04/2016,16-18 Apprenticeship Grant for Employers,Main Funding,NEWCASTLE COLLEGE,NUPS15_17213,"-21,000.00",Programme Template
BIS,Skills Funding Agency,13/04/2016,16-18 Apprenticeship Grant for Employers,Main Funding,NORTH YORKSHIRE COUNTY COUNCIL,NUPS15_19012,"-1,500.00",Programme Template
BIS,Skills Funding Agency,13/04/2016,16-18 Apprenticeship Grant for Employers,Main Funding,ORACLE TRAINING CONSULTANTS LTD,NUPS15_19016,"-1,500.00",Programme Template
BIS,Skills Funding Agency,13/04/2016,16-18 Apprenticeship Grant for Employers,Main Funding,PLYMOUTH CITY COUNCIL,NUPS15_19022,"-1,500.00",Programme Template
BIS,Skills Funding Agency,13/04/2016,16-18 Apprenticeship Grant for Employers,Main Funding,ROYAL BOROUGH OF KINGSTON UPON THAMES COUNCIL,NUPS15_15929,"-25,500.00",Programme Template
BIS,Skills Funding Agency,13/04/2016,16-18 Apprenticeship Grant for Employers,Main Funding,RUTLAND COUNTY COUNCIL,NUPS15_16341,"-7,500.00",Programme Template
BIS,Skills Funding Agency,13/04/2016,16-18 Apprenticeship Grant for Employers,Main Funding,STOCKTON ON TEES BOROUGH COUNCIL,NUPS15_16475,"-6,000.00",Programme Template
BIS,Skills Funding Agency,13/04/2016,16-18 Apprenticeship Grant for Employers,Main Funding,T Q WORKFORCE DEVELOPMENT LTD,NUPS15_19108,"-1,500.00",Programme Template
BIS,Skills Funding Agency,13/04/2016,16-18 Apprenticeship Grant for Employers,Main Funding,WEST ANGLIA TRAINING ASSOCIATION LIMITED,NUPS15_19080,"-1,500.00",Programme Template
BIS,Skills Funding Agency,13/04/2016,16-18 Apprenticeship Grant for Employers,Main Funding,WEST THAMES COLLEGE,NUPS15_19087,"-1,500.00",Programme Template
BIS,Skills Funding Agency,13/04/2016,16-18 Apprenticeship Grant for Employers,Main Funding,YORK COLLEGE,NUPS15_19332,"-4,500.00",Programme Template
BIS,Skills Funding Agency,13/04/2016,16-18 Apprenticeships - Centralised Contract Management,Main Funding,5 E LTD,AP16C_731,"-1,983.08",Programme System File
BIS,Skills Funding Agency,13/04/2016,16-18 Apprenticeships - Centralised Contract Management,Main Funding,5 E LTD,AP16R_9015,"6,606.06",Programme System File
BIS,Skills Funding Agency,13/04/2016,16-18 Apprenticeships - Centralised Contract Management,Main Funding,A4E LTD,AP16R_9018,745.84,Programme System File
BIS,Skills Funding Agency,13/04/2016,16-18 Apprenticeships - Centralised Contract Management,Main Funding,ABINGDON & WITNEY COLLEGE,AP16R_8127,"42,644.50",Programme System File
BIS,Skills Funding Agency,13/04/2016,16-18 Apprenticeships - Centralised Contract Management,Main Funding,ACACIA TRAINING & DEVELOPMENT LTD,AP16R_9012,"30,647.42",Programme System File
BIS,Skills Funding Agency,13/04/2016,16-18 Apprenticeships - Centralised Contract Management,Main Funding,ACACIA TRAINING LTD,AP16R_9014,"12,424.57",Programme System File
BIS,Skills Funding Agency,13/04/2016,16-18 Apprenticeships - Centralised Contract Management,Main Funding,ACADEMIES ENTERPRISE,AP16C_585,"-3,160.47",Programme System File
BIS,Skills Funding Agency,13/04/2016,16-18 Apprenticeships - Centralised Contract Management,Main Funding,ACADEMIES ENTERPRISE,AP16R_8148,"4,098.19",Programme System File
BIS,Skills Funding Agency,13/04/2016,16-18 Apprenticeships - Centralised Contract Management,Main Funding,ACADEMY EDUCATION LTD,AP16C_1291,"-17,061.02",Programme System File
BIS,Skills Funding Agency,13/04/2016,16-18 Apprenticeships - Centralised Contract Management,Main Funding,ACADEMY EDUCATION LTD,AP16R_9019,"44,826.29",Programme System File
BIS,Skills Funding Agency,13/04/2016,16-18 Apprenticeships - Centralised Contract Management,Main Funding,ACADEMY HAIR & BEAUTY LTD,AP16C_475,"-1,933.77",Programme System File
BIS,Skills Funding Agency,13/04/2016,16-18 Apprenticeships - Centralised Contract Management,Main Funding,ACADEMY HAIR & BEAUTY LTD,AP16R_9231,"14,341.31",Programme System File
BIS,Skills Funding Agency,13/04/2016,16-18 Apprenticeships - Centralised Contract Management,Main Funding,ACADEMY TRANSFORMATION TRUST,AP16R_8170,"6,075.18",Programme System File
BIS,Skills Funding Agency,13/04/2016,16-18 Apprenticeships - Centralised Contract Management,Main Funding,ACCESS TRAINING EAST MIDLANDS LTD,AP16R_9287,"43,316.56",Programme System File
BIS,Skills Funding Agency,13/04/2016,16-18 Apprenticeships - Centralised Contract Management,Main Funding,ACCESS TRAINING LTD,AP16R_9276,"56,034.89",Programme System File
BIS,Skills Funding Agency,13/04/2016,16-18 Apprenticeships - Centralised Contract Management,Main Funding,ACCRINGTON & ROSSENDALE COLLEGE,AP16R_8876,"65,010.50",Programme System File
BIS,Skills Funding Agency,13/04/2016,16-18 Apprenticeships - Centralised Contract Management,Main Funding,ACHIEVEMENT TRAINING LIMITED,AP16R_9029,"36,662.96",Programme System File
BIS,Skills Funding Agency,13/04/2016,16-18 Apprenticeships - Centralised Contract Management,Main Funding,AGE UK TRADING LTD,AP16R_8150,"48,293.49",Programme System File
BIS,Skills Funding Agency,13/04/2016,16-18 Apprenticeships - Centralised Contract Management,Main Funding,ALDER TRAINING LTD,AP16R_9021,"50,630.14",Programme System File
BIS,Skills Funding Agency,13/04/2016,16-18 Apprenticeships - Centralised Contract Management,Main Funding,ALL TRADES TRAINING LIMITED,AP16R_7243,"-2,091.93",Programme System File
BIS,Skills Funding Agency,13/04/2016,16-18 Apprenticeships - Centralised Contract Management,Main Funding,ALL TRADES TRAINING LIMITED,AP16R_9390,773.21,Programme System File
BIS,Skills Funding Agency,13/04/2016,16-18 Apprenticeships - Centralised Contract Management,Main Funding,ALLIANCE LEARNING LTD,AP16R_9024,"64,539.71",Programme System File
BIS,Skills Funding Agency,13/04/2016,16-18 Apprenticeships - Centralised Contract Management,Main Funding,ALT VALLEY COMMUNITY TRUST LTD,AP16R_9062,"12,932.43",Programme System File
BIS,Skills Funding Agency,13/04/2016,16-18 Apprenticeships - Centralised Contract Management,Main Funding,AMERSHAM & WYCOMBE COLLEGE,AP16C_1290,"-43,744.58",Programme System File
BIS,Skills Funding Agency,13/04/2016,16-18 Apprenticeships - Centralised Contract Management,Main Funding,AMERSHAM & WYCOMBE COLLEGE,AP16R_9096,"43,794.22",Programme System File
BIS,Skills Funding Agency,13/04/2016,16-18 Apprenticeships - Centralised Contract Management,Main Funding,ANDERSON STOCKLEY ACCREDITED TRAINING LTD,AP16R_9378,"17,745.72",Programme System File
BIS,Skills Funding Agency,13/04/2016,16-18 Apprenticeships - Centralised Contract Management,Main Funding,ANDREW COLLINGE TRAINING LTD,AP16R_9020,"43,046.69",Programme System File
BIS,Skills Funding Agency,13/04/2016,16-18 Apprenticeships - Centralised Contract Management,Main Funding,ANNE CLARKE ASSOCIATES LTD,AP16R_9349,"7,194.72",Programme System File
BIS,Skills Funding Agency,13/04/2016,16-18 Apprenticeships - Centralised Contract Management,Main Funding,APPRENTICE FUNDING ASSISTANT LTD,AP16R_9397,"86,985.70",Programme System File
BIS,Skills Funding Agency,13/04/2016,16-18 Apprenticeships - Centralised Contract Management,Main Funding,APPRENTICE SCHOOL CHARITABLE TRUST,AP16C_1302,"-37,226.05",Programme System File
BIS,Skills Funding Agency,13/04/2016,16-18 Apprenticeships - Centralised Contract Management,Main Funding,APPRENTICE SCHOOL CHARITABLE TRUST,AP16R_9044,"37,226.05",Programme System File
BIS,Skills Funding Agency,13/04/2016,16-18 Apprenticeships - Centralised Contract Management,Main Funding,APPRIS CHARITY LIMITED,AP16R_9047,"75,689.37",Programme System File
BIS,Skills Funding Agency,13/04/2016,16-18 Apprenticeships - Centralised Contract Management,Main Funding,ASHTON UNDER LYNE SIXTH FORM COLLEGE,AP16R_9323,872.06,Programme System File
BIS,Skills Funding Agency,13/04/2016,16-18 Apprenticeships - Centralised Contract Management,Main Funding,ASKHAM BRYAN COLLEGE,AP16C_472,"-86,498.49",Programme System File
BIS,Skills Funding Agency,13/04/2016,16-18 Apprenticeships - Centralised Contract Management,Main Funding,ASKHAM BRYAN COLLEGE,AP16R_9250,"172,218.30",Programme System File
BIS,Skills Funding Agency,13/04/2016,16-18 Apprenticeships - Centralised Contract Management,Main Funding,ASPIRATION TRAINING LTD,AP16C_736,"-73,754.53",Programme System File
BIS,Skills Funding Agency,13/04/2016,16-18 Apprenticeships - Centralised Contract Management,Main Funding,ASPIRATION TRAINING LTD,AP16R_9022,"126,181.30",Programme System File
BIS,Skills Funding Agency,13/04/2016,16-18 Apprenticeships - Centralised Contract Management,Main Funding,ASPIRE ACHIEVE ADVANCE LIMITED,AP16C_573,"-2,738,469.78",Programme System File
BIS,Skills Funding Agency,13/04/2016,16-18 Apprenticeships - Centralised Contract Management,Main Funding,ASPIRE ACHIEVE ADVANCE LIMITED,AP16R_8136,"3,580,439.66",Programme System File
BIS,Skills Funding Agency,13/04/2016,16-18 Apprenticeships - Centralised Contract Management,Main Funding,ASPIRE TRAINING TEAM,AP16R_9246,"30,772.55",Programme System File
BIS,Skills Funding Agency,13/04/2016,16-18 Apprenticeships - Centralised Contract Management,Main Funding,ASSET TRAINING & CONSULTANCY LTD,AP16R_9023,"49,680.13",Programme System File
BIS,Skills Funding Agency,13/04/2016,16-18 Apprenticeships - Centralised Contract Management,Main Funding,ASTUTE MINDS LTD,AP16R_9333,"70,698.96",Programme System File
BIS,Skills Funding Agency,13/04/2016,16-18 Apprenticeships - Centralised Contract Management,Main Funding,ATG TRAINING,AP16R_9051,"73,048.02",Programme System File
BIS,Skills Funding Agency,13/04/2016,16-18 Apprenticeships - Centralised Contract Management,Main Funding,AURELIA TRAINING LTD,AP16R_9026,"12,572.82",Programme System File
BIS,Skills Funding Agency,13/04/2016,16-18 Apprenticeships - Centralised Contract Management,Main Funding,AVANT PARTNERSHIP LTD,AP16R_9357,"38,428.01",Programme System File
BIS,Skills Funding Agency,13/04/2016,16-18 Apprenticeships - Centralised Contract Management,Main Funding,AVANTA ENTERPRISE LTD,AP16C_595,"-89,087.34",Programme System File
BIS,Skills Funding Agency,13/04/2016,16-18 Apprenticeships - Centralised Contract Management,Main Funding,AVANTA ENTERPRISE LTD,AP16R_8166,"174,784.44",Programme System File
BIS,Skills Funding Agency,13/04/2016,16-18 Apprenticeships - Centralised Contract Management,Main Funding,AXIA SOLUTIONS LTD,AP16R_9030,"14,894.09",Programme System File
BIS,Skills Funding Agency,13/04/2016,16-18 Apprenticeships - Centralised Contract Management,Main Funding,AYLESBURY COLLEGE,AP16R_4804,"115,132.57",Programme System File
BIS,Skills Funding Agency,13/04/2016,16-18 Apprenticeships - Centralised Contract Management,Main Funding,AYLESBURY COLLEGE,AP16R_5625,"116,818.27",Programme System File
BIS,Skills Funding Agency,13/04/2016,16-18 Apprenticeships - Centralised Contract Management,Main Funding,AYLESBURY COLLEGE,AP16R_7420,"104,721.02",Programme System File
BIS,Skills Funding Agency,13/04/2016,16-18 Apprenticeships - Centralised Contract Management,Main Funding,AYLESBURY COLLEGE,AP16R_8348,"109,190.01",Programme System File
BIS,Skills Funding Agency,13/04/2016,16-18 Apprenticeships - Centralised Contract Management,Main Funding,B SKILL LTD,AP16C_747,"-32,835.07",Programme System File
BIS,Skills Funding Agency,13/04/2016,16-18 Apprenticeships - Centralised Contract Management,Main Funding,B SKILL LTD,AP16R_9036,"51,033.25",Programme System File
BIS,Skills Funding Agency,13/04/2016,16-18 Apprenticeships - Centralised Contract Management,Main Funding,B2B ENGAGE LTD,AP16R_9402,"90,452.73",Programme System File
BIS,Skills Funding Agency,13/04/2016,16-18 Apprenticeships - Centralised Contract Management,Main Funding,BABCOCK SKILLS DEVELOPMENT & TRAINING LTD,AP16R_8165,"123,556.66",Programme System File
BIS,Skills Funding Agency,13/04/2016,16-18 Apprenticeships - Centralised Contract Management,Main Funding,BABCOCK TRAINING LTD,AP16R_9099,"786,158.32",Programme System File
BIS,Skills Funding Agency,13/04/2016,16-18 Apprenticeships - Centralised Contract Management,Main Funding,BABINGTON BUSINESS COLLEGE LTD,AP16R_9027,"245,660.05",Programme System File
BIS,Skills Funding Agency,13/04/2016,16-18 Apprenticeships - Centralised Contract Management,Main Funding,BAE SYSTEMS PLC,AP16C_741,"-69,805.37",Programme System File
BIS,Skills Funding Agency,13/04/2016,16-18 Apprenticeships - Centralised Contract Management,Main Funding,BAE SYSTEMS PLC,AP16R_9031,"307,554.54",Programme System File
BIS,Skills Funding Agency,13/04/2016,16-18 Apprenticeships - Centralised Contract Management,Main Funding,BALTIC TRAINING SERVICES LTD,AP16C_522,"-711,074.37",Programme System File
BIS,Skills Funding Agency,13/04/2016,16-18 Apprenticeships - Centralised Contract Management,Main Funding,BALTIC TRAINING SERVICES LTD,AP16R_9318,"1,112,905.00",Programme System File
BIS,Skills Funding Agency,13/04/2016,16-18 Apprenticeships - Centralised Contract Management,Main Funding,BARCHESTER HEALTHCARE LTD,AP16R_9033,"7,894.12",Programme System File
BIS,Skills Funding Agency,13/04/2016,16-18 Apprenticeships - Centralised Contract Management,Main Funding,BARKING & DAGENHAM COLLEGE,AP16R_8877,"148,886.98",Programme System File
BIS,Skills Funding Agency,13/04/2016,16-18 Apprenticeships - Centralised Contract Management,Main Funding,BARKING & DAGENHAM LONDON BOROUGH COUNCIL,AP16R_8948,"2,786.50",Programme System File
BIS,Skills Funding Agency,13/04/2016,16-18 Apprenticeships - Centralised Contract Management,Main Funding,BARNARDOS,AP16R_9035,"17,798.67",Programme System File
BIS,Skills Funding Agency,13/04/2016,16-18 Apprenticeships - Centralised Contract Management,Main Funding,BARNET AND SOUTHGATE COLLEGE,AP16C_621,"-85,830.24",Programme System File
BIS,Skills Funding Agency,13/04/2016,16-18 Apprenticeships - Centralised Contract Management,Main Funding,BARNET AND SOUTHGATE COLLEGE,AP16R_8202,"136,773.74",Programme System File
BIS,Skills Funding Agency,13/04/2016,16-18 Apprenticeships - Centralised Contract Management,Main Funding,BARNFIELD COLLEGE,AP16R_8869,"44,813.71",Programme System File
BIS,Skills Funding Agency,13/04/2016,16-18 Apprenticeships - Centralised Contract Management,Main Funding,BARNSLEY COLLEGE,AP16R_8860,"208,965.46",Programme System File
BIS,Skills Funding Agency,13/04/2016,16-18 Apprenticeships - Centralised Contract Management,Main Funding,BASINGSTOKE COLLEGE,AP16C_643,"-15,666.81",Programme System File
BIS,Skills Funding Agency,13/04/2016,16-18 Apprenticeships - Centralised Contract Management,Main Funding,BASINGSTOKE COLLEGE,AP16R_8563,"135,127.42",Programme System File
BIS,Skills Funding Agency,13/04/2016,16-18 Apprenticeships - Centralised Contract Management,Main Funding,BASINGSTOKE YOUTH ACTION TRUST LTD,AP16R_9037,"65,620.24",Programme System File
BIS,Skills Funding Agency,13/04/2016,16-18 Apprenticeships - Centralised Contract Management,Main Funding,BC ARCH LTD T/A ARCH APPRENTICES,AP16C_610,"-250,756.60",Programme System File
BIS,Skills Funding Agency,13/04/2016,16-18 Apprenticeships - Centralised Contract Management,Main Funding,BC ARCH LTD T/A ARCH APPRENTICES,AP16R_8783,"437,045.02",Programme System File
BIS,Skills Funding Agency,13/04/2016,16-18 Apprenticeships - Centralised Contract Management,Main Funding,BCTG LIMITED,AP16C_477,"-91,705.74",Programme System File
BIS,Skills Funding Agency,13/04/2016,16-18 Apprenticeships - Centralised Contract Management,Main Funding,BCTG LIMITED,AP16R_9236,"400,667.90",Programme System File
BIS,Skills Funding Agency,13/04/2016,16-18 Apprenticeships - Centralised Contract Management,Main Funding,BE TOTALLY YOU,AP16R_9328,"12,602.98",Programme System File
BIS,Skills Funding Agency,13/04/2016,16-18 Apprenticeships - Centralised Contract Management,Main Funding,BE WISER INSURANCE SERVICES LIMITED,AP16R_8183,"17,665.14",Programme System File
BIS,Skills Funding Agency,13/04/2016,16-18 Apprenticeships - Centralised Contract Management,Main Funding,BEDFORD COLLEGE,AP16R_8801,"295,541.01",Programme System File
BIS,Skills Funding Agency,13/04/2016,16-18 Apprenticeships - Centralised Contract Management,Main Funding,BERKSHIRE COLLEGE OF AGRICULTURE,AP16R_8421,"13,263.41",Programme System File
BIS,Skills Funding Agency,13/04/2016,16-18 Apprenticeships - Centralised Contract Management,Main Funding,BESTLAND SOLUTIONS LTD,AP16R_9325,"53,312.51",Programme System File
BIS,Skills Funding Agency,13/04/2016,16-18 Apprenticeships - Centralised Contract Management,Main Funding,BEXHILL COLLEGE,AP16R_8703,"6,669.00",Programme System File
BIS,Skills Funding Agency,13/04/2016,16-18 Apprenticeships - Centralised Contract Management,Main Funding,BEXLEY COLLEGE,AP16C_652,"-106,158.81",Programme System File
BIS,Skills Funding Agency,13/04/2016,16-18 Apprenticeships - Centralised Contract Management,Main Funding,BEXLEY COLLEGE,AP16R_8816,"167,605.47",Programme System File
BIS,Skills Funding Agency,13/04/2016,16-18 Apprenticeships - Centralised Contract Management,Main Funding,BEXLEY YOUTH TRAINING GROUP,AP16R_9038,"84,987.75",Programme System File
BIS,Skills Funding Agency,13/04/2016,16-18 Apprenticeships - Centralised Contract Management,Main Funding,BHS LTD,AP16R_9330,"9,546.88",Programme System File
BIS,Skills Funding Agency,13/04/2016,16-18 Apprenticeships - Centralised Contract Management,Main Funding,BIRMINGHAM ELECTRICAL TRAINING LTD,AP16C_1299,"-21,699.32",Programme System File
BIS,Skills Funding Agency,13/04/2016,16-18 Apprenticeships - Centralised Contract Management,Main Funding,BIRMINGHAM ELECTRICAL TRAINING LTD,AP16R_9040,"32,742.85",Programme System File
BIS,Skills Funding Agency,13/04/2016,16-18 Apprenticeships - Centralised Contract Management,Main Funding,BIRMINGHAM METROPOLITAN COLLEGE,AP16C_1237,"-19,218.44",Programme System File
BIS,Skills Funding Agency,13/04/2016,16-18 Apprenticeships - Centralised Contract Management,Main Funding,BIRMINGHAM METROPOLITAN COLLEGE,AP16R_8930,"248,183.09",Programme System File
BIS,Skills Funding Agency,13/04/2016,16-18 Apprenticeships - Centralised Contract Management,Main Funding,BISHOP AUCKLAND COLLEGE,AP16R_8884,"38,875.39",Programme System File
BIS,Skills Funding Agency,13/04/2016,16-18 Apprenticeships - Centralised Contract Management,Main Funding,BISHOP BURTON COLLEGE,AP16R_8897,"58,099.85",Programme System File
BIS,Skills Funding Agency,13/04/2016,16-18 Apprenticeships - Centralised Contract Management,Main Funding,BL TRAINING LTD,AP16R_9034,"77,368.12",Programme System File
BIS,Skills Funding Agency,13/04/2016,16-18 Apprenticeships - Centralised Contract Management,Main Funding,BLACKBURN COLLEGE,AP16R_8927,"84,494.25",Programme System File
BIS,Skills Funding Agency,13/04/2016,16-18 Apprenticeships - Centralised Contract Management,Main Funding,BLACKPOOL & FLYDE COLLEGE,AP16R_8941,"81,564.30",Programme System File
BIS,Skills Funding Agency,13/04/2016,16-18 Apprenticeships - Centralised Contract Management,Main Funding,BOLTON COMMUNITY COLLEGE,AP16R_8845,"59,923.41",Programme System File
BIS,Skills Funding Agency,13/04/2016,16-18 Apprenticeships - Centralised Contract Management,Main Funding,BOROUGH OF POOLE,AP16R_8871,"2,815.80",Programme System File
BIS,Skills Funding Agency,13/04/2016,16-18 Apprenticeships - Centralised Contract Management,Main Funding,BOSCH AUTOMOTIVE SERVICE SOLUTIONS LTD,AP16C_597,"-120,771.34",Programme System File
BIS,Skills Funding Agency,13/04/2016,16-18 Apprenticeships - Centralised Contract Management,Main Funding,BOSCH AUTOMOTIVE SERVICE SOLUTIONS LTD,AP16R_8176,"227,189.15",Programme System File
BIS,Skills Funding Agency,13/04/2016,16-18 Apprenticeships - Centralised Contract Management,Main Funding,BOSTON COLLEGE,AP16R_8905,"75,028.72",Programme System File
BIS,Skills Funding Agency,13/04/2016,16-18 Apprenticeships - Centralised Contract Management,Main Funding,BOURNEMOUTH & POOLE COLLEGE,AP16R_8919,"283,688.00",Programme System File
BIS,Skills Funding Agency,13/04/2016,16-18 Apprenticeships - Centralised Contract Management,Main Funding,BOURNVILLE COLLEGE OF HIGHER EDUCATION,AP16R_8949,"51,063.39",Programme System File
BIS,Skills Funding Agency,13/04/2016,16-18 Apprenticeships - Centralised Contract Management,Main Funding,BPP HOLDINGS PLC,AP16C_750,"-287,632.33",Programme System File
BIS,Skills Funding Agency,13/04/2016,16-18 Apprenticeships - Centralised Contract Management,Main Funding,BPP HOLDINGS PLC,AP16R_9045,"564,339.59",Programme System File
BIS,Skills Funding Agency,13/04/2016,16-18 Apprenticeships - Centralised Contract Management,Main Funding,BRACKNELL & WOKINGHAM COLLEGE,AP16R_8964,"60,141.71",Programme System File
BIS,Skills Funding Agency,13/04/2016,16-18 Apprenticeships - Centralised Contract Management,Main Funding,BRADFORD CITY COUNCIL,AP16R_8977,"5,600.78",Programme System File
BIS,Skills Funding Agency,13/04/2016,16-18 Apprenticeships - Centralised Contract Management,Main Funding,BRADFORD COLLEGE,AP16R_8956,"210,636.75",Programme System File
BIS,Skills Funding Agency,13/04/2016,16-18 Apprenticeships - Centralised Contract Management,Main Funding,BRIDGWATER COLLEGE,AP16R_8989,"202,726.07",Programme System File
BIS,Skills Funding Agency,13/04/2016,16-18 Apprenticeships - Centralised Contract Management,Main Funding,BRIGHT HORIZONS FAMILY SOLUTIONS LTD,AP16C_795,"-3,607.09",Programme System File
BIS,Skills Funding Agency,13/04/2016,16-18 Apprenticeships - Centralised Contract Management,Main Funding,BRIGHT HORIZONS FAMILY SOLUTIONS LTD,AP16R_9120,"16,476.75",Programme System File
BIS,Skills Funding Agency,13/04/2016,16-18 Apprenticeships - Centralised Contract Management,Main Funding,BRINSWORTH TRAINING LIMITED,AP16R_9352,"35,497.67",Programme System File
BIS,Skills Funding Agency,13/04/2016,16-18 Apprenticeships - Centralised Contract Management,Main Funding,BRISTOL CITY COUNCIL,AP16R_9017,"62,523.87",Programme System File
BIS,Skills Funding Agency,13/04/2016,16-18 Apprenticeships - Centralised Contract Management,Main Funding,BRITISH ARMY,AP16R_8140,"977,263.89",Programme System File
BIS,Skills Funding Agency,13/04/2016,16-18 Apprenticeships - Centralised Contract Management,Main Funding,BRITISH GAS SERVICES LIMITED,AP16R_9039,"9,898.13",Programme System File
BIS,Skills Funding Agency,13/04/2016,16-18 Apprenticeships - Centralised Contract Management,Main Funding,BRITISH NUCLEAR FUELS PLC,AP16R_9289,"10,814.60",Programme System File
BIS,Skills Funding Agency,13/04/2016,16-18 Apprenticeships - Centralised Contract Management,Main Funding,BRITISH PRINTING INDUSTRIES FEDERATION LTD,AP16C_1300,"-30,379.20",Programme System File
BIS,Skills Funding Agency,13/04/2016,16-18 Apprenticeships - Centralised Contract Management,Main Funding,BRITISH PRINTING INDUSTRIES FEDERATION LTD,AP16R_9042,"36,699.75",Programme System File
BIS,Skills Funding Agency,13/04/2016,16-18 Apprenticeships - Centralised Contract Management,Main Funding,BRITISH TELECOM PLC,AP16C_1450,"-71,150.80",Programme System File
BIS,Skills Funding Agency,13/04/2016,16-18 Apprenticeships - Centralised Contract Management,Main Funding,BRITISH TELECOM PLC,AP16R_9389,"130,109.94",Programme System File
BIS,Skills Funding Agency,13/04/2016,16-18 Apprenticeships - Centralised Contract Management,Main Funding,BROADLAND DISTRICT COUNCIL,AP16R_9041,"47,033.32",Programme System File
BIS,Skills Funding Agency,13/04/2016,16-18 Apprenticeships - Centralised Contract Management,Main Funding,BROCKENHURST COLLEGE,AP16R_8970,"33,552.18",Programme System File
BIS,Skills Funding Agency,13/04/2016,16-18 Apprenticeships - Centralised Contract Management,Main Funding,BROMLEY COLLEGE OF FURTHER & HIGHER EDUCATION,AP16R_9003,"114,284.59",Programme System File
BIS,Skills Funding Agency,13/04/2016,16-18 Apprenticeships - Centralised Contract Management,Main Funding,BROOKLANDS TECHNICAL COLLEGE,AP16R_9025,"490,353.24",Programme System File
BIS,Skills Funding Agency,13/04/2016,16-18 Apprenticeships - Centralised Contract Management,Main Funding,BROOKSBY MELTON COLLEGE,AP16R_9032,"26,546.11",Programme System File
BIS,Skills Funding Agency,13/04/2016,16-18 Apprenticeships - Centralised Contract Management,Main Funding,BUCKINGHAMSHIRE COUNTY COUNCIL,AP16R_9048,"13,214.31",Programme System File
BIS,Skills Funding Agency,13/04/2016,16-18 Apprenticeships - Centralised Contract Management,Main Funding,BUILDING CRAFTS COLLEGE,AP16C_502,"-16,667.86",Programme System File
BIS,Skills Funding Agency,13/04/2016,16-18 Apprenticeships - Centralised Contract Management,Main Funding,BUILDING CRAFTS COLLEGE,AP16R_9279,"27,716.27",Programme System File
BIS,Skills Funding Agency,13/04/2016,16-18 Apprenticeships - Centralised Contract Management,Main Funding,BURNLEY COLLEGE,AP16C_744,"-181,445.38",Programme System File
BIS,Skills Funding Agency,13/04/2016,16-18 Apprenticeships - Centralised Contract Management,Main Funding,BURNLEY COLLEGE,AP16R_9064,"324,640.68",Programme System File
BIS,Skills Funding Agency,13/04/2016,16-18 Apprenticeships - Centralised Contract Management,Main Funding,BURTON & SOUTH DERBYSHIRE COLLEGE,AP16C_1312,"-100,513.73",Programme System File
BIS,Skills Funding Agency,13/04/2016,16-18 Apprenticeships - Centralised Contract Management,Main Funding,BURTON & SOUTH DERBYSHIRE COLLEGE,AP16R_9081,"103,241.04",Programme System File
BIS,Skills Funding Agency,13/04/2016,16-18 Apprenticeships - Centralised Contract Management,Main Funding,BURY COLLEGE,AP16C_767,"-54,941.13",Programme System File
BIS,Skills Funding Agency,13/04/2016,16-18 Apprenticeships - Centralised Contract Management,Main Funding,BURY COLLEGE,AP16R_9097,"155,215.32",Programme System File
BIS,Skills Funding Agency,13/04/2016,16-18 Apprenticeships - Centralised Contract Management,Main Funding,BUSINESS MANAGEMENT RESOURCES UK LTD,AP16R_9046,"4,532.89",Programme System File
BIS,Skills Funding Agency,13/04/2016,16-18 Apprenticeships - Centralised Contract Management,Main Funding,BUSY BEES NURSERIES,AP16C_567,"-30,055.15",Programme System File
BIS,Skills Funding Agency,13/04/2016,16-18 Apprenticeships - Centralised Contract Management,Main Funding,BUSY BEES NURSERIES,AP16R_8138,"108,231.73",Programme System File
BIS,Skills Funding Agency,13/04/2016,16-18 Apprenticeships - Centralised Contract Management,Main Funding,CABLECOM TRAINING LTD,AP16R_9049,"2,764.57",Programme System File
BIS,Skills Funding Agency,13/04/2016,16-18 Apprenticeships - Centralised Contract Management,Main Funding,CALDERDALE COLLEGE,AP16R_8004,"94,019.13",Programme System File
BIS,Skills Funding Agency,13/04/2016,16-18 Apprenticeships - Centralised Contract Management,Main Funding,CALDERDALE COLLEGE,AP16R_9123,"117,824.14",Programme System File
BIS,Skills Funding Agency,13/04/2016,16-18 Apprenticeships - Centralised Contract Management,Main Funding,CAMBRIDGE REGIONAL COLLEGE,AP16R_9131,"320,950.45",Programme System File
BIS,Skills Funding Agency,13/04/2016,16-18 Apprenticeships - Centralised Contract Management,Main Funding,CANTERBURY COLLEGE,AP16C_779,"-89,328.31",Programme System File
BIS,Skills Funding Agency,13/04/2016,16-18 Apprenticeships - Centralised Contract Management,Main Funding,CANTERBURY COLLEGE,AP16R_9111,"179,178.38",Programme System File
BIS,Skills Funding Agency,13/04/2016,16-18 Apprenticeships - Centralised Contract Management,Main Funding,CAPEL MANOR COLLEGE,AP16R_9140,"13,857.46",Programme System File
BIS,Skills Funding Agency,13/04/2016,16-18 Apprenticeships - Centralised Contract Management,Main Funding,CAPITA PLC,AP16R_9055,"232,037.84",Programme System File
BIS,Skills Funding Agency,13/04/2016,16-18 Apprenticeships - Centralised Contract Management,Main Funding,CAPITAL ENGINEERING GROUP HOLDINGS LTD,AP16R_9353,"25,506.74",Programme System File
BIS,Skills Funding Agency,13/04/2016,16-18 Apprenticeships - Centralised Contract Management,Main Funding,CARE LEARNING CENTRE ISLE OF WIGHT LTD,AP16R_9238,"6,100.08",Programme System File
BIS,Skills Funding Agency,13/04/2016,16-18 Apprenticeships - Centralised Contract Management,Main Funding,CARE TRAINING EAST MIDLANDS LIMITED,AP16R_9054,"45,724.92",Programme System File
BIS,Skills Funding Agency,13/04/2016,16-18 Apprenticeships - Centralised Contract Management,Main Funding,CARILLION CONSTRUCTION LTD,AP16R_9057,"579,924.27",Programme System File
BIS,Skills Funding Agency,13/04/2016,16-18 Apprenticeships - Centralised Contract Management,Main Funding,CARLISLE COLLEGE,AP16R_9166,"58,007.84",Programme System File
BIS,Skills Funding Agency,13/04/2016,16-18 Apprenticeships - Centralised Contract Management,Main Funding,CARSHALTON COLLEGE,AP16R_9190,"40,851.19",Programme System File
BIS,Skills Funding Agency,13/04/2016,16-18 Apprenticeships - Centralised Contract Management,Main Funding,CATCH 22 CHARITY LTD,AP16R_9384,"140,227.43",Programme System File
BIS,Skills Funding Agency,13/04/2016,16-18 Apprenticeships - Centralised Contract Management,Main Funding,CENTRAL BEDFORDSHIRE COLLEGE,AP16C_877,"-84,761.07",Programme System File
BIS,Skills Funding Agency,13/04/2016,16-18 Apprenticeships - Centralised Contract Management,Main Funding,CENTRAL BEDFORDSHIRE COLLEGE,AP16R_8276,"84,922.57",Programme System File
BIS,Skills Funding Agency,13/04/2016,16-18 Apprenticeships - Centralised Contract Management,Main Funding,CENTRAL BEDFORDSHIRE COUNCIL,AP16R_9009,"4,012.29",Programme System File
BIS,Skills Funding Agency,13/04/2016,16-18 Apprenticeships - Centralised Contract Management,Main Funding,CENTRAL COLLEGE NOTTINGHAM,AP16R_8906,"209,734.94",Programme System File
BIS,Skills Funding Agency,13/04/2016,16-18 Apprenticeships - Centralised Contract Management,Main Funding,CENTRAL SUSSEX COLLEGE,AP16R_8142,"87,581.01",Programme System File
BIS,Skills Funding Agency,13/04/2016,16-18 Apprenticeships - Centralised Contract Management,Main Funding,CENTRAL TRAINING ACADEMY LTD,AP16R_9053,"133,118.57",Programme System File
BIS,Skills Funding Agency,13/04/2016,16-18 Apprenticeships - Centralised Contract Management,Main Funding,CHAMBER TRAINING HUMBER LTD,AP16R_9058,"51,902.98",Programme System File
BIS,Skills Funding Agency,13/04/2016,16-18 Apprenticeships - Centralised Contract Management,Main Funding,CHAPMAN BENNETT ASSOCIATES LIMITED,AP16R_9376,"23,287.44",Programme System File
BIS,Skills Funding Agency,13/04/2016,16-18 Apprenticeships - Centralised Contract Management,Main Funding,CHELMSFORD COLLEGE,AP16R_9181,"85,644.77",Programme System File
BIS,Skills Funding Agency,13/04/2016,16-18 Apprenticeships - Centralised Contract Management,Main Funding,CHESTERFIELD COLLEGE,AP16R_9197,"338,896.41",Programme System File
BIS,Skills Funding Agency,13/04/2016,16-18 Apprenticeships - Centralised Contract Management,Main Funding,CHEYNES MANAGEMENT LTD,AP16R_9268,"156,926.85",Programme System File
BIS,Skills Funding Agency,13/04/2016,16-18 Apprenticeships - Centralised Contract Management,Main Funding,CHICHESTER COLLEGE,AP16C_715,"-38,798.41",Programme System File
BIS,Skills Funding Agency,13/04/2016,16-18 Apprenticeships - Centralised Contract Management,Main Funding,CHICHESTER COLLEGE,AP16R_8986,"184,148.17",Programme System File
BIS,Skills Funding Agency,13/04/2016,16-18 Apprenticeships - Centralised Contract Management,Main Funding,CHILDRENS LINKS,AP16R_9059,"7,107.62",Programme System File
BIS,Skills Funding Agency,13/04/2016,16-18 Apprenticeships - Centralised Contract Management,Main Funding,CHILTERN TRAINING LTD,AP16R_9066,"83,098.14",Programme System File
BIS,Skills Funding Agency,13/04/2016,16-18 Apprenticeships - Centralised Contract Management,Main Funding,CIRENCESTER TERTIARY COLLEGE,AP16R_9212,"13,768.67",Programme System File
BIS,Skills Funding Agency,13/04/2016,16-18 Apprenticeships - Centralised Contract Management,Main Funding,CITB CONSTRUCTIONSKILLS,AP16R_9061,"2,142,706.10",Programme System File
BIS,Skills Funding Agency,13/04/2016,16-18 Apprenticeships - Centralised Contract Management,Main Funding,CITROEN UK LTD,AP16R_9322,"52,693.85",Programme System File
BIS,Skills Funding Agency,13/04/2016,16-18 Apprenticeships - Centralised Contract Management,Main Funding,CITY AND ISLINGTON COLLEGE,AP16R_9205,"9,549.22",Programme System File
BIS,Skills Funding Agency,13/04/2016,16-18 Apprenticeships - Centralised Contract Management,Main Funding,CITY COLLEGE BRIGHTON & HOVE,AP16R_9221,"47,812.52",Programme System File
BIS,Skills Funding Agency,13/04/2016,16-18 Apprenticeships - Centralised Contract Management,Main Funding,CITY COLLEGE COVENTRY,AP16R_9346,"75,720.06",Programme System File
BIS,Skills Funding Agency,13/04/2016,16-18 Apprenticeships - Centralised Contract Management,Main Funding,CITY COLLEGE PLYMOUTH,AP16R_8868,"194,007.19",Programme System File
BIS,Skills Funding Agency,13/04/2016,16-18 Apprenticeships - Centralised Contract Management,Main Funding,CITY GATEWAY LTD,AP16R_9329,"30,132.05",Programme System File
BIS,Skills Funding Agency,13/04/2016,16-18 Apprenticeships - Centralised Contract Management,Main Funding,CITY OF BATH COLLEGE,AP16R_8243,"53,739.47",Programme System File
BIS,Skills Funding Agency,13/04/2016,16-18 Apprenticeships - Centralised Contract Management,Main Funding,CITY OF BRISTOL COLLEGE,AP16R_9356,"169,973.01",Programme System File
BIS,Skills Funding Agency,13/04/2016,16-18 Apprenticeships - Centralised Contract Management,Main Funding,CITY OF LONDON ADULT EDUCATION,AP16C_722,"-36,163.66",Programme System File
BIS,Skills Funding Agency,13/04/2016,16-18 Apprenticeships - Centralised Contract Management,Main Funding,CITY OF LONDON ADULT EDUCATION,AP16R_8995,"51,638.97",Programme System File
BIS,Skills Funding Agency,13/04/2016,16-18 Apprenticeships - Centralised Contract Management,Main Funding,CITY OF SUNDERLAND COLLEGE,AP16C_473,"-121,551.36",Programme System File
BIS,Skills Funding Agency,13/04/2016,16-18 Apprenticeships - Centralised Contract Management,Main Funding,CITY OF SUNDERLAND COLLEGE,AP16R_9259,"256,268.98",Programme System File
BIS,Skills Funding Agency,13/04/2016,16-18 Apprenticeships - Centralised Contract Management,Main Funding,CITY OF WESTMINSTER COLLEGE,AP16C_489,"-17,840.22",Programme System File
BIS,Skills Funding Agency,13/04/2016,16-18 Apprenticeships - Centralised Contract Management,Main Funding,CITY OF WESTMINSTER COLLEGE,AP16R_9293,"38,269.15",Programme System File
BIS,Skills Funding Agency,13/04/2016,16-18 Apprenticeships - Centralised Contract Management,Main Funding,CITY OF WOLVERHAMPTON COLLEGE,AP16R_8978,"117,562.31",Programme System File
BIS,Skills Funding Agency,13/04/2016,16-18 Apprenticeships - Centralised Contract Management,Main Funding,CITY OF YORK COUNCIL,AP16R_9265,"6,626.98",Programme System File
BIS,Skills Funding Agency,13/04/2016,16-18 Apprenticeships - Centralised Contract Management,Main Funding,CLARKSON EVANS TRAINING LIMITED,AP16R_9382,"21,128.94",Programme System File
BIS,Skills Funding Agency,13/04/2016,16-18 Apprenticeships - Centralised Contract Management,Main Funding,CLEVELAND YOUTH ASSOCIATION,AP16C_466,"-8,981.29",Programme System File
BIS,Skills Funding Agency,13/04/2016,16-18 Apprenticeships - Centralised Contract Management,Main Funding,CLEVELAND YOUTH ASSOCIATION,AP16R_9209,"31,248.74",Programme System File
BIS,Skills Funding Agency,13/04/2016,16-18 Apprenticeships - Centralised Contract Management,Main Funding,COLCHESTER INSTITUTE,AP16R_9278,"265,948.82",Programme System File
BIS,Skills Funding Agency,13/04/2016,16-18 Apprenticeships - Centralised Contract Management,Main Funding,COLLEGE OF ANIMAL WELFARE LTD,AP16C_1308,"-16,585.15",Programme System File
BIS,Skills Funding Agency,13/04/2016,16-18 Apprenticeships - Centralised Contract Management,Main Funding,COLLEGE OF ANIMAL WELFARE LTD,AP16R_9063,"28,625.11",Programme System File
BIS,Skills Funding Agency,13/04/2016,16-18 Apprenticeships - Centralised Contract Management,Main Funding,COLLEGE OF NORTH EAST LONDON,AP16R_9300,"48,555.68",Programme System File
BIS,Skills Funding Agency,13/04/2016,16-18 Apprenticeships - Centralised Contract Management,Main Funding,COLLEGE OF NORTH WEST LONDON,AP16R_9324,"61,846.88",Programme System File
BIS,Skills Funding Agency,13/04/2016,16-18 Apprenticeships - Centralised Contract Management,Main Funding,COLLEGE OF RICHARD COLLYER,AP16R_9365,"2,132.57",Programme System File
BIS,Skills Funding Agency,13/04/2016,16-18 Apprenticeships - Centralised Contract Management,Main Funding,COLLEGE OF WEST ANGLIA,AP16R_8988,"128,746.38",Programme System File
BIS,Skills Funding Agency,13/04/2016,16-18 Apprenticeships - Centralised Contract Management,Main Funding,COMMUNITY TRAINING SERVICES LTD,AP16R_9068,"30,722.62",Programme System File
BIS,Skills Funding Agency,13/04/2016,16-18 Apprenticeships - Centralised Contract Management,Main Funding,COMPASS GROUP UK & IRELAND LTD,AP16R_9372,"8,478.87",Programme System File
BIS,Skills Funding Agency,13/04/2016,16-18 Apprenticeships - Centralised Contract Management,Main Funding,CONSORTIA TRAINING LIMITED,AP16C_819,"-65,602.02",Programme System File
BIS,Skills Funding Agency,13/04/2016,16-18 Apprenticeships - Centralised Contract Management,Main Funding,CONSORTIA TRAINING LIMITED,AP16R_8146,"64,961.52",Programme System File
BIS,Skills Funding Agency,13/04/2016,16-18 Apprenticeships - Centralised Contract Management,Main Funding,CORNWALL COLLEGE,AP16R_9338,"296,315.43",Programme System File
BIS,Skills Funding Agency,13/04/2016,16-18 Apprenticeships - Centralised Contract Management,Main Funding,COVENTRY & WARWICKSHIRE CHAMBERS OF COMMERCE TRAINING LIMITED,AP16R_9056,"79,790.48",Programme System File
BIS,Skills Funding Agency,13/04/2016,16-18 Apprenticeships - Centralised Contract Management,Main Funding,COVET LTD,AP16C_583,"-4,272.20",Programme System File
BIS,Skills Funding Agency,13/04/2016,16-18 Apprenticeships - Centralised Contract Management,Main Funding,COVET LTD,AP16R_8151,"26,707.91",Programme System File
BIS,Skills Funding Agency,13/04/2016,16-18 Apprenticeships - Centralised Contract Management,Main Funding,CRACKERJACK TRAINING LTD,AP16R_9060,"44,429.45",Programme System File
BIS,Skills Funding Agency,13/04/2016,16-18 Apprenticeships - Centralised Contract Management,Main Funding,CRAVEN COLLEGE,AP16R_9381,"136,324.93",Programme System File
BIS,Skills Funding Agency,13/04/2016,16-18 Apprenticeships - Centralised Contract Management,Main Funding,CREATIVE PROCESS,AP16R_9370,"16,622.83",Programme System File
BIS,Skills Funding Agency,13/04/2016,16-18 Apprenticeships - Centralised Contract Management,Main Funding,CROYDON COLLEGE,AP16C_516,"-213,740.58",Programme System File
BIS,Skills Funding Agency,13/04/2016,16-18 Apprenticeships - Centralised Contract Management,Main Funding,CROYDON COLLEGE,AP16R_9395,"266,613.76",Programme System File
BIS,Skills Funding Agency,13/04/2016,16-18 Apprenticeships - Centralised Contract Management,Main Funding,CSM CONSULTING LTD,AP16C_754,"-7,950.11",Programme System File
BIS,Skills Funding Agency,13/04/2016,16-18 Apprenticeships - Centralised Contract Management,Main Funding,CSM CONSULTING LTD,AP16R_9065,"20,554.44",Programme System File
BIS,Skills Funding Agency,13/04/2016,16-18 Apprenticeships - Centralised Contract Management,Main Funding,CUMBRIA COUNTY COUNCIL,AP16R_8128,879.15,Programme System File
BIS,Skills Funding Agency,13/04/2016,16-18 Apprenticeships - Centralised Contract Management,Main Funding,D M T BUSINESS SERVICES LTD,AP16R_9076,"16,060.61",Programme System File
BIS,Skills Funding Agency,13/04/2016,16-18 Apprenticeships - Centralised Contract Management,Main Funding,D MANTLE LIMITED,AP16R_8135,"11,672.42",Programme System File
BIS,Skills Funding Agency,13/04/2016,16-18 Apprenticeships - Centralised Contract Management,Main Funding,DAMAR LTD,AP16C_757,"-197,136.88",Programme System File
BIS,Skills Funding Agency,13/04/2016,16-18 Apprenticeships - Centralised Contract Management,Main Funding,DAMAR LTD,AP16R_9070,"365,256.33",Programme System File
BIS,Skills Funding Agency,13/04/2016,16-18 Apprenticeships - Centralised Contract Management,Main Funding,DARLINGTON BOROUGH COUNCIL,AP16R_8156,"19,392.49",Programme System File
BIS,Skills Funding Agency,13/04/2016,16-18 Apprenticeships - Centralised Contract Management,Main Funding,DARLINGTON COLLEGE,AP16C_418,"-65,834.48",Programme System File
BIS,Skills Funding Agency,13/04/2016,16-18 Apprenticeships - Centralised Contract Management,Main Funding,DARLINGTON COLLEGE,AP16C_546,"-167,813.54",Programme System File
BIS,Skills Funding Agency,13/04/2016,16-18 Apprenticeships - Centralised Contract Management,Main Funding,DARLINGTON COLLEGE,AP16C_828,"-246,568.16",Programme System File
BIS,Skills Funding Agency,13/04/2016,16-18 Apprenticeships - Centralised Contract Management,Main Funding,DARLINGTON COLLEGE,AP16R_4607,"114,070.36",Programme System File
BIS,Skills Funding Agency,13/04/2016,16-18 Apprenticeships - Centralised Contract Management,Main Funding,DARLINGTON COLLEGE,AP16R_6707,"90,634.16",Programme System File
BIS,Skills Funding Agency,13/04/2016,16-18 Apprenticeships - Centralised Contract Management,Main Funding,DARLINGTON COLLEGE,AP16R_7199,"167,813.54",Programme System File
BIS,Skills Funding Agency,13/04/2016,16-18 Apprenticeships - Centralised Contract Management,Main Funding,DARLINGTON COLLEGE,AP16R_8171,"246,568.16",Programme System File
BIS,Skills Funding Agency,13/04/2016,16-18 Apprenticeships - Centralised Contract Management,Main Funding,DART LTD,AP16R_9067,"51,992.53",Programme System File
BIS,Skills Funding Agency,13/04/2016,16-18 Apprenticeships - Centralised Contract Management,Main Funding,DAVIDSON TRAINING UK LIMITED,AP16R_9069,"11,138.26",Programme System File
BIS,Skills Funding Agency,13/04/2016,16-18 Apprenticeships - Centralised Contract Management,Main Funding,DAWN HODGE ASSOCIATES LTD,AP16R_9344,"26,568.89",Programme System File
BIS,Skills Funding Agency,13/04/2016,16-18 Apprenticeships - Centralised Contract Management,Main Funding,DEARNE VALLEY COLLEGE,AP16R_8234,"58,410.21",Programme System File
BIS,Skills Funding Agency,13/04/2016,16-18 Apprenticeships - Centralised Contract Management,Main Funding,DERBY BUSINESS COLLEGE,AP16R_9179,"5,552.23",Programme System File
BIS,Skills Funding Agency,13/04/2016,16-18 Apprenticeships - Centralised Contract Management,Main Funding,DERBY CITY COUNCIL,AP16R_8203,"15,272.21",Programme System File
BIS,Skills Funding Agency,13/04/2016,16-18 Apprenticeships - Centralised Contract Management,Main Funding,DERBY COLLEGE,AP16R_8187,"245,447.00",Programme System File
BIS,Skills Funding Agency,13/04/2016,16-18 Apprenticeships - Centralised Contract Management,Main Funding,DERBYSHIRE & NOTTINGHAMSHIRE CHAMBER OF COMMERCE & INDUSTRY,AP16R_9079,"40,204.23",Programme System File
BIS,Skills Funding Agency,13/04/2016,16-18 Apprenticeships - Centralised Contract Management,Main Funding,DERBYSHIRE COUNTY COUNCIL,AP16C_556,"-26,948.63",Programme System File
BIS,Skills Funding Agency,13/04/2016,16-18 Apprenticeships - Centralised Contract Management,Main Funding,DERBYSHIRE COUNTY COUNCIL,AP16R_8218,"36,250.16",Programme System File
BIS,Skills Funding Agency,13/04/2016,16-18 Apprenticeships - Centralised Contract Management,Main Funding,DERBYSHIRE NETWORK,AP16R_9244,"30,291.06",Programme System File
BIS,Skills Funding Agency,13/04/2016,16-18 Apprenticeships - Centralised Contract Management,Main Funding,DERWENTSIDE COLLEGE,AP16C_868,"-104,299.20",Programme System File
BIS,Skills Funding Agency,13/04/2016,16-18 Apprenticeships - Centralised Contract Management,Main Funding,DERWENTSIDE COLLEGE,AP16R_8264,"103,777.37",Programme System File
BIS,Skills Funding Agency,13/04/2016,16-18 Apprenticeships - Centralised Contract Management,Main Funding,DHL INTERNATIONAL UK LTD,AP16C_1448,"-73,986.60",Programme System File
BIS,Skills Funding Agency,13/04/2016,16-18 Apprenticeships - Centralised Contract Management,Main Funding,DHL INTERNATIONAL UK LTD,AP16R_9383,"73,986.29",Programme System File
BIS,Skills Funding Agency,13/04/2016,16-18 Apprenticeships - Centralised Contract Management,Main Funding,DIDAC LTD,AP16R_9073,"22,075.35",Programme System File
BIS,Skills Funding Agency,13/04/2016,16-18 Apprenticeships - Centralised Contract Management,Main Funding,DIMENSIONS TRAINING SOLUTIONS LTD,AP16R_9075,"27,825.97",Programme System File
BIS,Skills Funding Agency,13/04/2016,16-18 Apprenticeships - Centralised Contract Management,Main Funding,DONCASTER COLLEGE,AP16R_8250,"104,146.28",Programme System File
BIS,Skills Funding Agency,13/04/2016,16-18 Apprenticeships - Centralised Contract Management,Main Funding,DONCASTER METRO BOROUGH COUNCIL,AP16R_8428,"7,314.25",Programme System File
BIS,Skills Funding Agency,13/04/2016,16-18 Apprenticeships - Centralised Contract Management,Main Funding,DONCASTER ROTHERHAM & DISTRICT MOTOR TRADES GROUP TRAINING ASSOCIATION LTD,AP16R_9071,"64,545.12",Programme System File
BIS,Skills Funding Agency,13/04/2016,16-18 Apprenticeships - Centralised Contract Management,Main Funding,DOOSAN BABCOCK LTD,AP16R_9153,"33,605.09",Programme System File
BIS,Skills Funding Agency,13/04/2016,16-18 Apprenticeships - Centralised Contract Management,Main Funding,DUDLEY COLLEGE OF TECHNOLOGY,AP16R_8991,"441,404.25",Programme System File
BIS,Skills Funding Agency,13/04/2016,16-18 Apprenticeships - Centralised Contract Management,Main Funding,DURHAM COUNTY COUNCIL,AP16R_8305,"6,750.38",Programme System File
BIS,Skills Funding Agency,13/04/2016,16-18 Apprenticeships - Centralised Contract Management,Main Funding,E TRAINING LTD,AP16R_9072,"7,929.23",Programme System File
BIS,Skills Funding Agency,13/04/2016,16-18 Apprenticeships - Centralised Contract Management,Main Funding,EALING HAMMERSMITH & WEST LONDON COLLEGE,AP16C_906,"-42,810.66",Programme System File
BIS,Skills Funding Agency,13/04/2016,16-18 Apprenticeships - Centralised Contract Management,Main Funding,EALING HAMMERSMITH & WEST LONDON COLLEGE,AP16R_8336,"46,337.09",Programme System File
BIS,Skills Funding Agency,13/04/2016,16-18 Apprenticeships - Centralised Contract Management,Main Funding,EAST BERKSHIRE COLLEGE,AP16R_8437,"43,571.84",Programme System File
BIS,Skills Funding Agency,13/04/2016,16-18 Apprenticeships - Centralised Contract Management,Main Funding,EAST DURHAM COLLEGE,AP16R_8291,"47,413.79",Programme System File
BIS,Skills Funding Agency,13/04/2016,16-18 Apprenticeships - Centralised Contract Management,Main Funding,EAST KENT COLLEGE,AP16R_8943,"54,565.40",Programme System File
BIS,Skills Funding Agency,13/04/2016,16-18 Apprenticeships - Centralised Contract Management,Main Funding,EAST LINDSEY INFORMATION TECHNOLOGY CENTRE,AP16R_9083,"35,837.75",Programme System File
BIS,Skills Funding Agency,13/04/2016,16-18 Apprenticeships - Centralised Contract Management,Main Funding,EAST RIDING COLLEGE,AP16C_614,"-66,210.86",Programme System File
BIS,Skills Funding Agency,13/04/2016,16-18 Apprenticeships - Centralised Contract Management,Main Funding,EAST RIDING COLLEGE,AP16R_8321,"120,953.60",Programme System File
BIS,Skills Funding Agency,13/04/2016,16-18 Apprenticeships - Centralised Contract Management,Main Funding,EAST RIDING OF YORKSHIRE COUNCIL,AP16R_5558,"5,477.86",Programme System File
BIS,Skills Funding Agency,13/04/2016,16-18 Apprenticeships - Centralised Contract Management,Main Funding,EAST RIDING OF YORKSHIRE COUNCIL,AP16R_6275,"10,992.45",Programme System File
BIS,Skills Funding Agency,13/04/2016,16-18 Apprenticeships - Centralised Contract Management,Main Funding,EAST RIDING OF YORKSHIRE COUNCIL,AP16R_7786,"7,081.03",Programme System File
BIS,Skills Funding Agency,13/04/2016,16-18 Apprenticeships - Centralised Contract Management,Main Funding,EAST RIDING OF YORKSHIRE COUNCIL,AP16R_8997,"5,594.53",Programme System File
BIS,Skills Funding Agency,13/04/2016,16-18 Apprenticeships - Centralised Contract Management,Main Funding,EAST SURREY COLLEGE,AP16C_618,"-42,956.99",Programme System File
BIS,Skills Funding Agency,13/04/2016,16-18 Apprenticeships - Centralised Contract Management,Main Funding,EAST SURREY COLLEGE,AP16R_8349,"114,391.42",Programme System File
BIS,Skills Funding Agency,13/04/2016,16-18 Apprenticeships - Centralised Contract Management,Main Funding,EASTLEIGH COLLEGE,AP16C_619,"-39,153.27",Programme System File
BIS,Skills Funding Agency,13/04/2016,16-18 Apprenticeships - Centralised Contract Management,Main Funding,EASTLEIGH COLLEGE,AP16R_8371,"186,173.97",Programme System File
BIS,Skills Funding Agency,13/04/2016,16-18 Apprenticeships - Centralised Contract Management,Main Funding,EASTON & OTLEY COLLEGE,AP16R_9002,"67,429.04",Programme System File
BIS,Skills Funding Agency,13/04/2016,16-18 Apprenticeships - Centralised Contract Management,Main Funding,ECONOMIC SOLUTIONS LTD,AP16R_9144,"553,043.63",Programme System File
BIS,Skills Funding Agency,13/04/2016,16-18 Apprenticeships - Centralised Contract Management,Main Funding,EDEN TRAINING SOLUTIONS LTD,AP16R_9392,"30,252.86",Programme System File
BIS,Skills Funding Agency,13/04/2016,16-18 Apprenticeships - Centralised Contract Management,Main Funding,EDUCATION & TRAINING SKILLS LTD,AP16C_763,"-22,445.05",Programme System File
BIS,Skills Funding Agency,13/04/2016,16-18 Apprenticeships - Centralised Contract Management,Main Funding,EDUCATION & TRAINING SKILLS LTD,AP16R_9078,"49,370.63",Programme System File
BIS,Skills Funding Agency,13/04/2016,16-18 Apprenticeships - Centralised Contract Management,Main Funding,EEF LTD,AP16R_9388,"141,155.52",Programme System File
BIS,Skills Funding Agency,13/04/2016,16-18 Apprenticeships - Centralised Contract Management,Main Funding,ELATT,AP16C_759,"-4,427.29",Programme System File
BIS,Skills Funding Agency,13/04/2016,16-18 Apprenticeships - Centralised Contract Management,Main Funding,ELATT,AP16R_9074,"17,025.46",Programme System File
BIS,Skills Funding Agency,13/04/2016,16-18 Apprenticeships - Centralised Contract Management,Main Funding,ENFIELD LONDON BOROUGH COUNCIL,AP16R_8380,"3,585.67",Programme System File
BIS,Skills Funding Agency,13/04/2016,16-18 Apprenticeships - Centralised Contract Management,Main Funding,ENGLAND & WALES CRICKET BOARD LTD,AP16R_9314,"19,268.18",Programme System File
BIS,Skills Funding Agency,13/04/2016,16-18 Apprenticeships - Centralised Contract Management,Main Funding,EON UK PLC,AP16C_1443,"-47,388.92",Programme System File
BIS,Skills Funding Agency,13/04/2016,16-18 Apprenticeships - Centralised Contract Management,Main Funding,EON UK PLC,AP16R_9369,"47,388.92",Programme System File
BIS,Skills Funding Agency,13/04/2016,16-18 Apprenticeships - Centralised Contract Management,Main Funding,EPPING FOREST COLLEGE,AP16C_943,"-40,889.19",Programme System File
BIS,Skills Funding Agency,13/04/2016,16-18 Apprenticeships - Centralised Contract Management,Main Funding,EPPING FOREST COLLEGE,AP16R_8409,"40,889.19",Programme System File
BIS,Skills Funding Agency,13/04/2016,16-18 Apprenticeships - Centralised Contract Management,Main Funding,EQL SOLUTIONS LTD,AP16C_601,"-326,137.85",Programme System File
BIS,Skills Funding Agency,13/04/2016,16-18 Apprenticeships - Centralised Contract Management,Main Funding,EQL SOLUTIONS LTD,AP16R_8186,"557,148.07",Programme System File
BIS,Skills Funding Agency,13/04/2016,16-18 Apprenticeships - Centralised Contract Management,Main Funding,ESG (SKILLS) LIMITED,AP16R_8155,"361,192.18",Programme System File
BIS,Skills Funding Agency,13/04/2016,16-18 Apprenticeships - Centralised Contract Management,Main Funding,ESSEX COUNTY COUNCIL,AP16R_8422,"14,239.98",Programme System File
BIS,Skills Funding Agency,13/04/2016,16-18 Apprenticeships - Centralised Contract Management,Main Funding,EXEMPLAS HOLDINGS LTD,AP16R_9080,"42,585.71",Programme System File
BIS,Skills Funding Agency,13/04/2016,16-18 Apprenticeships - Centralised Contract Management,Main Funding,EXETER COLLEGE,AP16C_622,"-187,331.08",Programme System File
BIS,Skills Funding Agency,13/04/2016,16-18 Apprenticeships - Centralised Contract Management,Main Funding,EXETER COLLEGE,AP16R_8396,"388,171.59",Programme System File
BIS,Skills Funding Agency,13/04/2016,16-18 Apprenticeships - Centralised Contract Management,Main Funding,FAREHAM COLLEGE,AP16C_1273,"-56,230.61",Programme System File
BIS,Skills Funding Agency,13/04/2016,16-18 Apprenticeships - Centralised Contract Management,Main Funding,FAREHAM COLLEGE,AP16R_8990,"137,060.14",Programme System File
BIS,Skills Funding Agency,13/04/2016,16-18 Apprenticeships - Centralised Contract Management,Main Funding,FAREPORT TRAINING ORGANISATION LTD,AP16R_9085,"40,511.48",Programme System File
BIS,Skills Funding Agency,13/04/2016,16-18 Apprenticeships - Centralised Contract Management,Main Funding,FARNBOROUGH COLLEGE,AP16R_8450,"83,647.13",Programme System File
BIS,Skills Funding Agency,13/04/2016,16-18 Apprenticeships - Centralised Contract Management,Main Funding,FASHION RETAIL ACADEMY,AP16R_7060,"1,441.96",Programme System File
BIS,Skills Funding Agency,13/04/2016,16-18 Apprenticeships - Centralised Contract Management,Main Funding,FASHION RETAIL ACADEMY,AP16R_9280,"1,779.13",Programme System File
BIS,Skills Funding Agency,13/04/2016,16-18 Apprenticeships - Centralised Contract Management,Main Funding,FINMECCANICA UK LTD,AP16C_529,"-43,753.45",Programme System File
BIS,Skills Funding Agency,13/04/2016,16-18 Apprenticeships - Centralised Contract Management,Main Funding,FINMECCANICA UK LTD,AP16R_9337,"64,661.79",Programme System File
BIS,Skills Funding Agency,13/04/2016,16-18 Apprenticeships - Centralised Contract Management,Main Funding,FINNING (UK) LTD,AP16R_9082,"9,112.31",Programme System File
BIS,Skills Funding Agency,13/04/2016,16-18 Apprenticeships - Centralised Contract Management,Main Funding,FIRST CITY TRAINING LTD,AP16R_9291,2187.06,Programme System File
BIS,Skills Funding Agency,13/04/2016,16-18 Apprenticeships - Centralised Contract Management,Main Funding,FIRST4SKILLS LIMITED,AP16R_8169,"348,045.83",Programme System File
BIS,Skills Funding Agency,13/04/2016,16-18 Apprenticeships - Centralised Contract Management,Main Funding,FNTC TRAINING & CONSULTANCY LTD,AP16R_9087,"27,739.67",Programme System File
BIS,Skills Funding Agency,13/04/2016,16-18 Apprenticeships - Centralised Contract Management,Main Funding,FOCUS TRAINING & DEVELOPMENT LTD,AP16R_9286,"13,925.90",Programme System File
BIS,Skills Funding Agency,13/04/2016,16-18 Apprenticeships - Centralised Contract Management,Main Funding,FOCUS TRAINING (SW) LTD,AP16C_559,"-83,699.40",Programme System File
BIS,Skills Funding Agency,13/04/2016,16-18 Apprenticeships - Centralised Contract Management,Main Funding,FOCUS TRAINING (SW) LTD,AP16R_9386,"143,112.37",Programme System File
BIS,Skills Funding Agency,13/04/2016,16-18 Apprenticeships - Centralised Contract Management,Main Funding,FOOTBALL ASSOCIATION PREMIER LEAGUE LTD,AP16R_8188,"172,162.97",Programme System File
BIS,Skills Funding Agency,13/04/2016,16-18 Apprenticeships - Centralised Contract Management,Main Funding,FORSTER COMMUNITY COLLEGE,AP16R_9050,-619.91,Programme System File
BIS,Skills Funding Agency,13/04/2016,16-18 Apprenticeships - Centralised Contract Management,Main Funding,FRANCESCO GROUP HOLDINGS LTD,AP16R_9084,"81,012.37",Programme System File
BIS,Skills Funding Agency,13/04/2016,16-18 Apprenticeships - Centralised Contract Management,Main Funding,FRANKLIN COLLEGE,AP16C_625,"-9,113.73",Programme System File
BIS,Skills Funding Agency,13/04/2016,16-18 Apprenticeships - Centralised Contract Management,Main Funding,FRANKLIN COLLEGE,AP16R_8464,"14,031.52",Programme System File
